Workbook

Sheet Cover page

Sheet >>Notes

Sheet Versions
A1: Version | B1: Date | C1: Details
A2: v1 | B2: 2021-03-30 | C2: Confidential version submitted to the AER
A3: v2 | B3: 2021-04-24 | C3: Updated confidential version submitted to the AER following feedback
A4: v3 | B4: 2021-04-30 | C4: Updated confidential version submitted to the AER following feedback

Sheet Formulae
A1: Revenue Cap Formulae | K1: Figure 13.1, Attachment 13 - Control mechanisms, June 2020
A3: 1. | K3: i=1,..,n and j=1,..,m and t=1,2,...,5
A4: 2 | K4: t = 1,2,…,5
A5: 3. | K5: t=1
A6: 4. | K6: t=2
A7: 5. | K7: t=3,4,5
A9: where;
C10: is the total annual revenue in year t.
C13: is the price of component 'j' of tariff 'i' in year t.
C16: is the forecast quantity of component 'j' of tariff 'i' in year t.
C19: is the annual smoothed revenue requirement in the PTRM for year t.
C21: is the adjusted annual smoothed revenue requirement for year t
C23: is the sum of the STPIS (from year t=3 onwards), demand management incentive scheme, and any other related incentive schemes as they relate to year t-2 applied in year t.
C26: is the sum of annual adjustments factors for year t and includes the true-up for any under or over recovery of actual revenue collected through DUoS charges calculated using the method in Attachment 13 of the AER's Final Decision
C30: is the sum of approved cost pass through amounts (positive or negative) with respect to regulatory year t, as determined by the AER. It will aslo include any end-of-period adjustmnets in regulatory year t.
C34: is the annual percentage change in the ABS CPI All Groups, Weighted Average of Eight Capital Cities[1] from the December quarter in year t–2 to the December quarter in year t–1, calculated using the following method: The ABS CPI All Groups, Weighted Average of Eight Capital Cities for the December quarter in regulatory year t–1 divided by The ABS CPI All Groups, Weighted Average of Eight Capital Cities for the December quarter in regulatory year t–2 minus one. For example, for the 2020–21 year, t–2 is December quarter 2018 and t–1 is December quarter 2019.
C40: is the X factor for each year of the 2020–25 regulatory control period as determined in the PTRM, and annually revised for the return on debt update in accordance with the formula specified in the rate of return attachment 3—rate of return—calculated for the relevant year.
C42: is the s-factor applicable to regulatory year t. This s-factor reflects performance in year t-2 against STPIS targets set in this decision. This factor will only apply in years t=1 and 2, with new STPIS guidelines providing for a change in the application from year t=3 onwards.
A44: [1] | B44: If the ABS does not, or ceases to, publish the index, then CPI will mean an index which the AER considers is the best available alternative index.
A47: Side Constraints | K47: Figure 13.2, Attachment 13 - Control mechanisms, June 2020
A49: For t=1,2
A57: For t=3,4,5
A67: where each tariff class has "n" tariffs, with each up to "m" components, and where:
C68: is the price of component ‘j’ of tariff 'i' for year t.
C71: is the price charged for component ‘j’ of tariff 'i' in year t–1.
C74: is the forecast quantity of component 'j' of tariff 'i' in year t.
C76: is the annual percentage change in the ABS CPI All Groups, Weighted Average of Eight Capital Cities[1] from the December quarter in year t–2 to the December quarter in year t–1, calculated using the following method: The ABS CPI All Groups, Weighted Average of Eight Capital Cities for the December quarter in regulatory year t–1 divided by the ABS CPI All Groups, Weighted Average of Eight Capital Cities for the December quarter in regulatory year t–2 minus one. For example, for the 2020–21 year, t–2 is December quarter 2018 and t–1 is December quarter 2019
C83: is the X factor for each year of the 2020–25 regulatory control period as determined in the PTRM, and annually revised for the return on debt update in accordance with the formula specified in attachment 3—rate of return—calculated for the relevant year. If X>0, then X will be set equal to zero for the purposes of the side constraint formula.
C86: is the s‑factor applicable to regulatory year t. This s-factor reflects performance in year t-2 against STPIS targets set in this decision. This factor will only apply in years t-1 and 2, with new STPIS guidelines providing for a change in the application from year t=3 onwards.
C89: is the annual percentage change in the sum of the STPIS (from year t=3 onwards), demand management incentive scheme, and any other related incentive schemes as they relate to year t-2, applied in year t. This percentage can be calculated by dividing the incremental revenues (the difference between the I-factor used in the total annual revenue formula for t and t-1) by the expected revenues for regulatory year t-1 (based on prices in year t-1 multiplied by teh forecast quantities for year t).
C92: is the annual percentage change from the sum of annual adjustment factors for year t and includes true-up for any under or over recovery of actual revenue collected through DUoS charges calculated using the method in Figure 13.1. This percentage can be calculated by dividing the incremenal revenues (the difference between teh B-factor used in the total annual revenue formula for t and t-1) by the expected revenues for regulatory year t-1 (based on the prices in year t-1 multiplied by the forecast quantities for year t).
Q95: · any under or over recovery of actual revenue collected through DUoS charges in regulatory year t–2 as calculated using the method in appendix A.
C97: is the annual percentage change from the sum of approved cost pass through amounts (positive or negative) with respect to regulatory year t, as determined by the AER. It will also include any end-of-period ajdustments in regulatory year t. This percentage can be calculated by dividing the incremental revenues (the difference between teh C-factor used in the total annual revenue formula for t and t-1) by the expected revenues for regulatory year t-1 (based on the prices in year t-1 multiplied by the forecast quantities for year t).
A100: [1] | B100: If the ABS does not, or ceases to, publish the index, then CPI will mean an index which the AER considers is the best available alternative index.
A103: Example calculation of DUoS unders and overs account ($'000, nominal) | I103: Source: Attachment 13, Control Mechanisms, June 2020
A137: Notes:
A138: (a) Includes incentive schemes as set out in the AER's determination with the exception of those schemes that are calculated and applied through the AER's regulatory determination (eg. CESS and EBSS).
A139: (b) Bt parameter calculations in the DUoS unders and overs account exclude the true-up for DUoS revenue under/over recovery for regulatory year and are therefore expected to be 0.
A140: (c) Approved DUoS revenue under/over recovery for regulatory year t
A141: (d) Opening balance is the previous year's closing balance
A142: (e) The business is expected to achieve a closing balance as close to zero as practicable in its DUoS unders and overs account in each forecast year in its annual pricing proposals in the 2020–25 regulatory control period.
A144: Example calculation of designated pricing proposal charges unders and overs account ($'000, nominal)
A173: Notes:
A174: (a) Approved DPPC revenue under/over recovery for regulatory year t
A175: (b) Opening balance is the previous year's closing balance
A176: (c) The business is expected to achieve a closing balance as close to zero as practicable in its DPPC unders and overs account in each forecast year in its annual pricing proposals in the regulatory control period.
A179: Table 14.3 Example calculation of jurisdictional scheme amounts unders and overs account ($'000, nominal)
A209: Notes:
A210: (a) Approved jurisdictional scheme amount revenue under/over recovery for regulatory year t.
A211: (b) Opening balance is the previous year's closing balance
A212: (c) In addition to complying with clause 6.18.7A(b) of the NER, the business is expected
A215: Public Lighting, Fee based ancillary network services and Metering Services formula | K215: Figure 13.3 (Attachment 13, Control Mechanisms, June 2020)
H219: i=1,….,n and t=,2,….5
A223: Where:
C224: is the price of service 1 in year t. For the first year of the regulatory control period, the cap on the price of service will be as per the schedule of approved charges set out in Attachment 15 - Alternative Control Services.
C226: is the cap on the price of service i in year t
C228: is the cap on the price of service i in year t-1
C230: is the cap on the price of service of service I in year t-1
C232: Is the annual percentage change in the ABS CPI All Groups, Weighted Average of Eight Capital Cities[1] from the December quarter in year t–2 to the December quarter in year t–1, calculated using the following method: The ABS CPI All Groups, Weighted Average of Eight Capital Cities for the December quarter in regulatory year t–1 divided by The ABS CPI All Groups, Weighted Average of Eight Capital Cities for the December quarter in regulatory year t–2 minus one.
C236: is the X factor for service i in year t. The value of this factor is as specified in Attachment 15 - Alternative Control Services
C238: is the sum of any adjustments for service I in year t. Likely to include, but not limited to adjustments for any approved cost pass through amounts (postive or negative) with respect to regulatory year t, as determined by the AER.
A241: [1] | B241: If the ABS does not, or ceases to, publish the index, then CPI will mean an index which the AER considers is the best available alternative index.
A242: Please note that separate X factors exist for * Annual Public Lighting charges * Annual Metering Charge (non-capital component) * Annual Metering Charge (capital component)
A249: Quoted Services Formula | K249: Figure 13.4 (Attachment 13, Control Mechanisms, June 2020)
A255: Where:
B256: Labour | C256: consists of all labour costs directly incurred in the provision of the service which may include labour on-costs, fleet on-costs and overheads. From 2021–22, base labour is escalated annually by (1+∆CPIt)(1–Xt)
B258: Contractor Services | C258: reflect all costs associated with the use of external labour including overheads and any direct costs incurred. The contracted services charge applies the rates under existing contractual arrangements. Direct costs incurred are passed on to the customer.
B260: Materials | C260: reflect the cost of materials directly incurred in the provision of the service, material storage and logistics on costs and overheads.
C262: Is the annual percentage change in the ABS CPI All Groups, Weighted Average of Eight Capital Cities[1] from the December quarter in year t–2 to the December quarter in year t–1, calculated using the following method: The ABS CPI All Groups, Weighted Average of Eight Capital Cities for the December quarter in regulatory year t–1 divided by The ABS CPI All Groups, Weighted Average of Eight Capital Cities for the December quarter in regulatory year t–2 minus one.
C266: is the X factor for service i in year t. The value
A268: [1] | B268: If the ABS does not, or ceases to, publish the index, then CPI will mean an index which the AER considers is the best available alternative index.

Sheet Changes from t-1
A1: Please note that the following changes ocurrring in 2020-21
A3: Standard Control Services
A5: Changes to the Tariff Approval Model
A6: Type
A9: Changes to SCS tariffs
A10: Inclusion on 1 July 2021 of new network tariffs to align with the Ergon Energy 2020-25 TSS, namely:
A11: SAC Large Residential Basic
A12: SAC Large Business Basic
A13: 3 SAC Small Transitional tariffs (East Zone only)

Sheet >>Primary inputs

Sheet Model update
A3: Tariff Approval Template for | B3: Ergon Energy
A6: Financial Year | B6: 2021-22
A7: t | B7: =B6 -> 2021-22
A8: t-1 | B8: =LEFT(B7,4)-1&"-"&MID(B7,3,2) -> 2020-21
A9: t-2 | B9: =LEFT(B8,4)-1&"-"&MID(B8,3,2) -> 2019-20
A10: t-3 | B10: =LEFT(B9,4)-1&"-"&MID(B9,3,2) -> 2018-19
A11: t-4 | B11: =LEFT(B10,4)-1&"-"&MID(B10,3,2) -> 2017-18
A13: Please fill in yellow highlighted cells where appropriate
I14: Number of days in a year
A15: CPI | I15: Year | J15: Days in year
A16: CPI Index Dec 2012 | B16: 102 | I16: 2020-21 | J16: 365
A17: CPI Index Dec 2013 | B17: 104.8 | D17: CPI 2013 | E17: CPI 2014-15 | F17: =IF(OR(B16="",B17=""),0,B17/B16-1) -> 0.02745098039 | I17: 2021-22 | J17: 365
A18: CPI Index Dec 2014 | B18: 106.6 | D18: CPI 2014 | E18: CPI 2015-16 | F18: 0.0255 | I18: 2022-23 | J18: 365
A19: CPI Index Dec 2015 | B19: 108.4 | D19: CPI 2015 | E19: CPI 2016-17 | F19: =IF(OR(B18="",B19=""),F18,ROUND(B19/B18-1,4)) -> 0.0169 | I19: 2023-24 | J19: 366
A20: CPI Index Dec 2016 | B20: 110 | D20: CPI 2016 | E20: CPI 2017-18 | F20: =IF(OR(B19="",B20=""),F19,ROUND(B20/B19-1,4)) -> 0.0148 | I20: 2024-25 | J20: 365
A21: CPI Index Dec 2017 | B21: 112.1 | D21: CPI 2017 | E21: CPI 2018-19 | F21: =IF(OR(B20="",B21=""),F20,B21/B20-1) -> 0.01909090909
A22: CPI Index Dec 2018 | B22: 114.1 | D22: CPI 2018 | E22: CPI 2019-20 | F22: =IF(OR(B21="",B22=""),F21,B22/B21-1) -> 0.0178412132
A23: CPI Index Dec 2019 | B23: 116.2 | D23: CPI 2019 | E23: CPI 2020-21 | F23: 0.01840490798
A24: CPI Index Dec 2020 | B24: 117.2 | D24: CPI 2020 | E24: CPI 2021-22 | F24: 0.008605851979
A25: CPI Index Dec 2021 | D25: CPI 2021 | E25: CPI 2022-23 | F25: 0.008605851979
A26: CPI Index Dec 2022 | D26: CPI 2022 | E26: CPI 2023-24 | F26: 0.008605851979
A27: CPI Index Dec 2023 | D27: CPI 2023 | E27: CPI 2024-25 | F27: 0.008605851979
A29: ="CPI " &$B$9 -> CPI 2019-20 | B29: =VLOOKUP(A29,E$17:F$27,2,FALSE) -> 0.0178412132 | C29: (t-2)
A30: ="CPI " &$B$8 -> CPI 2020-21 | B30: =VLOOKUP(A30,E$17:F$27,2,FALSE) -> 0.01840490798 | C30: (t-1)
A31: ="CPI " &$B$6 -> CPI 2021-22 | B31: =VLOOKUP(A31,E$18:F$27,2,FALSE) -> 0.008605851979 | C31: (t)
A34: Inputs used for the calculation of the DUoS unders/overs amounts in "2021_DUOSRevCap"
B35: =COLUMN() -> 2 | C35: =COLUMN() -> 3 | D35: =COLUMN() -> 4 | E35: =COLUMN() -> 5 | F35: =COLUMN() -> 6 | G35: =COLUMN() -> 7 | I35: =COLUMN() -> 9 | J35: =COLUMN() -> 10 | K35: =COLUMN() -> 11 | L35: =COLUMN() -> 12 | M35: =COLUMN() -> 13 | O35: Source
C36: 2015-20 regulatory control period | I36: 2020-25 regulatory control period
A37: ARt | B37: 2014-15 | C37: 2015-16 | D37: 2016-17 | E37: 2017-18 | F37: 2018-19 | G37: 2019-20 | I37: 2020-21 | J37: 2021-22 | K37: 2022-23 | L37: 2023-24 | M37: 2024-25
A38: Energex
A39: ARt (excl STPIS t-1)
A40: ARt (incl STPIS t-1)
A41: Ergon Energy | E41: 2.301886312e-06
A42: ARt (excl STPIS t-1) | C42: =B43*(1+F18)*(1-C47)*(1+C61) -> 1137712671 | D42: =(C43-C62)*(1+F19)*(1-D47) -> 1136611527 | E42: =(D42+E41)*(1+F20)*(1-E47) -> 1315575601 | F42: =E42*(1+F21)*(1-F47) -> 1306454344 | G42: =F42*(1+F22)*(1-G47)-3147.22554683685 -> 1299466339 | I42: 1178598706 | J42: =I42*(1+F24)*(1-J47) -> 1164549680
A43: ARt (incl STPIS t-1) | B43: 1750770435 | C43: =B43*(1+F18)*(1-C47)*(1+C60) -> 1160466924 | D43: =C43*(1+F19)*(1-D47)*(1+D61) -> 1157523587 | E43: =D43*(1+F20)*(1-E47)*(1+E61) -> 1341803418 | F43: =E43*(1+F21)*(1-F47)*(1+F61) -> 1332580267 | G43: =F43*(1+F22)*(1-G47)*(1+G61) -> 1325455729 | I43: =I42+I62 -> 1205053524 | J43: =I43*(1+F24)*(1-J47)*(1+J61) -> 1164549680
A45: Xt | B45: 2014-15 | C45: 2015-16 | D45: 2016-17 | E45: 2017-18 | F45: 2018-19 | G45: 2019-20 | I45: 2020-21 | J45: 2021-22 | K45: 2022-23 | L45: 2023-24 | M45: 2024-25
A46: Energex
A47: Ergon Energy | C47: 0.3663233184 | D47: =1.75709093498516% -> 0.01757090935 | E47: -0.1405735493 | F47: 0.02553667272 | G47: 0.02278119229 | I47: ='PTRM extract - March 2021'!G16 -> 0.1089925511 | J47: ='PTRM extract - March 2021'!H16 -> 0.02035082513 | O47: Ergon Energy's 2020-25 PTRM
A49: WACC | B49: 2014-15 | C49: 2015-16 | D49: 2016-17 | E49: 2017-18 | F49: 2018-19 | G49: 2019-20 | I49: 2020-21 | J49: 2021-22 | K49: 2022-23 | L49: 2023-24 | M49: 2024-25
A50: Energex
A51: Ergon Energy (WACC Nominal) | B51: 0.0972 | C51: 0.0601 | D51: =6.03890398025498% -> 0.0603890398 | E51: 0.0604480204 | F51: 0.06014804116 | G51: 0.05982476126 | I51: =(1+I52)*(1+F23)-1 -> 0.04284504239 | J51: =(1+J52)*(1+F24)-1 -> 0.03122839231
A52: Ergon Energy (WACC Real) | I52: ='PTRM extract - March 2021'!G7 -> 0.02399844524 | J52: ='PTRM extract - March 2021'!H7 -> 0.02242951524 | O52: Ergon Energy's 2020-25 PTRM
A54: S factor Scheme | B54: 2014-15 | C54: 2015-16 | D54: 2016-17 | E54: 2017-18 | F54: 2018-19 | G54: 2019-20 | I54: 2020-21 | J54: 2021-22 | K54: 2022-23 | L54: 2023-24 | M54: 2024-25
A55: Energex
A56: % applied to revenue cap in year t excl of STPIS
A57: % applied to revenue cap in year t-1 incl of STPIS
A58: Applicable STPIS $ for year t
A59: Ergon Energy
A60: % applied to revenue cap in year t excl of STPIS | C60: 0.02 | D60: 0.01841 | E60: 0.01994 | F60: 0.02 | G60: 0.02 | I60: ='S-factors'!M29 -> 0.02244599323 | J60: ='S-factors'!N29 -> 0 | O60: AER's STPIS compliance model
A61: % applied to revenue cap in year t-1 incl of STPIS | C61: 0 | D61: -0.00157 | E61: 0.00151 | F61: 6e-05 | G61: 0 | I61: ='S-factors'!M31 -> 0.02244599323 | J61: ='S-factors'!N31 -> -0.02195323115
A62: Applicable STPIS $ for year t | C62: =C60*C42 -> 22754253.41 | D62: =D42*D60 -> 20925018.2 | E62: =E42*E60 -> 26232577.48 | F62: =F42*F60 -> 26129086.89 | G62: =G42*G60+62.94 -> 25989389.73 | I62: =I42*I60 -> 26454818.57 | J62: =J42*J60 -> 0
A64: Pass through Amounts (C factor) | B64: 2014-15 | C64: 2015-16 | D64: 2016-17 | E64: 2017-18 | F64: 2018-19 | G64: 2019-20 | I64: 2020-21 | J64: 2021-22 | K64: 2022-23 | L64: 2023-24 | M64: 2024-25
A65: Energex
A66: Ergon Energy | C66: 135031449.7 | D66: 128067846.1 | E66: 0 | F66: -2455678.563 | G66: 0 | I66: 0 | J66: 0
A68: DMIA Carryover adjustment | B68: 2014-15 | C68: 2015-16 | D68: 2016-17 | E68: 2017-18 | F68: 2018-19 | G68: 2019-20 | I68: 2020-21 | J68: 2021-22 | K68: 2022-23 | L68: 2023-24 | M68: 2024-25
A69: Energex
A70: Ergon Energy | D70: -2575803.124 | J70: =-1158714.36+112000 -> -1046714.36
A72: Transitional (Cap cons unders/overs) | B72: 2014-15 | C72: 2015-16 | D72: 2016-17 | E72: 2017-18 | F72: 2018-19 | G72: 2019-20 | I72: 2020-21 | J72: 2021-22 | K72: 2022-23 | L72: 2023-24 | M72: 2024-25
A73: Energex
A74: Ergon Energy | C74: 81545041.14 | D74: 108129297.3
A76: TAR | B76: 2014-15 | C76: 2015-16 | D76: 2016-17 | E76: 2017-18 | F76: 2018-19 | G76: 2019-20 | I76: 2020-21 | J76: 2021-22 | K76: 2022-23 | L76: 2023-24 | M76: 2024-25
A77: Energex
A78: Ergon Energy | C78: 1444147033 | D78: =D43+D66+D70+D74+D90 -> 1463199900 | E78: =E43+E90 -> 1334982740 | F78: =F43+F66+F90 -> 1284149724 | G78: =G43+G90 -> 1293364813 | I78: =I43+I90 -> 1177038330
C80: Actual | D80: Actual | E80: Actual | F80: Actual | G80: Actual | I80: Estimate
A81: Actual DUoS Revenue Recovered | B81: 2014-15 | C81: 2015-16 | D81: 2016-17 | E81: 2017-18 | F81: 2018-19 | G81: 2019-20 | I81: 2020-21 | J81: 2021-22 | K81: 2022-23 | L81: 2023-24 | M81: 2024-25
A82: Energex
A83: Ergon Energy
A84: Distribution revenue | D84: =RINs!$F$52 -> 1500905752 | E84: =RINs!$F$87 -> 1360225218 | F84: =RINs!$F$123 -> 1309118440 | G84: =RINs!$F$161 -> 1314823134 | I84: 1155346278 | O84: Annual RINs
A85: Cross boundary DUoS revenue | D85: =RINs!$O$52 -> 3179321.61 | E85: =RINs!$O$89 -> 3302269.8 | F85: =RINs!$O$123 -> 2841515.4 | G85: =RINs!$O$162 -> 2547781.44 | I85: 2456722.343 | O85: Annual RINs
A86: Actual Total DUoS Revenue Recovered | C86: 1450214613 | D86: =D84+D85 -> 1504085073 | E86: =E84+E85 -> 1363527488 | F86: 1311959955 | G86: 1317370915 | I86: 1157803000
A88: DUoS revenue under/over recovery | B88: 2014-15 | C88: 2015-16 | D88: 2016-17 | E88: 2017-18 | F88: 2018-19 | G88: 2019-20 | I88: 2020-21 | J88: 2021-22 | K88: 2022-23 | L88: 2023-24 | M88: 2024-25
A89: Energex
A90: Ergon Energy | C90: 67103618.54 | D90: 72054972.78 | E90: =(C78-C86)*(1+C51)*(1+D51) -> -6820678.625 | F90: =(D78-D86)*(1+D51)*(1+E51) -> -45974864.31 | G90: =((E78-E86)*(1+E51)*(1+F51))*0-32090916.1456981 -> -32090916.15 | I90: ='TAM 20-21 DUOS unders_overs'!E51 -> -28015194.78 | J90: -9312824.35
A92: Inputs used for the calculation of the DPPC unders/overs amounts in "2021_TUOSRevCap" worksheet
B93: Actual | C93: Actual | D93: Actual | E93: Actual | F93: Actual | G93: Actual | I93: Estimate
A94: DPPC related payments in t-2 (actual) | B94: 2014-15 | C94: 2015-16 | D94: 2016-17 | E94: 2017-18 | F94: 2018-19 | G94: 2019-20 | I94: 2020-21 | J94: 2021-22 | K94: 2022-23 | L94: 2023-24 | M94: 2024-25
A95: Energex
A96: DPPC charges paid to TNSP
A97: Avoided TUoS payments
A98: Cross boundary expenditure
A100: Ergon Energy
A101: DPPC charges paid to TNSP | B101: 314472575.8 | C101: =RINs!F28 -> 347580516.5 | D101: =RINs!F64 -> 378570532 | E101: =RINs!F98 -> 270564690 | F101: =RINs!F135 -> 246627484.6 | G101: =RINs!F173 -> 244848286.4 | J101: 262450965.6 | O101: Ergon Energy's Annual RINs
A102: Avoided TUoS payments | B102: 1911753.464 | C102: =RINs!F29 -> 2072438.87 | D102: =RINs!F65 -> 3138604.78 | E102: =RINs!F99 -> 1929638 | F102: =RINs!F136 -> 2234695.43 | G102: =RINs!F174 -> 2532451 | J102: 2634104 | O102: Ergon Energy's Annual RINs
A103: Cross boundary expenditure | B103: 6036544.594 | C103: =RINs!F30 -> 6293588.57 | D103: =RINs!F66 -> 5259435.15 | E103: =RINs!F100 -> 5656661 | F103: =RINs!F137 -> 4188945.4 | G103: =RINs!F175 -> 3575515.57 | J103: 3125021.918 | O103: Ergon Energy's Annual RINs
B104: =SUM(B100:B103) -> 322420873.8 | C104: 355946543.9 | D104: 386968571.9 | E104: 278150989 | F104: 253051125.4 | G104: 250956253 | I104: =SUM(I100:I103) -> 0 | J104: =SUM(J100:J103) -> 268210091.5 | K104: =SUM(K100:K103) -> 0 | L104: =SUM(L100:L103) -> 0 | M104: =SUM(M100:M103) -> 0
B106: Actual | C106: Actual | D106: Actual | E106: Actual | F106: Actual | G106: Actual | I106: Estimate
A107: Actual DPPC revenue | B107: 2014-15 | C107: 2015-16 | D107: 2016-17 | E107: 2017-18 | F107: 2018-19 | G107: 2019-20 | I107: 2020-21 | J107: 2021-22 | K107: 2022-23 | L107: 2023-24 | M107: 2024-25
A108: Energex
A109: Revenue
A110: Releases from t-2
A111: Total
A112: Ergon Energy
A113: Revenue | B113: 315488409.6 | C113: 370102679.9 | D113: =RINs!F58 -> 391134673.4 | E113: =RINs!F93 -> 258984041 | F113: =RINs!F129 -> 252531311.8 | G113: =RINs!F167 -> 247811070.2 | I113: 258685733.3 | O113: Ergon Energy's Annual RINs
A114: DPP cross-boundary | D114: =RINs!O53 -> 2156198.35 | E114: =RINs!O90 -> 1590887.68 | F114: =RINs!O124 -> 1635653.33 | G114: =+RINs!O163 -> 1636259.29 | I114: 1439266.46
A115: Releases from t-2 | B115: =-B135 -> -103696.604 | C115: =-C135 -> -3232259.996 | D115: -6081174.663 | E115: 12279730.22 | F115: 271142.2712 | G115: =-G135 -> -5954303.203
A116: Total | B116: =SUM(B113:B115) -> 315384713 | C116: =SUM(C113:C115) -> 366870419.9 | D116: =SUM(D113:D115) -> 387209697.1 | E116: 272854658.9 | F116: 254438107.4 | G116: =SUM(G113:G115) -> 243493026.3 | I116: =SUM(I113:I115) -> 260124999.8 | J116: 0 | K116: 0 | L116: 0 | M116: 0
A118: DPPC Revenue to be Recovered in t | B118: 2014-15 | C118: 2015-16 | D118: 2016-17 | E118: 2017-18 | F118: 2018-19 | G118: 2019-20 | I118: 2020-21 | J118: 2021-22 | K118: 2022-23 | L118: 2023-24 | M118: 2024-25
A119: Energex
A120: DPPC charges paid to TNSP
A121: Avoided TUoS payments
A122: Cross boundary expenditure
A123: Rocklea
B124: =SUM(B120:B122) -> 0 | C124: 0 | D124: 0 | E124: 0 | F124: 0 | G124: 0 | I124: =SUM(I120:I123) -> 0 | J124: =SUM(J120:J123) -> 0 | K124: =SUM(K120:K123) -> 0 | L124: =SUM(L120:L123) -> 0 | M124: =SUM(M120:M123) -> 0
A126: Ergon Energy
A127: DPPC charges paid to TNSP | B127: 313578804.7 | C127: 349856187.6 | D127: 380706992 | E127: 270260719.9 | F127: 248814490.7 | G127: =RINs!$F$173 -> 244848286.4 | I127: ='TAM 20-21 TUOS unders_overs'!E37 -> 253129669.3 | J127: 262450965.6
A128: Avoided TUoS payments | B128: 2626417.209 | C128: 2499036.761 | D128: 2359779.509 | E128: 1961518.065 | F128: 2207072.016 | G128: =RINs!$F$174 -> 2532451 | I128: ='TAM 20-21 TUOS unders_overs'!E38 -> 2239469.133 | J128: 2634104
A129: Cross boundary expenditure | B129: 3526617.059 | C129: 5049938.979 | D129: 3276262.613 | E129: 4008381.311 | F129: 5486321.969 | G129: =RINs!$F$175 -> 3575515.57 | I129: ='TAM 20-21 TUOS unders_overs'!E39 -> 3179952.44 | J129: 3125021.918
A130: Unders /overs | B130: =B135 -> 103696.604 | C130: =C135 -> 3232259.996 | D130: 6081174.663 | E130: -12279730.22 | F130: =F135 -> -271142.2712 | G130: =G135 -> 5954303.203 | I130: =I135 -> 829138.6701 | J130: 4899488.837
B131: =SUM(B126:B130) -> 319835535.6 | C131: 360637423.3 | D131: 392424208.8 | E131: 263950889.1 | F131: =SUM(F126:F130) -> 256236742.4 | G131: 256910556.2 | I131: =SUM(I126:I130) -> 259378229.5 | J131: =SUM(J126:J130) -> 273109580.3 | K131: 0 | L131: 0 | M131: 0
A133: DPPC revenue under/over recovery in t-2 | B133: 2014-15 | C133: 2015-16 | D133: 2016-17 | E133: 2017-18 | F133: 2018-19 | G133: 2019-20 | I133: 2020-21 | J133: 2021-22 | K133: 2022-23 | L133: 2023-24 | M133: 2024-25
A134: Energex
A135: Ergon Energy | B135: 103696.604 | C135: 3232259.996 | D135: =((B104-B116)*(1+B51)*(1+C51))-2102877.48 -> 6081174.663 | E135: =(C104-C116)*(1+C51)*(1+D51) -> -12279730.22 | F135: =(D104-D116)*(1+D51)*(1+E51) -> -271142.2712 | G135: =(E104-E116)*(1+E51)*(1+F51) -> 5954303.203 | I135: ='TAM 20-21 TUOS unders_overs'!C18 -> 829138.6701
A137: Inputs used for the calculation of the Jurisdictional Scheme unders/overs amounts in "2021_JSRevCap" worksheet
B139: Actual | C139: Actual | D139: Actual | E139: Actual | F139: Actual | G139: Estimate
A140: Actual Jurisdictional scheme amounts payments | B140: 2014-15 | C140: 2015-16 | D140: 2016-17 | E140: 2017-18 | F140: 2018-19 | G140: 2019-20 | I140: 2020-21 | J140: 2021-22 | K140: 2022-23 | L140: 2023-24 | M140: 2024-25
A141: Energex
A142: Solar Bonus Scheme
A143: AEMC Levy
B145: =SUM(B142:B143) -> 0 | C145: =SUM(C142:C143) -> 0 | D145: 0 | E145: 0 | F145: 0 | G145: 0 | I145: =SUM(I142:I143) -> 0 | J145: 0 | K145: 0 | L145: 0 | M145: 0
A146: Ergon Energy
A147: Solar Bonus Scheme | C147: 109044843 | D147: 100153304 | E147: 99770385.1 | F147: =RINs!F141-F148 -> 94815139.98 | G147: =RINs!F179-G148 -> 91324686.6
A148: AEMC Levy | C148: 77041 | D148: 83936 | E148: 91720 | F148: 107038.15 | G148: 107000
B149: =SUM(B147:B148) -> 0 | C149: 109121884 | D149: 100237240 | E149: 99862105.1 | F149: =SUM(F147:F148) -> 94922178.13 | G149: =SUM(G147:G148) -> 91431686.6 | I149: =SUM(I147:I148) -> 0 | J149: =SUM(J147:J148) -> 0 | K149: =SUM(K147:K148) -> 0 | L149: =SUM(L147:L148) -> 0 | M149: =SUM(M147:M148) -> 0
B150: Actual | C150: Actual | D150: Actual | E150: Actual | F150: Actual | G150: Actual | I150: Estimate
A151: Actual Jurisdictional scheme revenue recovered | B151: 2014-15 | C151: 2015-16 | D151: 2016-17 | E151: 2017-18 | F151: 2018-19 | G151: 2019-20 | I151: 2020-21 | J151: 2021-22 | K151: 2022-23 | L151: 2023-24 | M151: 2024-25
A152: Energex
A153: Ergon Energy
A154: Solar Bonus Scheme
A155: AEMC Levy
A156: Total | C156: 114136303 | D156: 106860917.8 | E156: 93551260.11 | F156: =SUM(F154:F155) -> 0 | G156: =SUM(G154:G155) -> 0 | I156: 92626000 | J156: =SUM(J154:J155) -> 0 | K156: 0 | L156: 0 | M156: 0
A158: Jurisdictional Scheme amounts to be recovered in t | B158: 2014-15 | C158: 2015-16 | D158: 2016-17 | E158: 2017-18 | F158: 2018-19 | G158: 2019-20 | I158: 2020-21 | J158: 2021-22 | K158: 2022-23 | L158: 2023-24 | M158: 2024-25
A159: Energex
A160: Solar Bonus Scheme payments
A161: AEMC Levy
B163: =SUM(B160:B161) -> 0 | C163: 0 | D163: 0 | E163: 0 | F163: 0 | G163: 0 | I163: =SUM(I160:I161) -> 0 | J163: =SUM(J160:J161) -> 0 | K163: 0 | L163: 0 | M163: 0
A164: Ergon Energy
A165: Solar Bonus Scheme payments | C165: 114244904 | D165: 107639528 | E165: 99770385.1 | G165: 91316836.03 | I165: ='TAM 2020-21 JS unders_overs'!E37 -> 90384082 | J165: 84131244
A166: AEMC Levy | D166: 160977 | E166: 91720 | G166: 114850.57 | I166: ='TAM 2020-21 JS unders_overs'!E38 -> 117279 | J166: =I166 -> 117279
A168: =B$6 -> 2021-22 | B168: =SUM(B164:B166) -> 0 | C168: 114244904 | D168: 107800505 | E168: 99862105.1 | F168: 0 | G168: 91431686.6 | I168: =SUM(I164:I166) -> 90501361 | J168: =SUM(J164:J166) -> 84248523 | K168: 0 | L168: 0 | M168: 0
A170: Jurisdictional scheme revenue under/over recovery in t-2 | B170: 2014-15 | C170: 2015-16 | D170: 2016-17 | E170: 2017-18 | F170: 2018-19 | G170: 2019-20 | I170: 2020-21 | J170: 2021-22 | K170: 2022-23 | L170: 2023-24 | M170: 2024-25
A171: Energex
A172: Ergon Energy | C172: 0 | D172: 0 | E172: -5636800.753 | F172: 0 | G172: -9755.71 | I172: 0
A174: Inputs used for the calculation of the ACS prices in "2021_ACS prices" worksheet
A176: X factors | C176: 2015-16 | D176: 2016-17 | E176: 2017-18 | F176: 2018-19 | G176: 2019-20 | I176: 2020-21 | J176: 2021-22 | K176: 2022-23 | L176: 2023-24 | M176: 2024-25
A177: Energex
A178: Fee-based services
A179: Metering X-factor (non-capital)
A180: Metering X-factor (capital)
A181: Public lighting X-factor
A182: Security lighting X-factor
A184: Ergon Energy
A185: Fee-based services:
A186: Ancillary Network Services | J186: -0.009825264614 | K186: -0.01049345619 | L186: -0.01026224748 | M186: -0.009668180339
A187: Type 6 metering - urban/short rural | J187: -0.005617661605 | K187: -0.005999704666 | L187: -0.005867509518 | M187: -0.005527847606 | O187: Applies to service references: | P187: EE_244 | Q187: EE_246 | R187: EE_248 | S187: EE_250 | T187: EE_252 | U187: EE_254 | V187: EE_256 | W187: EE_258
A188: Type 6 metering installation - long rural/remote | J188: -0.00711239541 | K188: -0.007596091565 | L188: -0.007428722252 | M188: -0.00699868392 | O188: Applies to service references: | P188: EE_245 | Q188: EE_247 | R188: EE_249 | S188: EE_251 | T188: EE_253 | U188: EE_255 | V188: EE_257 | W188: EE_259
A189: Metering X-factor (non-capital) | J189: 0 | K189: 0 | L189: 0 | M189: 0
A190: Metering X-factor (capital) | J190: 0 | K190: 0 | L190: 0 | M190: 0
A191: Public lighting X-factor | J191: 0 | K191: 0 | L191: 0 | M191: 0
A192: Security lighting X-factor | J192: -0.007433969882 | K192: -0.007939535508 | L192: -0.007764598886 | M192: -0.007315117126
A194: Adjutments (At) | C194: 2015-16 | D194: 2016-17 | E194: 2017-18 | F194: 2018-19 | G194: 2019-20 | I194: 2020-21 | J194: 2021-22 | K194: 2022-23 | L194: 2023-24 | M194: 2024-25
A195: Energex
A196: Ergon Energy | C196: 0 | D196: 0 | E196: 0 | F196: 0 | G196: 0 | I196: 0 | J196: 0

Sheet >>ACS prices
A2: The worksheet in this section demonstrates that the ACS services and rates in the Pricing Proposal comply with the 2020-25 TSS and formulae

Sheet 2021_ACS service & prices
B1: ="Tariff Approval - "&'Model update'!B3 -> Tariff Approval - Ergon Energy
B3: ="PROPOSED "&'Model update'!B6&" FEE BASED SERVICES" -> PROPOSED 2021-22 FEE BASED SERVICES
J4: ='Model update'!$B$8&" rates" -> 2020-21 rates | K4: ='Model update'!$B$6&" "&"X-factor" -> 2021-22 X-factor | L4: ="Proposed "&'Model update'!$B$7&" rates" -> Proposed 2021-22 rates
B5: Tariff reference | C5: Product codes | D5: Tariff class | E5: Service grouping | F5: Service description | G5: Permutation | H5: Feeder type | I5: X-factor applied | J5: $/Cust/year | K5: % | L5: PropTar $/Cust/year
B6: EE_1 | C6: =VLOOKUP(B6,'2020-21 feebased approved'!$A$4:$H$313,2,FALSE) -> DNV1MBU | D6: Connection application and management services | E6: De-energisation | F6: Retailer requested de-energisation of the customer's premises where the de-energisation can be performed at the premises ie by a method other than main switch seal (eg pole, pillar, transformer or meter isolation link) | G6: BUSINESS HOURS - NO CT | H6: Urban/Short Rural | I6: Fee Based | J6: =VLOOKUP(B6,'2020-21 feebased approved'!$A$4:$H$313,'2020-21 feebased approved'!$H$1,FALSE) -> 116.0511814 | K6: =IF(OR(B6='Model update'!$P$187,B6='Model update'!$Q$187,B6='Model update'!$R$187,B6='Model update'!$S$187,B6='Model update'!$T$187,B6='Model update'!$U$187,B6='Model update'!$V$187,B6='Model update'!$W$187),'Model update'!$J$187,IF(OR(B6='Model update'!$P$188,B6='Model update'!$Q$188,B6='Model update'!$R$188,B6='Model update'!$S$188,B6='Model update'!$T$188,B6='Model update'!$U$188,B6='Model update'!$V$188,B6='Model update'!$W$188),'Model update'!$J$188,'Model update'!$J$186)) -> -0.009825264614 | L6: =J6*(1+'Model update'!$B$31)*(1-'2021_ACS service & prices'!K6)+'Model update'!$J$196 -> 118.1999469
B7: EE_2 | C7: =VLOOKUP(B7,'2020-21 feebased approved'!$A$4:$H$313,2,FALSE) -> DNV1MBL DNV1MBI | D7: Connection application and management services | E7: De-energisation | F7: Retailer requested de-energisation of the customer's premises where the de-energisation can be performed at the premises ie by a method other than main switch seal (eg pole, pillar, transformer or meter isolation link) | G7: BUSINESS HOURS - NO CT | H7: Long rural/Isolated | I7: Fee Based | J7: =VLOOKUP(B7,'2020-21 feebased approved'!$A$4:$H$313,'2020-21 feebased approved'!$H$1,FALSE) -> 408.2202361 | K7: =IF(OR(B7='Model update'!$P$187,B7='Model update'!$Q$187,B7='Model update'!$R$187,B7='Model update'!$S$187,B7='Model update'!$T$187,B7='Model update'!$U$187,B7='Model update'!$V$187,B7='Model update'!$W$187),'Model update'!$J$187,IF(OR(B7='Model update'!$P$188,B7='Model update'!$Q$188,B7='Model update'!$R$188,B7='Model update'!$S$188,B7='Model update'!$T$188,B7='Model update'!$U$188,B7='Model update'!$V$188,B7='Model update'!$W$188),'Model update'!$J$188,'Model update'!$J$186)) -> -0.009825264614 | L7: =J7*(1+'Model update'!$B$31)*(1-'2021_ACS service & prices'!K7)+'Model update'!$J$196 -> 415.7787078
B8: EE_3 | C8: =VLOOKUP(B8,'2020-21 feebased approved'!$A$4:$H$313,2,FALSE) -> DNV1MAU | D8: Connection application and management services | E8: De-energisation | F8: Retailer requested de-energisation of the customer's premises where the de-energisation can be performed at the premises ie by a method other than main switch seal (eg pole, pillar, transformer or meter isolation link) | G8: AFTER HOURS - NO CT | H8: Urban/Short Rural | I8: Fee Based | J8: =VLOOKUP(B8,'2020-21 feebased approved'!$A$4:$H$313,'2020-21 feebased approved'!$H$1,FALSE) -> 152.5560773 | K8: =IF(OR(B8='Model update'!$P$187,B8='Model update'!$Q$187,B8='Model update'!$R$187,B8='Model update'!$S$187,B8='Model update'!$T$187,B8='Model update'!$U$187,B8='Model update'!$V$187,B8='Model update'!$W$187),'Model update'!$J$187,IF(OR(B8='Model update'!$P$188,B8='Model update'!$Q$188,B8='Model update'!$R$188,B8='Model update'!$S$188,B8='Model update'!$T$188,B8='Model update'!$U$188,B8='Model update'!$V$188,B8='Model update'!$W$188),'Model update'!$J$188,'Model update'!$J$186)) -> -0.009825264614 | L8: =J8*(1+'Model update'!$B$31)*(1-'2021_ACS service & prices'!K8)+'Model update'!$J$196 -> 155.3807555
B9: EE_4 | C9: =VLOOKUP(B9,'2020-21 feebased approved'!$A$4:$H$313,2,FALSE) -> DNV1MAL DNV1MAI | D9: Connection application and management services | E9: De-energisation | F9: Retailer requested de-energisation of the customer's premises where the de-energisation can be performed at the premises ie by a method other than main switch seal (eg pole, pillar, transformer or meter isolation link) | G9: AFTER HOURS - NO CT | H9: Long rural/Isolated | I9: Fee Based | J9: =VLOOKUP(B9,'2020-21 feebased approved'!$A$4:$H$313,'2020-21 feebased approved'!$H$1,FALSE) -> 536.6294177 | K9: =IF(OR(B9='Model update'!$P$187,B9='Model update'!$Q$187,B9='Model update'!$R$187,B9='Model update'!$S$187,B9='Model update'!$T$187,B9='Model update'!$U$187,B9='Model update'!$V$187,B9='Model update'!$W$187),'Model update'!$J$187,IF(OR(B9='Model update'!$P$188,B9='Model update'!$Q$188,B9='Model update'!$R$188,B9='Model update'!$S$188,B9='Model update'!$T$188,B9='Model update'!$U$188,B9='Model update'!$V$188,B9='Model update'!$W$188),'Model update'!$J$188,'Model update'!$J$186)) -> -0.009825264614 | L9: =J9*(1+'Model update'!$B$31)*(1-'2021_ACS service & prices'!K9)+'Model update'!$J$196 -> 546.5654717
B10: EE_5 | C10: =VLOOKUP(B10,'2020-21 feebased approved'!$A$4:$H$313,2,FALSE) -> DNV2MBU | D10: Connection application and management services | E10: De-energisation | F10: Retailer requested de-energisation of the customer's premises where the de-energisation can be performed at the premises ie by a method other than main switch seal (eg pole, pillar, transformer or meter isolation link) | G10: BUSINESS HOURS - CT | H10: Urban/Short Rural | I10: Fee Based | J10: =VLOOKUP(B10,'2020-21 feebased approved'!$A$4:$H$313,'2020-21 feebased approved'!$H$1,FALSE) -> 349.9030595 | K10: =IF(OR(B10='Model update'!$P$187,B10='Model update'!$Q$187,B10='Model update'!$R$187,B10='Model update'!$S$187,B10='Model update'!$T$187,B10='Model update'!$U$187,B10='Model update'!$V$187,B10='Model update'!$W$187),'Model update'!$J$187,IF(OR(B10='Model update'!$P$188,B10='Model update'!$Q$188,B10='Model update'!$R$188,B10='Model update'!$S$188,B10='Model update'!$T$188,B10='Model update'!$U$188,B10='Model update'!$V$188,B10='Model update'!$W$188),'Model update'!$J$188,'Model update'!$J$186)) -> -0.009825264614 | L10: =J10*(1+'Model update'!$B$31)*(1-'2021_ACS service & prices'!K10)+'Model update'!$J$196 -> 356.3817495
B11: EE_6 | C11: =VLOOKUP(B11,'2020-21 feebased approved'!$A$4:$H$313,2,FALSE) -> DNV2MBL DNV2MBI | D11: Connection application and management services | E11: De-energisation | F11: Retailer requested de-energisation of the customer's premises where the de-energisation can be performed at the premises ie by a method other than main switch seal (eg pole, pillar, transformer or meter isolation link) | G11: BUSINESS HOURS - CT | H11: Long rural/isolated | I11: Fee Based | J11: =VLOOKUP(B11,'2020-21 feebased approved'!$A$4:$H$313,'2020-21 feebased approved'!$H$1,FALSE) -> 934.2411688 | K11: =IF(OR(B11='Model update'!$P$187,B11='Model update'!$Q$187,B11='Model update'!$R$187,B11='Model update'!$S$187,B11='Model update'!$T$187,B11='Model update'!$U$187,B11='Model update'!$V$187,B11='Model update'!$W$187),'Model update'!$J$187,IF(OR(B11='Model update'!$P$188,B11='Model update'!$Q$188,B11='Model update'!$R$188,B11='Model update'!$S$188,B11='Model update'!$T$188,B11='Model update'!$U$188,B11='Model update'!$V$188,B11='Model update'!$W$188),'Model update'!$J$188,'Model update'!$J$186)) -> -0.009825264614 | L11: =J11*(1+'Model update'!$B$31)*(1-'2021_ACS service & prices'!K11)+'Model update'!$J$196 -> 951.5392713
B12: EE_7 | C12: =VLOOKUP(B12,'2020-21 feebased approved'!$A$4:$H$313,2,FALSE) -> DNV2MAU | D12: Connection application and management services | E12: De-energisation | F12: Retailer requested de-energisation of the customer's premises where the de-energisation can be performed at the premises ie by a method other than main switch seal (eg pole, pillar, transformer or meter isolation link) | G12: AFTER HOURS - CT | H12: Urban/Short Rural | I12: Fee Based | J12: =VLOOKUP(B12,'2020-21 feebased approved'!$A$4:$H$313,'2020-21 feebased approved'!$H$1,FALSE) -> 459.9680723 | K12: =IF(OR(B12='Model update'!$P$187,B12='Model update'!$Q$187,B12='Model update'!$R$187,B12='Model update'!$S$187,B12='Model update'!$T$187,B12='Model update'!$U$187,B12='Model update'!$V$187,B12='Model update'!$W$187),'Model update'!$J$187,IF(OR(B12='Model update'!$P$188,B12='Model update'!$Q$188,B12='Model update'!$R$188,B12='Model update'!$S$188,B12='Model update'!$T$188,B12='Model update'!$U$188,B12='Model update'!$V$188,B12='Model update'!$W$188),'Model update'!$J$188,'Model update'!$J$186)) -> -0.009825264614 | L12: =J12*(1+'Model update'!$B$31)*(1-'2021_ACS service & prices'!K12)+'Model update'!$J$196 -> 468.48469
B13: EE_8 | C13: =VLOOKUP(B13,'2020-21 feebased approved'!$A$4:$H$313,2,FALSE) -> DNV2MAL DNV2MAI | D13: Connection application and management services | E13: De-energisation | F13: Retailer requested de-energisation of the customer's premises where the de-energisation can be performed at the premises ie by a method other than main switch seal (eg pole, pillar, transformer or meter isolation link) | G13: AFTER HOURS - CT | H13: Long rural/Isolated | I13: Fee Based | J13: =VLOOKUP(B13,'2020-21 feebased approved'!$A$4:$H$313,'2020-21 feebased approved'!$H$1,FALSE) -> 1228.114753 | K13: =IF(OR(B13='Model update'!$P$187,B13='Model update'!$Q$187,B13='Model update'!$R$187,B13='Model update'!$S$187,B13='Model update'!$T$187,B13='Model update'!$U$187,B13='Model update'!$V$187,B13='Model update'!$W$187),'Model update'!$J$187,IF(OR(B13='Model update'!$P$188,B13='Model update'!$Q$188,B13='Model update'!$R$188,B13='Model update'!$S$188,B13='Model update'!$T$188,B13='Model update'!$U$188,B13='Model update'!$V$188,B13='Model update'!$W$188),'Model update'!$J$188,'Model update'!$J$186)) -> -0.009825264614 | L13: =J13*(1+'Model update'!$B$31)*(1-'2021_ACS service & prices'!K13)+'Model update'!$J$196 -> 1250.854122
B14: EE_9 | C14: =VLOOKUP(B14,'2020-21 feebased approved'!$A$4:$H$313,2,FALSE) -> DN$1MBU | D14: Connection application and management services | E14: De-energisation | F14: Retailer requested de-energisation of the customer's premises where the de-energisation can be performed at the premises ie by a method other than main switch seal (eg pole, pillar, transformer or meter isolation link) | G14: NON PAYMENT - NO CT | H14: Urban/Short Rural | I14: Fee Based | J14: =VLOOKUP(B14,'2020-21 feebased approved'!$A$4:$H$313,'2020-21 feebased approved'!$H$1,FALSE) -> 232.1023628 | K14: =IF(OR(B14='Model update'!$P$187,B14='Model update'!$Q$187,B14='Model update'!$R$187,B14='Model update'!$S$187,B14='Model update'!$T$187,B14='Model update'!$U$187,B14='Model update'!$V$187,B14='Model update'!$W$187),'Model update'!$J$187,IF(OR(B14='Model update'!$P$188,B14='Model update'!$Q$188,B14='Model update'!$R$188,B14='Model update'!$S$188,B14='Model update'!$T$188,B14='Model update'!$U$188,B14='Model update'!$V$188,B14='Model update'!$W$188),'Model update'!$J$188,'Model update'!$J$186)) -> -0.009825264614 | L14: =J14*(1+'Model update'!$B$31)*(1-'2021_ACS service & prices'!K14)+'Model update'!$J$196 -> 236.3998939
B15: EE_10 | C15: =VLOOKUP(B15,'2020-21 feebased approved'!$A$4:$H$313,2,FALSE) -> DN$1MBL DN$1MBI | D15: Connection application and management services | E15: De-energisation | F15: Retailer requested de-energisation of the customer's premises where the de-energisation can be performed at the premises ie by a method other than main switch seal (eg pole, pillar, transformer or meter isolation link) | G15: NON PAYMENT - NO CT | H15: Long rural/Isolated | I15: Fee Based | J15: =VLOOKUP(B15,'2020-21 feebased approved'!$A$4:$H$313,'2020-21 feebased approved'!$H$1,FALSE) -> 816.4404721 | K15: =IF(OR(B15='Model update'!$P$187,B15='Model update'!$Q$187,B15='Model update'!$R$187,B15='Model update'!$S$187,B15='Model update'!$T$187,B15='Model update'!$U$187,B15='Model update'!$V$187,B15='Model update'!$W$187),'Model update'!$J$187,IF(OR(B15='Model update'!$P$188,B15='Model update'!$Q$188,B15='Model update'!$R$188,B15='Model update'!$S$188,B15='Model update'!$T$188,B15='Model update'!$U$188,B15='Model update'!$V$188,B15='Model update'!$W$188),'Model update'!$J$188,'Model update'!$J$186)) -> -0.009825264614 | L15: =J15*(1+'Model update'!$B$31)*(1-'2021_ACS service & prices'!K15)+'Model update'!$J$196 -> 831.5574156
B16: EE_11 | C16: =VLOOKUP(B16,'2020-21 feebased approved'!$A$4:$H$313,2,FALSE) -> DN$2MBU | D16: Connection application and management services | E16: De-energisation | F16: Retailer requested de-energisation of the customer's premises where the de-energisation can be performed at the premises ie by a method other than main switch seal (eg pole, pillar, transformer or meter isolation link) | G16: NON PAYMENT - CT | H16: Urban/Short Rural | I16: Fee Based | J16: =VLOOKUP(B16,'2020-21 feebased approved'!$A$4:$H$313,'2020-21 feebased approved'!$H$1,FALSE) -> 349.9030595 | K16: =IF(OR(B16='Model update'!$P$187,B16='Model update'!$Q$187,B16='Model update'!$R$187,B16='Model update'!$S$187,B16='Model update'!$T$187,B16='Model update'!$U$187,B16='Model update'!$V$187,B16='Model update'!$W$187),'Model update'!$J$187,IF(OR(B16='Model update'!$P$188,B16='Model update'!$Q$188,B16='Model update'!$R$188,B16='Model update'!$S$188,B16='Model update'!$T$188,B16='Model update'!$U$188,B16='Model update'!$V$188,B16='Model update'!$W$188),'Model update'!$J$188,'Model update'!$J$186)) -> -0.009825264614 | L16: =J16*(1+'Model update'!$B$31)*(1-'2021_ACS service & prices'!K16)+'Model update'!$J$196 -> 356.3817495
B17: EE_12 | C17: =VLOOKUP(B17,'2020-21 feebased approved'!$A$4:$H$313,2,FALSE) -> DN$2MBL DN$2MBI | D17: Connection application and management services | E17: De-energisation | F17: Retailer requested de-energisation of the customer's premises where the de-energisation can be performed at the premises ie by a method other than main switch seal (eg pole, pillar, transformer or meter isolation link) | G17: NON PAYMENT - CT | H17: Long rural/Isolated | I17: Fee Based | J17: =VLOOKUP(B17,'2020-21 feebased approved'!$A$4:$H$313,'2020-21 feebased approved'!$H$1,FALSE) -> 934.2411688 | K17: =IF(OR(B17='Model update'!$P$187,B17='Model update'!$Q$187,B17='Model update'!$R$187,B17='Model update'!$S$187,B17='Model update'!$T$187,B17='Model update'!$U$187,B17='Model update'!$V$187,B17='Model update'!$W$187),'Model update'!$J$187,IF(OR(B17='Model update'!$P$188,B17='Model update'!$Q$188,B17='Model update'!$R$188,B17='Model update'!$S$188,B17='Model update'!$T$188,B17='Model update'!$U$188,B17='Model update'!$V$188,B17='Model update'!$W$188),'Model update'!$J$188,'Model update'!$J$186)) -> -0.009825264614 | L17: =J17*(1+'Model update'!$B$31)*(1-'2021_ACS service & prices'!K17)+'Model update'!$J$196 -> 951.5392713
B18: EE_13 | C18: =VLOOKUP(B18,'2020-21 feebased approved'!$A$4:$H$313,2,FALSE) -> DNMS1MBU | D18: Connection application and management services | E18: De-energisation | F18: Retailer requested de-energisation (MSS) | G18: BUSINESS HOURS | H18: Urban/Short Rural | J18: =VLOOKUP(B18,'2020-21 feebased approved'!$A$4:$H$313,'2020-21 feebased approved'!$H$1,FALSE) -> 101.4718873 | K18: =IF(OR(B18='Model update'!$P$187,B18='Model update'!$Q$187,B18='Model update'!$R$187,B18='Model update'!$S$187,B18='Model update'!$T$187,B18='Model update'!$U$187,B18='Model update'!$V$187,B18='Model update'!$W$187),'Model update'!$J$187,IF(OR(B18='Model update'!$P$188,B18='Model update'!$Q$188,B18='Model update'!$R$188,B18='Model update'!$S$188,B18='Model update'!$T$188,B18='Model update'!$U$188,B18='Model update'!$V$188,B18='Model update'!$W$188),'Model update'!$J$188,'Model update'!$J$186)) -> -0.009825264614 | L18: =J18*(1+'Model update'!$B$31)*(1-'2021_ACS service & prices'!K18)+'Model update'!$J$196 -> 103.3507074
B19: EE_14 | C19: =VLOOKUP(B19,'2020-21 feebased approved'!$A$4:$H$313,2,FALSE) -> DNMS1MBL DNMS1MBI | D19: Connection application and management services | E19: De-energisation | F19: Retailer requested de-energisation (MSS) | G19: BUSINESS HOURS | H19: Long rural/isolated | I19: Fee Based | J19: =VLOOKUP(B19,'2020-21 feebased approved'!$A$4:$H$313,'2020-21 feebased approved'!$H$1,FALSE) -> 393.6409419 | K19: =IF(OR(B19='Model update'!$P$187,B19='Model update'!$Q$187,B19='Model update'!$R$187,B19='Model update'!$S$187,B19='Model update'!$T$187,B19='Model update'!$U$187,B19='Model update'!$V$187,B19='Model update'!$W$187),'Model update'!$J$187,IF(OR(B19='Model update'!$P$188,B19='Model update'!$Q$188,B19='Model update'!$R$188,B19='Model update'!$S$188,B19='Model update'!$T$188,B19='Model update'!$U$188,B19='Model update'!$V$188,B19='Model update'!$W$188),'Model update'!$J$188,'Model update'!$J$186)) -> -0.009825264614 | L19: =J19*(1+'Model update'!$B$31)*(1-'2021_ACS service & prices'!K19)+'Model update'!$J$196 -> 400.9294682
B20: EE_15 | C20: =VLOOKUP(B20,'2020-21 feebased approved'!$A$4:$H$313,2,FALSE) -> DNMS1MAU | D20: Connection application and management services | E20: De-energisation | F20: Retailer requested de-energisation (MSS) | G20: AFTER HOURS | H20: Urban/Short Rural | I20: Fee Based | J20: =VLOOKUP(B20,'2020-21 feebased approved'!$A$4:$H$313,'2020-21 feebased approved'!$H$1,FALSE) -> 133.390741 | K20: =IF(OR(B20='Model update'!$P$187,B20='Model update'!$Q$187,B20='Model update'!$R$187,B20='Model update'!$S$187,B20='Model update'!$T$187,B20='Model update'!$U$187,B20='Model update'!$V$187,B20='Model update'!$W$187),'Model update'!$J$187,IF(OR(B20='Model update'!$P$188,B20='Model update'!$Q$188,B20='Model update'!$R$188,B20='Model update'!$S$188,B20='Model update'!$T$188,B20='Model update'!$U$188,B20='Model update'!$V$188,B20='Model update'!$W$188),'Model update'!$J$188,'Model update'!$J$186)) -> -0.009825264614 | L20: =J20*(1+'Model update'!$B$31)*(1-'2021_ACS service & prices'!K20)+'Model update'!$J$196 -> 135.8605601
B21: EE_16 | C21: =VLOOKUP(B21,'2020-21 feebased approved'!$A$4:$H$313,2,FALSE) -> DNMS1MAL DNMS1MAI | D21: Connection application and management services | E21: De-energisation | F21: Retailer requested de-energisation (MSS) | G21: AFTER HOURS | H21: Long rural/Isolated | I21: Fee Based | J21: =VLOOKUP(B21,'2020-21 feebased approved'!$A$4:$H$313,'2020-21 feebased approved'!$H$1,FALSE) -> 517.4640814 | K21: =IF(OR(B21='Model update'!$P$187,B21='Model update'!$Q$187,B21='Model update'!$R$187,B21='Model update'!$S$187,B21='Model update'!$T$187,B21='Model update'!$U$187,B21='Model update'!$V$187,B21='Model update'!$W$187),'Model update'!$J$187,IF(OR(B21='Model update'!$P$188,B21='Model update'!$Q$188,B21='Model update'!$R$188,B21='Model update'!$S$188,B21='Model update'!$T$188,B21='Model update'!$U$188,B21='Model update'!$V$188,B21='Model update'!$W$188),'Model update'!$J$188,'Model update'!$J$186)) -> -0.009825264614 | L21: =J21*(1+'Model update'!$B$31)*(1-'2021_ACS service & prices'!K21)+'Model update'!$J$196 -> 527.0452762
B22: EE_21 | C22: =VLOOKUP(B22,'2020-21 feebased approved'!$A$4:$H$313,2,FALSE) -> DNS$1MBU | D22: Connection application and management services | E22: De-energisation | F22: Retailer requested de-energisation (MSS) | G22: NON PAYMENT | H22: Urban/Short Rural | I22: Fee Based | J22: =VLOOKUP(B22,'2020-21 feebased approved'!$A$4:$H$313,'2020-21 feebased approved'!$H$1,FALSE) -> 202.9437745 | K22: =IF(OR(B22='Model update'!$P$187,B22='Model update'!$Q$187,B22='Model update'!$R$187,B22='Model update'!$S$187,B22='Model update'!$T$187,B22='Model update'!$U$187,B22='Model update'!$V$187,B22='Model update'!$W$187),'Model update'!$J$187,IF(OR(B22='Model update'!$P$188,B22='Model update'!$Q$188,B22='Model update'!$R$188,B22='Model update'!$S$188,B22='Model update'!$T$188,B22='Model update'!$U$188,B22='Model update'!$V$188,B22='Model update'!$W$188),'Model update'!$J$188,'Model update'!$J$186)) -> -0.009825264614 | L22: =J22*(1+'Model update'!$B$31)*(1-'2021_ACS service & prices'!K22)+'Model update'!$J$196 -> 206.7014147
B23: EE_22 | C23: =VLOOKUP(B23,'2020-21 feebased approved'!$A$4:$H$313,2,FALSE) -> DNS$1MBL DNS$1MBI | D23: Connection application and management services | E23: De-energisation | F23: Retailer requested de-energisation (MSS) | G23: NON PAYMENT | H23: Long rural/Isolated | I23: Fee Based | J23: =VLOOKUP(B23,'2020-21 feebased approved'!$A$4:$H$313,'2020-21 feebased approved'!$H$1,FALSE) -> 787.2818838 | K23: =IF(OR(B23='Model update'!$P$187,B23='Model update'!$Q$187,B23='Model update'!$R$187,B23='Model update'!$S$187,B23='Model update'!$T$187,B23='Model update'!$U$187,B23='Model update'!$V$187,B23='Model update'!$W$187),'Model update'!$J$187,IF(OR(B23='Model update'!$P$188,B23='Model update'!$Q$188,B23='Model update'!$R$188,B23='Model update'!$S$188,B23='Model update'!$T$188,B23='Model update'!$U$188,B23='Model update'!$V$188,B23='Model update'!$W$188),'Model update'!$J$188,'Model update'!$J$186)) -> -0.009825264614 | L23: =J23*(1+'Model update'!$B$31)*(1-'2021_ACS service & prices'!K23)+'Model update'!$J$196 -> 801.8589365
B24: EE_25 | C24: =VLOOKUP(B24,'2020-21 feebased approved'!$A$4:$H$313,2,FALSE) -> DNR$BU | D24: Connection application and management services | E24: De-energisation | F24: Retailer or third party requested remote de-energisation via the meter for non payment (PoC Exempt locations only) | G24: BUSINESS HOURS | H24: N/A | I24: Fee Based | J24: =VLOOKUP(B24,'2020-21 feebased approved'!$A$4:$H$313,'2020-21 feebased approved'!$H$1,FALSE) -> 94.74845305 | K24: =IF(OR(B24='Model update'!$P$187,B24='Model update'!$Q$187,B24='Model update'!$R$187,B24='Model update'!$S$187,B24='Model update'!$T$187,B24='Model update'!$U$187,B24='Model update'!$V$187,B24='Model update'!$W$187),'Model update'!$J$187,IF(OR(B24='Model update'!$P$188,B24='Model update'!$Q$188,B24='Model update'!$R$188,B24='Model update'!$S$188,B24='Model update'!$T$188,B24='Model update'!$U$188,B24='Model update'!$V$188,B24='Model update'!$W$188),'Model update'!$J$188,'Model update'!$J$186)) -> -0.009825264614 | L24: =J24*(1+'Model update'!$B$31)*(1-'2021_ACS service & prices'!K24)+'Model update'!$J$196 -> 96.50278427
B25: EE_26 | C25: =VLOOKUP(B25,'2020-21 feebased approved'!$A$4:$H$313,2,FALSE) -> DNR$AU | D25: Connection application and management services | E25: De-energisation | F25: Retailer or third party requested remote de-energisation via the meter for non payment (PoC Exempt locations only) | G25: AFTER HOURS | H25: N/A | I25: Fee Based | J25: =VLOOKUP(B25,'2020-21 feebased approved'!$A$4:$H$313,'2020-21 feebased approved'!$H$1,FALSE) -> 119.2870813 | K25: =IF(OR(B25='Model update'!$P$187,B25='Model update'!$Q$187,B25='Model update'!$R$187,B25='Model update'!$S$187,B25='Model update'!$T$187,B25='Model update'!$U$187,B25='Model update'!$V$187,B25='Model update'!$W$187),'Model update'!$J$187,IF(OR(B25='Model update'!$P$188,B25='Model update'!$Q$188,B25='Model update'!$R$188,B25='Model update'!$S$188,B25='Model update'!$T$188,B25='Model update'!$U$188,B25='Model update'!$V$188,B25='Model update'!$W$188),'Model update'!$J$188,'Model update'!$J$186)) -> -0.009825264614 | L25: =J25*(1+'Model update'!$B$31)*(1-'2021_ACS service & prices'!K25)+'Model update'!$J$196 -> 121.4957617
B26: EE_27 | C26: =VLOOKUP(B26,'2020-21 feebased approved'!$A$4:$H$313,2,FALSE) -> DNRVBU | D26: Connection application and management services | E26: De-energisation | F26: All other remote de-energisation requests (PoC Exempt locations only) | G26: BUSINESS HOURS | H26: N/A | I26: Fee Based | J26: =VLOOKUP(B26,'2020-21 feebased approved'!$A$4:$H$313,'2020-21 feebased approved'!$H$1,FALSE) -> 94.74845305 | K26: =IF(OR(B26='Model update'!$P$187,B26='Model update'!$Q$187,B26='Model update'!$R$187,B26='Model update'!$S$187,B26='Model update'!$T$187,B26='Model update'!$U$187,B26='Model update'!$V$187,B26='Model update'!$W$187),'Model update'!$J$187,IF(OR(B26='Model update'!$P$188,B26='Model update'!$Q$188,B26='Model update'!$R$188,B26='Model update'!$S$188,B26='Model update'!$T$188,B26='Model update'!$U$188,B26='Model update'!$V$188,B26='Model update'!$W$188),'Model update'!$J$188,'Model update'!$J$186)) -> -0.009825264614 | L26: =J26*(1+'Model update'!$B$31)*(1-'2021_ACS service & prices'!K26)+'Model update'!$J$196 -> 96.50278427
B27: EE_28 | C27: =VLOOKUP(B27,'2020-21 feebased approved'!$A$4:$H$313,2,FALSE) -> DNRVAU | D27: Connection application and management services | E27: De-energisation | F27: All other remote de-energisation requests (PoC Exempt locations only) | G27: AFTER HOURS | H27: N/A | I27: Fee Based | J27: =VLOOKUP(B27,'2020-21 feebased approved'!$A$4:$H$313,'2020-21 feebased approved'!$H$1,FALSE) -> 119.2870813 | K27: =IF(OR(B27='Model update'!$P$187,B27='Model update'!$Q$187,B27='Model update'!$R$187,B27='Model update'!$S$187,B27='Model update'!$T$187,B27='Model update'!$U$187,B27='Model update'!$V$187,B27='Model update'!$W$187),'Model update'!$J$187,IF(OR(B27='Model update'!$P$188,B27='Model update'!$Q$188,B27='Model update'!$R$188,B27='Model update'!$S$188,B27='Model update'!$T$188,B27='Model update'!$U$188,B27='Model update'!$V$188,B27='Model update'!$W$188),'Model update'!$J$188,'Model update'!$J$186)) -> -0.009825264614 | L27: =J27*(1+'Model update'!$B$31)*(1-'2021_ACS service & prices'!K27)+'Model update'!$J$196 -> 121.4957617
B28: EE_29 | C28: =VLOOKUP(B28,'2020-21 feebased approved'!$A$4:$H$313,2,FALSE) -> RN$1MBU | D28: Connection application and management services | E28: Re-energisation | F28: Retailer requests a re-energisation of the customer's premises where the customer has not paid their electricity account. No visual required | G28: BUSINESS HOURS - NO CT | H28: Urban/Short Rural | I28: Fee Based | J28: =VLOOKUP(B28,'2020-21 feebased approved'!$A$4:$H$313,'2020-21 feebased approved'!$H$1,FALSE) -> 202.9437745 | K28: =IF(OR(B28='Model update'!$P$187,B28='Model update'!$Q$187,B28='Model update'!$R$187,B28='Model update'!$S$187,B28='Model update'!$T$187,B28='Model update'!$U$187,B28='Model update'!$V$187,B28='Model update'!$W$187),'Model update'!$J$187,IF(OR(B28='Model update'!$P$188,B28='Model update'!$Q$188,B28='Model update'!$R$188,B28='Model update'!$S$188,B28='Model update'!$T$188,B28='Model update'!$U$188,B28='Model update'!$V$188,B28='Model update'!$W$188),'Model update'!$J$188,'Model update'!$J$186)) -> -0.009825264614 | L28: =J28*(1+'Model update'!$B$31)*(1-'2021_ACS service & prices'!K28)+'Model update'!$J$196 -> 206.7014147
B29: EE_30 | C29: =VLOOKUP(B29,'2020-21 feebased approved'!$A$4:$H$313,2,FALSE) -> RN$1MBL RN$1MBI | D29: Connection application and management services | E29: Re-energisation | F29: Retailer requests a re-energisation of the customer's premises where the customer has not paid their electricity account. No visual required | G29: BUSINESS HOURS - NO CT | H29: Long rural/Isolated | J29: =VLOOKUP(B29,'2020-21 feebased approved'!$A$4:$H$313,'2020-21 feebased approved'!$H$1,FALSE) -> 787.2818838 | K29: =IF(OR(B29='Model update'!$P$187,B29='Model update'!$Q$187,B29='Model update'!$R$187,B29='Model update'!$S$187,B29='Model update'!$T$187,B29='Model update'!$U$187,B29='Model update'!$V$187,B29='Model update'!$W$187),'Model update'!$J$187,IF(OR(B29='Model update'!$P$188,B29='Model update'!$Q$188,B29='Model update'!$R$188,B29='Model update'!$S$188,B29='Model update'!$T$188,B29='Model update'!$U$188,B29='Model update'!$V$188,B29='Model update'!$W$188),'Model update'!$J$188,'Model update'!$J$186)) -> -0.009825264614 | L29: =J29*(1+'Model update'!$B$31)*(1-'2021_ACS service & prices'!K29)+'Model update'!$J$196 -> 801.8589365
B30: EE_31 | C30: =VLOOKUP(B30,'2020-21 feebased approved'!$A$4:$H$313,2,FALSE) -> RN$2MBU | D30: Connection application and management services | E30: Re-energisation | F30: Retailer requests a re-energisation of the customer's premises where the customer has not paid their electricity account. No visual required | G30: BUSINESS HOURS - CT | H30: Urban/Short Rural | I30: Fee Based | J30: =VLOOKUP(B30,'2020-21 feebased approved'!$A$4:$H$313,'2020-21 feebased approved'!$H$1,FALSE) -> 261.2609511 | K30: =IF(OR(B30='Model update'!$P$187,B30='Model update'!$Q$187,B30='Model update'!$R$187,B30='Model update'!$S$187,B30='Model update'!$T$187,B30='Model update'!$U$187,B30='Model update'!$V$187,B30='Model update'!$W$187),'Model update'!$J$187,IF(OR(B30='Model update'!$P$188,B30='Model update'!$Q$188,B30='Model update'!$R$188,B30='Model update'!$S$188,B30='Model update'!$T$188,B30='Model update'!$U$188,B30='Model update'!$V$188,B30='Model update'!$W$188),'Model update'!$J$188,'Model update'!$J$186)) -> -0.009825264614 | L30: =J30*(1+'Model update'!$B$31)*(1-'2021_ACS service & prices'!K30)+'Model update'!$J$196 -> 266.098373
B31: EE_32 | C31: =VLOOKUP(B31,'2020-21 feebased approved'!$A$4:$H$313,2,FALSE) -> RN$2MBL RN$2MBI | D31: Connection application and management services | E31: Re-energisation | F31: Retailer requests a re-energisation of the customer's premises where the customer has not paid their electricity account. No visual required | G31: BUSINESS HOURS - CT | H31: Long rural/Isolated | I31: Fee Based | J31: =VLOOKUP(B31,'2020-21 feebased approved'!$A$4:$H$313,'2020-21 feebased approved'!$H$1,FALSE) -> 845.5990604 | K31: =IF(OR(B31='Model update'!$P$187,B31='Model update'!$Q$187,B31='Model update'!$R$187,B31='Model update'!$S$187,B31='Model update'!$T$187,B31='Model update'!$U$187,B31='Model update'!$V$187,B31='Model update'!$W$187),'Model update'!$J$187,IF(OR(B31='Model update'!$P$188,B31='Model update'!$Q$188,B31='Model update'!$R$188,B31='Model update'!$S$188,B31='Model update'!$T$188,B31='Model update'!$U$188,B31='Model update'!$V$188,B31='Model update'!$W$188),'Model update'!$J$188,'Model update'!$J$186)) -> -0.009825264614 | L31: =J31*(1+'Model update'!$B$31)*(1-'2021_ACS service & prices'!K31)+'Model update'!$J$196 -> 861.2558947
B32: EE_33 | C32: =VLOOKUP(B32,'2020-21 feebased approved'!$A$4:$H$313,2,FALSE) -> RN$1MAU | D32: Connection application and management services | E32: Re-energisation | F32: Retailer requests a re-energisation of the customer's premises where the customer has not paid their electricity account. No visual required | G32: AFTER HOURS - NO CT | H32: Urban/Short Rural | I32: Fee Based | J32: =VLOOKUP(B32,'2020-21 feebased approved'!$A$4:$H$313,'2020-21 feebased approved'!$H$1,FALSE) -> 266.7814819 | K32: =IF(OR(B32='Model update'!$P$187,B32='Model update'!$Q$187,B32='Model update'!$R$187,B32='Model update'!$S$187,B32='Model update'!$T$187,B32='Model update'!$U$187,B32='Model update'!$V$187,B32='Model update'!$W$187),'Model update'!$J$187,IF(OR(B32='Model update'!$P$188,B32='Model update'!$Q$188,B32='Model update'!$R$188,B32='Model update'!$S$188,B32='Model update'!$T$188,B32='Model update'!$U$188,B32='Model update'!$V$188,B32='Model update'!$W$188),'Model update'!$J$188,'Model update'!$J$186)) -> -0.009825264614 | L32: =J32*(1+'Model update'!$B$31)*(1-'2021_ACS service & prices'!K32)+'Model update'!$J$196 -> 271.7211202
B33: EE_34 | C33: =VLOOKUP(B33,'2020-21 feebased approved'!$A$4:$H$313,2,FALSE) -> RN$1MAL RN$1MAI | D33: Connection application and management services | E33: Re-energisation | F33: Retailer requests a re-energisation of the customer's premises where the customer has not paid their electricity account. No visual required | G33: AFTER HOURS - NO CT | H33: Long rural/Isolated | I33: Fee Based | J33: =VLOOKUP(B33,'2020-21 feebased approved'!$A$4:$H$313,'2020-21 feebased approved'!$H$1,FALSE) -> 1034.928163 | K33: =IF(OR(B33='Model update'!$P$187,B33='Model update'!$Q$187,B33='Model update'!$R$187,B33='Model update'!$S$187,B33='Model update'!$T$187,B33='Model update'!$U$187,B33='Model update'!$V$187,B33='Model update'!$W$187),'Model update'!$J$187,IF(OR(B33='Model update'!$P$188,B33='Model update'!$Q$188,B33='Model update'!$R$188,B33='Model update'!$S$188,B33='Model update'!$T$188,B33='Model update'!$U$188,B33='Model update'!$V$188,B33='Model update'!$W$188),'Model update'!$J$188,'Model update'!$J$186)) -> -0.009825264614 | L33: =J33*(1+'Model update'!$B$31)*(1-'2021_ACS service & prices'!K33)+'Model update'!$J$196 -> 1054.090552
B34: EE_35 | C34: =VLOOKUP(B34,'2020-21 feebased approved'!$A$4:$H$313,2,FALSE) -> RN$1MTU | D34: Connection application and management services | E34: Re-energisation | F34: Retailer requests a re-energisation of the customer's premises where the customer has not paid their electricity account. No visual required | G34: ANYTIME - NO CT | H34: Urban/Short Rural | I34: Fee Based | J34: =VLOOKUP(B34,'2020-21 feebased approved'!$A$4:$H$313,'2020-21 feebased approved'!$H$1,FALSE) -> 266.7814819 | K34: =IF(OR(B34='Model update'!$P$187,B34='Model update'!$Q$187,B34='Model update'!$R$187,B34='Model update'!$S$187,B34='Model update'!$T$187,B34='Model update'!$U$187,B34='Model update'!$V$187,B34='Model update'!$W$187),'Model update'!$J$187,IF(OR(B34='Model update'!$P$188,B34='Model update'!$Q$188,B34='Model update'!$R$188,B34='Model update'!$S$188,B34='Model update'!$T$188,B34='Model update'!$U$188,B34='Model update'!$V$188,B34='Model update'!$W$188),'Model update'!$J$188,'Model update'!$J$186)) -> -0.009825264614 | L34: =J34*(1+'Model update'!$B$31)*(1-'2021_ACS service & prices'!K34)+'Model update'!$J$196 -> 271.7211202
B35: EE_36 | C35: =VLOOKUP(B35,'2020-21 feebased approved'!$A$4:$H$313,2,FALSE) -> RN$2MAU | D35: Connection application and management services | E35: Re-energisation | F35: Retailer requests a re-energisation of the customer's premises where the customer has not paid their electricity account. No visual required | G35: AFTER HOURS - CT | H35: Urban/Short Rural | I35: Fee Based | J35: =VLOOKUP(B35,'2020-21 feebased approved'!$A$4:$H$313,'2020-21 feebased approved'!$H$1,FALSE) -> 343.4428273 | K35: =IF(OR(B35='Model update'!$P$187,B35='Model update'!$Q$187,B35='Model update'!$R$187,B35='Model update'!$S$187,B35='Model update'!$T$187,B35='Model update'!$U$187,B35='Model update'!$V$187,B35='Model update'!$W$187),'Model update'!$J$187,IF(OR(B35='Model update'!$P$188,B35='Model update'!$Q$188,B35='Model update'!$R$188,B35='Model update'!$S$188,B35='Model update'!$T$188,B35='Model update'!$U$188,B35='Model update'!$V$188,B35='Model update'!$W$188),'Model update'!$J$188,'Model update'!$J$186)) -> -0.009825264614 | L35: =J35*(1+'Model update'!$B$31)*(1-'2021_ACS service & prices'!K35)+'Model update'!$J$196 -> 349.8019019
B36: EE_37 | C36: =VLOOKUP(B36,'2020-21 feebased approved'!$A$4:$H$313,2,FALSE) -> RN$2MAL RN$2MAI | D36: Connection application and management services | E36: Re-energisation | F36: Retailer requests a re-energisation of the customer's premises where the customer has not paid their electricity account. No visual required | G36: AFTER HOURS - CT | H36: Long rural/Isolated | I36: Fee Based | J36: =VLOOKUP(B36,'2020-21 feebased approved'!$A$4:$H$313,'2020-21 feebased approved'!$H$1,FALSE) -> 1111.589508 | K36: =IF(OR(B36='Model update'!$P$187,B36='Model update'!$Q$187,B36='Model update'!$R$187,B36='Model update'!$S$187,B36='Model update'!$T$187,B36='Model update'!$U$187,B36='Model update'!$V$187,B36='Model update'!$W$187),'Model update'!$J$187,IF(OR(B36='Model update'!$P$188,B36='Model update'!$Q$188,B36='Model update'!$R$188,B36='Model update'!$S$188,B36='Model update'!$T$188,B36='Model update'!$U$188,B36='Model update'!$V$188,B36='Model update'!$W$188),'Model update'!$J$188,'Model update'!$J$186)) -> -0.009825264614 | L36: =J36*(1+'Model update'!$B$31)*(1-'2021_ACS service & prices'!K36)+'Model update'!$J$196 -> 1132.171334
B37: EE_38 | C37: =VLOOKUP(B37,'2020-21 feebased approved'!$A$4:$H$313,2,FALSE) -> RN$2MTU | D37: Connection application and management services | E37: Re-energisation | F37: Retailer requests a re-energisation of the customer's premises where the customer has not paid their electricity account. No visual required | G37: ANYTIME - CT | H37: Urban/Short Rural | I37: Fee Based | J37: =VLOOKUP(B37,'2020-21 feebased approved'!$A$4:$H$313,'2020-21 feebased approved'!$H$1,FALSE) -> 343.4428273 | K37: =IF(OR(B37='Model update'!$P$187,B37='Model update'!$Q$187,B37='Model update'!$R$187,B37='Model update'!$S$187,B37='Model update'!$T$187,B37='Model update'!$U$187,B37='Model update'!$V$187,B37='Model update'!$W$187),'Model update'!$J$187,IF(OR(B37='Model update'!$P$188,B37='Model update'!$Q$188,B37='Model update'!$R$188,B37='Model update'!$S$188,B37='Model update'!$T$188,B37='Model update'!$U$188,B37='Model update'!$V$188,B37='Model update'!$W$188),'Model update'!$J$188,'Model update'!$J$186)) -> -0.009825264614 | L37: =J37*(1+'Model update'!$B$31)*(1-'2021_ACS service & prices'!K37)+'Model update'!$J$196 -> 349.8019019
B38: EE_39 | C38: =VLOOKUP(B38,'2020-21 feebased approved'!$A$4:$H$313,2,FALSE) -> RNS1MBU | D38: Connection application and management services | E38: Re-energisation | F38: Retailer requests a re-energisation for the customer's premises following a main switch seal (no visual required) | G38: BUSINESS HOURS | H38: Urban/Short Rural | I38: Fee Based | J38: =VLOOKUP(B38,'2020-21 feebased approved'!$A$4:$H$313,'2020-21 feebased approved'!$H$1,FALSE) -> 101.4718873 | K38: =IF(OR(B38='Model update'!$P$187,B38='Model update'!$Q$187,B38='Model update'!$R$187,B38='Model update'!$S$187,B38='Model update'!$T$187,B38='Model update'!$U$187,B38='Model update'!$V$187,B38='Model update'!$W$187),'Model update'!$J$187,IF(OR(B38='Model update'!$P$188,B38='Model update'!$Q$188,B38='Model update'!$R$188,B38='Model update'!$S$188,B38='Model update'!$T$188,B38='Model update'!$U$188,B38='Model update'!$V$188,B38='Model update'!$W$188),'Model update'!$J$188,'Model update'!$J$186)) -> -0.009825264614 | L38: =J38*(1+'Model update'!$B$31)*(1-'2021_ACS service & prices'!K38)+'Model update'!$J$196 -> 103.3507074
B39: EE_40 | C39: =VLOOKUP(B39,'2020-21 feebased approved'!$A$4:$H$313,2,FALSE) -> RNS1MBL RNS1MBI | D39: Connection application and management services | E39: Re-energisation | F39: Retailer requests a re-energisation for the customer's premises following a main switch seal (no visual required) | G39: BUSINESS HOURS | H39: Long rural/Isolated | I39: Fee Based | J39: =VLOOKUP(B39,'2020-21 feebased approved'!$A$4:$H$313,'2020-21 feebased approved'!$H$1,FALSE) -> 393.6409419 | K39: =IF(OR(B39='Model update'!$P$187,B39='Model update'!$Q$187,B39='Model update'!$R$187,B39='Model update'!$S$187,B39='Model update'!$T$187,B39='Model update'!$U$187,B39='Model update'!$V$187,B39='Model update'!$W$187),'Model update'!$J$187,IF(OR(B39='Model update'!$P$188,B39='Model update'!$Q$188,B39='Model update'!$R$188,B39='Model update'!$S$188,B39='Model update'!$T$188,B39='Model update'!$U$188,B39='Model update'!$V$188,B39='Model update'!$W$188),'Model update'!$J$188,'Model update'!$J$186)) -> -0.009825264614 | L39: =J39*(1+'Model update'!$B$31)*(1-'2021_ACS service & prices'!K39)+'Model update'!$J$196 -> 400.9294682
B40: EE_41 | C40: =VLOOKUP(B40,'2020-21 feebased approved'!$A$4:$H$313,2,FALSE) -> RNS1MAU | D40: Connection application and management services | E40: Re-energisation | F40: Retailer requests a re-energisation for the customer's premises following a main switch seal (no visual required) | G40: AFTER HOURS | H40: Urban/Short Rural | I40: Fee Based | J40: =VLOOKUP(B40,'2020-21 feebased approved'!$A$4:$H$313,'2020-21 feebased approved'!$H$1,FALSE) -> 133.390741 | K40: =IF(OR(B40='Model update'!$P$187,B40='Model update'!$Q$187,B40='Model update'!$R$187,B40='Model update'!$S$187,B40='Model update'!$T$187,B40='Model update'!$U$187,B40='Model update'!$V$187,B40='Model update'!$W$187),'Model update'!$J$187,IF(OR(B40='Model update'!$P$188,B40='Model update'!$Q$188,B40='Model update'!$R$188,B40='Model update'!$S$188,B40='Model update'!$T$188,B40='Model update'!$U$188,B40='Model update'!$V$188,B40='Model update'!$W$188),'Model update'!$J$188,'Model update'!$J$186)) -> -0.009825264614 | L40: =J40*(1+'Model update'!$B$31)*(1-'2021_ACS service & prices'!K40)+'Model update'!$J$196 -> 135.8605601
B41: EE_42 | C41: =VLOOKUP(B41,'2020-21 feebased approved'!$A$4:$H$313,2,FALSE) -> RNS1MAL RNS1MAI | D41: Connection application and management services | E41: Re-energisation | F41: Retailer requests a re-energisation for the customer's premises following a main switch seal (no visual required) | G41: AFTER HOURS | H41: Long rural/Isolated | I41: Fee Based | J41: =VLOOKUP(B41,'2020-21 feebased approved'!$A$4:$H$313,'2020-21 feebased approved'!$H$1,FALSE) -> 517.4640814 | K41: =IF(OR(B41='Model update'!$P$187,B41='Model update'!$Q$187,B41='Model update'!$R$187,B41='Model update'!$S$187,B41='Model update'!$T$187,B41='Model update'!$U$187,B41='Model update'!$V$187,B41='Model update'!$W$187),'Model update'!$J$187,IF(OR(B41='Model update'!$P$188,B41='Model update'!$Q$188,B41='Model update'!$R$188,B41='Model update'!$S$188,B41='Model update'!$T$188,B41='Model update'!$U$188,B41='Model update'!$V$188,B41='Model update'!$W$188),'Model update'!$J$188,'Model update'!$J$186)) -> -0.009825264614 | L41: =J41*(1+'Model update'!$B$31)*(1-'2021_ACS service & prices'!K41)+'Model update'!$J$196 -> 527.0452762
B42: EE_43 | C42: =VLOOKUP(B42,'2020-21 feebased approved'!$A$4:$H$313,2,FALSE) -> RNS1MTU | D42: Connection application and management services | E42: Re-energisation | F42: Retailer requests a re-energisation for the customer's premises following a main switch seal (no visual required) | G42: ANYTIME | H42: Urban/Short Rural | I42: Fee Based | J42: =VLOOKUP(B42,'2020-21 feebased approved'!$A$4:$H$313,'2020-21 feebased approved'!$H$1,FALSE) -> 133.390741 | K42: =IF(OR(B42='Model update'!$P$187,B42='Model update'!$Q$187,B42='Model update'!$R$187,B42='Model update'!$S$187,B42='Model update'!$T$187,B42='Model update'!$U$187,B42='Model update'!$V$187,B42='Model update'!$W$187),'Model update'!$J$187,IF(OR(B42='Model update'!$P$188,B42='Model update'!$Q$188,B42='Model update'!$R$188,B42='Model update'!$S$188,B42='Model update'!$T$188,B42='Model update'!$U$188,B42='Model update'!$V$188,B42='Model update'!$W$188),'Model update'!$J$188,'Model update'!$J$186)) -> -0.009825264614 | L42: =J42*(1+'Model update'!$B$31)*(1-'2021_ACS service & prices'!K42)+'Model update'!$J$196 -> 135.8605601
B43: EE_49 | C43: =VLOOKUP(B43,'2020-21 feebased approved'!$A$4:$H$313,2,FALSE) -> RNS$1MBU | D43: Connection application and management services | E43: Re-energisation | F43: Retailer requests a re-energisation for the customer's premises following a main switch seal (no visual required) | G43: NON PAYMENT | H43: Urban/Short Rural | I43: Fee Based | J43: =VLOOKUP(B43,'2020-21 feebased approved'!$A$4:$H$313,'2020-21 feebased approved'!$H$1,FALSE) -> 202.9437745 | K43: =IF(OR(B43='Model update'!$P$187,B43='Model update'!$Q$187,B43='Model update'!$R$187,B43='Model update'!$S$187,B43='Model update'!$T$187,B43='Model update'!$U$187,B43='Model update'!$V$187,B43='Model update'!$W$187),'Model update'!$J$187,IF(OR(B43='Model update'!$P$188,B43='Model update'!$Q$188,B43='Model update'!$R$188,B43='Model update'!$S$188,B43='Model update'!$T$188,B43='Model update'!$U$188,B43='Model update'!$V$188,B43='Model update'!$W$188),'Model update'!$J$188,'Model update'!$J$186)) -> -0.009825264614 | L43: =J43*(1+'Model update'!$B$31)*(1-'2021_ACS service & prices'!K43)+'Model update'!$J$196 -> 206.7014147
B44: EE_50 | C44: =VLOOKUP(B44,'2020-21 feebased approved'!$A$4:$H$313,2,FALSE) -> RNS$1MBL RNS$1MBI | D44: Connection application and management services | E44: Re-energisation | F44: Retailer requests a re-energisation for the customer's premises following a main switch seal (no visual required) | G44: NON PAYMENT | H44: Long rural/Isolated | I44: Fee Based | J44: =VLOOKUP(B44,'2020-21 feebased approved'!$A$4:$H$313,'2020-21 feebased approved'!$H$1,FALSE) -> 787.2818838 | K44: =IF(OR(B44='Model update'!$P$187,B44='Model update'!$Q$187,B44='Model update'!$R$187,B44='Model update'!$S$187,B44='Model update'!$T$187,B44='Model update'!$U$187,B44='Model update'!$V$187,B44='Model update'!$W$187),'Model update'!$J$187,IF(OR(B44='Model update'!$P$188,B44='Model update'!$Q$188,B44='Model update'!$R$188,B44='Model update'!$S$188,B44='Model update'!$T$188,B44='Model update'!$U$188,B44='Model update'!$V$188,B44='Model update'!$W$188),'Model update'!$J$188,'Model update'!$J$186)) -> -0.009825264614 | L44: =J44*(1+'Model update'!$B$31)*(1-'2021_ACS service & prices'!K44)+'Model update'!$J$196 -> 801.8589365
B45: EE_53 | C45: =VLOOKUP(B45,'2020-21 feebased approved'!$A$4:$H$313,2,FALSE) -> RNV1MBU | D45: Connection application and management services | E45: Re-energisation | F45: Retailer or metering coordinator/provider requests a visual examination upon re-energisation (physical or remote) of the customer’s premises. | G45: BUSINESS HOURS - NO CT | H45: Urban/Short Rural | I45: Fee Based | J45: =VLOOKUP(B45,'2020-21 feebased approved'!$A$4:$H$313,'2020-21 feebased approved'!$H$1,FALSE) -> 145.2097697 | K45: =IF(OR(B45='Model update'!$P$187,B45='Model update'!$Q$187,B45='Model update'!$R$187,B45='Model update'!$S$187,B45='Model update'!$T$187,B45='Model update'!$U$187,B45='Model update'!$V$187,B45='Model update'!$W$187),'Model update'!$J$187,IF(OR(B45='Model update'!$P$188,B45='Model update'!$Q$188,B45='Model update'!$R$188,B45='Model update'!$S$188,B45='Model update'!$T$188,B45='Model update'!$U$188,B45='Model update'!$V$188,B45='Model update'!$W$188),'Model update'!$J$188,'Model update'!$J$186)) -> -0.009825264614 | L45: =J45*(1+'Model update'!$B$31)*(1-'2021_ACS service & prices'!K45)+'Model update'!$J$196 -> 147.8984261
B46: EE_54 | C46: =VLOOKUP(B46,'2020-21 feebased approved'!$A$4:$H$313,2,FALSE) -> RNV1MBL RNV1MBI | D46: Connection application and management services | E46: Re-energisation | F46: Retailer or metering coordinator/provider requests a visual examination upon re-energisation (physical or remote) of the customer’s premises. | G46: BUSINESS HOURS - NO CT | H46: Long rural/Isolated | I46: Fee Based | J46: =VLOOKUP(B46,'2020-21 feebased approved'!$A$4:$H$313,'2020-21 feebased approved'!$H$1,FALSE) -> 437.3788244 | K46: =IF(OR(B46='Model update'!$P$187,B46='Model update'!$Q$187,B46='Model update'!$R$187,B46='Model update'!$S$187,B46='Model update'!$T$187,B46='Model update'!$U$187,B46='Model update'!$V$187,B46='Model update'!$W$187),'Model update'!$J$187,IF(OR(B46='Model update'!$P$188,B46='Model update'!$Q$188,B46='Model update'!$R$188,B46='Model update'!$S$188,B46='Model update'!$T$188,B46='Model update'!$U$188,B46='Model update'!$V$188,B46='Model update'!$W$188),'Model update'!$J$188,'Model update'!$J$186)) -> -0.009825264614 | L46: =J46*(1+'Model update'!$B$31)*(1-'2021_ACS service & prices'!K46)+'Model update'!$J$196 -> 445.4771869
B47: EE_55 | C47: =VLOOKUP(B47,'2020-21 feebased approved'!$A$4:$H$313,2,FALSE) -> RNV2MBU | D47: Connection application and management services | E47: Re-energisation | F47: Retailer or metering coordinator/provider requests a visual examination upon re-energisation (physical or remote) of the customer’s premises. | G47: BUSINESS HOURS - CT | H47: Urban/Short Rural | I47: Fee Based | J47: =VLOOKUP(B47,'2020-21 feebased approved'!$A$4:$H$313,'2020-21 feebased approved'!$H$1,FALSE) -> 188.9476521 | K47: =IF(OR(B47='Model update'!$P$187,B47='Model update'!$Q$187,B47='Model update'!$R$187,B47='Model update'!$S$187,B47='Model update'!$T$187,B47='Model update'!$U$187,B47='Model update'!$V$187,B47='Model update'!$W$187),'Model update'!$J$187,IF(OR(B47='Model update'!$P$188,B47='Model update'!$Q$188,B47='Model update'!$R$188,B47='Model update'!$S$188,B47='Model update'!$T$188,B47='Model update'!$U$188,B47='Model update'!$V$188,B47='Model update'!$W$188),'Model update'!$J$188,'Model update'!$J$186)) -> -0.009825264614 | L47: =J47*(1+'Model update'!$B$31)*(1-'2021_ACS service & prices'!K47)+'Model update'!$J$196 -> 192.4461448
B48: EE_56 | C48: =VLOOKUP(B48,'2020-21 feebased approved'!$A$4:$H$313,2,FALSE) -> RNV2MBL RNV2MBI | D48: Connection application and management services | E48: Re-energisation | F48: Retailer or metering coordinator/provider requests a visual examination upon re-energisation (physical or remote) of the customer’s premises. | G48: BUSINESS HOURS - CT | H48: Long rural/Isolated | I48: Fee Based | J48: =VLOOKUP(B48,'2020-21 feebased approved'!$A$4:$H$313,'2020-21 feebased approved'!$H$1,FALSE) -> 481.1167068 | K48: =IF(OR(B48='Model update'!$P$187,B48='Model update'!$Q$187,B48='Model update'!$R$187,B48='Model update'!$S$187,B48='Model update'!$T$187,B48='Model update'!$U$187,B48='Model update'!$V$187,B48='Model update'!$W$187),'Model update'!$J$187,IF(OR(B48='Model update'!$P$188,B48='Model update'!$Q$188,B48='Model update'!$R$188,B48='Model update'!$S$188,B48='Model update'!$T$188,B48='Model update'!$U$188,B48='Model update'!$V$188,B48='Model update'!$W$188),'Model update'!$J$188,'Model update'!$J$186)) -> -0.009825264614 | L48: =J48*(1+'Model update'!$B$31)*(1-'2021_ACS service & prices'!K48)+'Model update'!$J$196 -> 490.0249056
B49: EE_57 | C49: =VLOOKUP(B49,'2020-21 feebased approved'!$A$4:$H$313,2,FALSE) -> RNV1MAU | D49: Connection application and management services | E49: Re-energisation | F49: Retailer or metering coordinator/provider requests a visual examination upon re-energisation (physical or remote) of the customer’s premises. | G49: AFTER HOURS - NO CT | H49: Urban/Short Rural | I49: Fee Based | J49: =VLOOKUP(B49,'2020-21 feebased approved'!$A$4:$H$313,'2020-21 feebased approved'!$H$1,FALSE) -> 190.88675 | K49: =IF(OR(B49='Model update'!$P$187,B49='Model update'!$Q$187,B49='Model update'!$R$187,B49='Model update'!$S$187,B49='Model update'!$T$187,B49='Model update'!$U$187,B49='Model update'!$V$187,B49='Model update'!$W$187),'Model update'!$J$187,IF(OR(B49='Model update'!$P$188,B49='Model update'!$Q$188,B49='Model update'!$R$188,B49='Model update'!$S$188,B49='Model update'!$T$188,B49='Model update'!$U$188,B49='Model update'!$V$188,B49='Model update'!$W$188),'Model update'!$J$188,'Model update'!$J$186)) -> -0.009825264614 | L49: =J49*(1+'Model update'!$B$31)*(1-'2021_ACS service & prices'!K49)+'Model update'!$J$196 -> 194.4211463
B50: EE_58 | C50: =VLOOKUP(B50,'2020-21 feebased approved'!$A$4:$H$313,2,FALSE) -> RNV1MAL RNV1MAI | D50: Connection application and management services | E50: Re-energisation | F50: Retailer or metering coordinator/provider requests a visual examination upon re-energisation (physical or remote) of the customer’s premises. | G50: AFTER HOURS - NO CT | H50: Long rural/Isolated | I50: Fee Based | J50: =VLOOKUP(B50,'2020-21 feebased approved'!$A$4:$H$313,'2020-21 feebased approved'!$H$1,FALSE) -> 574.9600904 | K50: =IF(OR(B50='Model update'!$P$187,B50='Model update'!$Q$187,B50='Model update'!$R$187,B50='Model update'!$S$187,B50='Model update'!$T$187,B50='Model update'!$U$187,B50='Model update'!$V$187,B50='Model update'!$W$187),'Model update'!$J$187,IF(OR(B50='Model update'!$P$188,B50='Model update'!$Q$188,B50='Model update'!$R$188,B50='Model update'!$S$188,B50='Model update'!$T$188,B50='Model update'!$U$188,B50='Model update'!$V$188,B50='Model update'!$W$188),'Model update'!$J$188,'Model update'!$J$186)) -> -0.009825264614 | L50: =J50*(1+'Model update'!$B$31)*(1-'2021_ACS service & prices'!K50)+'Model update'!$J$196 -> 585.6058625
B51: EE_59 | C51: =VLOOKUP(B51,'2020-21 feebased approved'!$A$4:$H$313,2,FALSE) -> RNV2MAU | D51: Connection application and management services | E51: Re-energisation | F51: Retailer or metering coordinator/provider requests a visual examination upon re-energisation (physical or remote) of the customer’s premises. | G51: AFTER HOURS - CT | H51: Urban/Short Rural | I51: Fee Based | J51: =VLOOKUP(B51,'2020-21 feebased approved'!$A$4:$H$313,'2020-21 feebased approved'!$H$1,FALSE) -> 248.3827591 | K51: =IF(OR(B51='Model update'!$P$187,B51='Model update'!$Q$187,B51='Model update'!$R$187,B51='Model update'!$S$187,B51='Model update'!$T$187,B51='Model update'!$U$187,B51='Model update'!$V$187,B51='Model update'!$W$187),'Model update'!$J$187,IF(OR(B51='Model update'!$P$188,B51='Model update'!$Q$188,B51='Model update'!$R$188,B51='Model update'!$S$188,B51='Model update'!$T$188,B51='Model update'!$U$188,B51='Model update'!$V$188,B51='Model update'!$W$188),'Model update'!$J$188,'Model update'!$J$186)) -> -0.009825264614 | L51: =J51*(1+'Model update'!$B$31)*(1-'2021_ACS service & prices'!K51)+'Model update'!$J$196 -> 252.9817326
B52: EE_60 | C52: =VLOOKUP(B52,'2020-21 feebased approved'!$A$4:$H$313,2,FALSE) -> RNV2MAL RNV2MAI | D52: Connection application and management services | E52: Re-energisation | F52: Retailer or metering coordinator/provider requests a visual examination upon re-energisation (physical or remote) of the customer’s premises. | G52: AFTER HOURS - CT | H52: Long rural/Isolated | I52: Fee Based | J52: =VLOOKUP(B52,'2020-21 feebased approved'!$A$4:$H$313,'2020-21 feebased approved'!$H$1,FALSE) -> 632.4560994 | K52: =IF(OR(B52='Model update'!$P$187,B52='Model update'!$Q$187,B52='Model update'!$R$187,B52='Model update'!$S$187,B52='Model update'!$T$187,B52='Model update'!$U$187,B52='Model update'!$V$187,B52='Model update'!$W$187),'Model update'!$J$187,IF(OR(B52='Model update'!$P$188,B52='Model update'!$Q$188,B52='Model update'!$R$188,B52='Model update'!$S$188,B52='Model update'!$T$188,B52='Model update'!$U$188,B52='Model update'!$V$188,B52='Model update'!$W$188),'Model update'!$J$188,'Model update'!$J$186)) -> -0.009825264614 | L52: =J52*(1+'Model update'!$B$31)*(1-'2021_ACS service & prices'!K52)+'Model update'!$J$196 -> 644.1664487
B53: EE_61 | C53: =VLOOKUP(B53,'2020-21 feebased approved'!$A$4:$H$313,2,FALSE) -> RNV1MTU | D53: Connection application and management services | E53: Re-energisation | F53: Retailer or metering coordinator/provider requests a visual examination upon re-energisation (physical or remote) of the customer’s premises. | G53: ANYTIME - NO CT | H53: Urban/Short Rural | I53: Fee Based | J53: =VLOOKUP(B53,'2020-21 feebased approved'!$A$4:$H$313,'2020-21 feebased approved'!$H$1,FALSE) -> 190.88675 | K53: =IF(OR(B53='Model update'!$P$187,B53='Model update'!$Q$187,B53='Model update'!$R$187,B53='Model update'!$S$187,B53='Model update'!$T$187,B53='Model update'!$U$187,B53='Model update'!$V$187,B53='Model update'!$W$187),'Model update'!$J$187,IF(OR(B53='Model update'!$P$188,B53='Model update'!$Q$188,B53='Model update'!$R$188,B53='Model update'!$S$188,B53='Model update'!$T$188,B53='Model update'!$U$188,B53='Model update'!$V$188,B53='Model update'!$W$188),'Model update'!$J$188,'Model update'!$J$186)) -> -0.009825264614 | L53: =J53*(1+'Model update'!$B$31)*(1-'2021_ACS service & prices'!K53)+'Model update'!$J$196 -> 194.4211463
B54: EE_62 | C54: =VLOOKUP(B54,'2020-21 feebased approved'!$A$4:$H$313,2,FALSE) -> RNV2MTU | D54: Connection application and management services | E54: Re-energisation | F54: Retailer or metering coordinator/provider requests a visual examination upon re-energisation (physical or remote) of the customer’s premises. | G54: ANYTIME - CT | H54: Urban/Short Rural | I54: Fee Based | J54: =VLOOKUP(B54,'2020-21 feebased approved'!$A$4:$H$313,'2020-21 feebased approved'!$H$1,FALSE) -> 248.3827591 | K54: =IF(OR(B54='Model update'!$P$187,B54='Model update'!$Q$187,B54='Model update'!$R$187,B54='Model update'!$S$187,B54='Model update'!$T$187,B54='Model update'!$U$187,B54='Model update'!$V$187,B54='Model update'!$W$187),'Model update'!$J$187,IF(OR(B54='Model update'!$P$188,B54='Model update'!$Q$188,B54='Model update'!$R$188,B54='Model update'!$S$188,B54='Model update'!$T$188,B54='Model update'!$U$188,B54='Model update'!$V$188,B54='Model update'!$W$188),'Model update'!$J$188,'Model update'!$J$186)) -> -0.009825264614 | L54: =J54*(1+'Model update'!$B$31)*(1-'2021_ACS service & prices'!K54)+'Model update'!$J$196 -> 252.9817326
B55: EE_63 | C55: =VLOOKUP(B55,'2020-21 feebased approved'!$A$4:$H$313,2,FALSE) -> RN$V1MBU | D55: Connection application and management services | E55: Re-energisation | F55: Retailer or metering coordinator/provider requests a visual examination upon re-energisation (physical) of the customer’s premises where the customer has not paid their electricity account. NMI de-energised > 30 days. | G55: BUSINESS HOURS - NO CT | H55: Urban/Short Rural | I55: Fee Based | J55: =VLOOKUP(B55,'2020-21 feebased approved'!$A$4:$H$313,'2020-21 feebased approved'!$H$1,FALSE) -> 145.2097697 | K55: =IF(OR(B55='Model update'!$P$187,B55='Model update'!$Q$187,B55='Model update'!$R$187,B55='Model update'!$S$187,B55='Model update'!$T$187,B55='Model update'!$U$187,B55='Model update'!$V$187,B55='Model update'!$W$187),'Model update'!$J$187,IF(OR(B55='Model update'!$P$188,B55='Model update'!$Q$188,B55='Model update'!$R$188,B55='Model update'!$S$188,B55='Model update'!$T$188,B55='Model update'!$U$188,B55='Model update'!$V$188,B55='Model update'!$W$188),'Model update'!$J$188,'Model update'!$J$186)) -> -0.009825264614 | L55: =J55*(1+'Model update'!$B$31)*(1-'2021_ACS service & prices'!K55)+'Model update'!$J$196 -> 147.8984261
B56: EE_64 | C56: =VLOOKUP(B56,'2020-21 feebased approved'!$A$4:$H$313,2,FALSE) -> RN$V1MBL RN$V1MBI | D56: Connection application and management services | E56: Re-energisation | F56: Retailer or metering coordinator/provider requests a visual examination upon re-energisation (physical) of the customer’s premises where the customer has not paid their electricity account. NMI de-energised > 30 days. | G56: BUSINESS HOURS - NO CT | H56: Long rural/Isolated | I56: Fee Based | J56: =VLOOKUP(B56,'2020-21 feebased approved'!$A$4:$H$313,'2020-21 feebased approved'!$H$1,FALSE) -> 437.3788244 | K56: =IF(OR(B56='Model update'!$P$187,B56='Model update'!$Q$187,B56='Model update'!$R$187,B56='Model update'!$S$187,B56='Model update'!$T$187,B56='Model update'!$U$187,B56='Model update'!$V$187,B56='Model update'!$W$187),'Model update'!$J$187,IF(OR(B56='Model update'!$P$188,B56='Model update'!$Q$188,B56='Model update'!$R$188,B56='Model update'!$S$188,B56='Model update'!$T$188,B56='Model update'!$U$188,B56='Model update'!$V$188,B56='Model update'!$W$188),'Model update'!$J$188,'Model update'!$J$186)) -> -0.009825264614 | L56: =J56*(1+'Model update'!$B$31)*(1-'2021_ACS service & prices'!K56)+'Model update'!$J$196 -> 445.4771869
B57: EE_65 | C57: =VLOOKUP(B57,'2020-21 feebased approved'!$A$4:$H$313,2,FALSE) -> RN$V1MAU | D57: Connection application and management services | E57: Re-energisation | F57: Retailer or metering coordinator/provider requests a visual examination upon re-energisation (physical) of the customer’s premises where the customer has not paid their electricity account. NMI de-energised > 30 days. | G57: AFTER HOURS - NO CT | H57: Urban/Short Rural | I57: Fee Based | J57: =VLOOKUP(B57,'2020-21 feebased approved'!$A$4:$H$313,'2020-21 feebased approved'!$H$1,FALSE) -> 190.88675 | K57: =IF(OR(B57='Model update'!$P$187,B57='Model update'!$Q$187,B57='Model update'!$R$187,B57='Model update'!$S$187,B57='Model update'!$T$187,B57='Model update'!$U$187,B57='Model update'!$V$187,B57='Model update'!$W$187),'Model update'!$J$187,IF(OR(B57='Model update'!$P$188,B57='Model update'!$Q$188,B57='Model update'!$R$188,B57='Model update'!$S$188,B57='Model update'!$T$188,B57='Model update'!$U$188,B57='Model update'!$V$188,B57='Model update'!$W$188),'Model update'!$J$188,'Model update'!$J$186)) -> -0.009825264614 | L57: =J57*(1+'Model update'!$B$31)*(1-'2021_ACS service & prices'!K57)+'Model update'!$J$196 -> 194.4211463
B58: EE_66 | C58: =VLOOKUP(B58,'2020-21 feebased approved'!$A$4:$H$313,2,FALSE) -> RN$V1MAL RN$V1MAI | D58: Connection application and management services | E58: Re-energisation | F58: Retailer or metering coordinator/provider requests a visual examination upon re-energisation (physical) of the customer’s premises where the customer has not paid their electricity account. NMI de-energised > 30 days. | G58: AFTER HOURS - NO CT | H58: Long rural/Isolated | I58: Fee Based | J58: =VLOOKUP(B58,'2020-21 feebased approved'!$A$4:$H$313,'2020-21 feebased approved'!$H$1,FALSE) -> 574.9600904 | K58: =IF(OR(B58='Model update'!$P$187,B58='Model update'!$Q$187,B58='Model update'!$R$187,B58='Model update'!$S$187,B58='Model update'!$T$187,B58='Model update'!$U$187,B58='Model update'!$V$187,B58='Model update'!$W$187),'Model update'!$J$187,IF(OR(B58='Model update'!$P$188,B58='Model update'!$Q$188,B58='Model update'!$R$188,B58='Model update'!$S$188,B58='Model update'!$T$188,B58='Model update'!$U$188,B58='Model update'!$V$188,B58='Model update'!$W$188),'Model update'!$J$188,'Model update'!$J$186)) -> -0.009825264614 | L58: =J58*(1+'Model update'!$B$31)*(1-'2021_ACS service & prices'!K58)+'Model update'!$J$196 -> 585.6058625
B59: EE_67 | C59: =VLOOKUP(B59,'2020-21 feebased approved'!$A$4:$H$313,2,FALSE) -> RN$V1MTU | D59: Connection application and management services | E59: Re-energisation | F59: Retailer or metering coordinator/provider requests a visual examination upon re-energisation (physical) of the customer’s premises where the customer has not paid their electricity account. NMI de-energised > 30 days. | G59: ANYTIME - NO CT | H59: Urban/Short Rural | I59: Fee Based | J59: =VLOOKUP(B59,'2020-21 feebased approved'!$A$4:$H$313,'2020-21 feebased approved'!$H$1,FALSE) -> 190.88675 | K59: =IF(OR(B59='Model update'!$P$187,B59='Model update'!$Q$187,B59='Model update'!$R$187,B59='Model update'!$S$187,B59='Model update'!$T$187,B59='Model update'!$U$187,B59='Model update'!$V$187,B59='Model update'!$W$187),'Model update'!$J$187,IF(OR(B59='Model update'!$P$188,B59='Model update'!$Q$188,B59='Model update'!$R$188,B59='Model update'!$S$188,B59='Model update'!$T$188,B59='Model update'!$U$188,B59='Model update'!$V$188,B59='Model update'!$W$188),'Model update'!$J$188,'Model update'!$J$186)) -> -0.009825264614 | L59: =J59*(1+'Model update'!$B$31)*(1-'2021_ACS service & prices'!K59)+'Model update'!$J$196 -> 194.4211463
B60: EE_68 | C60: =VLOOKUP(B60,'2020-21 feebased approved'!$A$4:$H$313,2,FALSE) -> RN$V2MBU | D60: Connection application and management services | E60: Re-energisation | F60: Retailer or metering coordinator/provider requests a visual examination upon re-energisation (physical) of the customer’s premises where the customer has not paid their electricity account. NMI de-energised > 30 days. | G60: BUSINESS HOURS - CT | H60: Urban/Short Rural | I60: Fee Based | J60: =VLOOKUP(B60,'2020-21 feebased approved'!$A$4:$H$313,'2020-21 feebased approved'!$H$1,FALSE) -> 188.9476521 | K60: =IF(OR(B60='Model update'!$P$187,B60='Model update'!$Q$187,B60='Model update'!$R$187,B60='Model update'!$S$187,B60='Model update'!$T$187,B60='Model update'!$U$187,B60='Model update'!$V$187,B60='Model update'!$W$187),'Model update'!$J$187,IF(OR(B60='Model update'!$P$188,B60='Model update'!$Q$188,B60='Model update'!$R$188,B60='Model update'!$S$188,B60='Model update'!$T$188,B60='Model update'!$U$188,B60='Model update'!$V$188,B60='Model update'!$W$188),'Model update'!$J$188,'Model update'!$J$186)) -> -0.009825264614 | L60: =J60*(1+'Model update'!$B$31)*(1-'2021_ACS service & prices'!K60)+'Model update'!$J$196 -> 192.4461448
B61: EE_69 | C61: =VLOOKUP(B61,'2020-21 feebased approved'!$A$4:$H$313,2,FALSE) -> RN$V2MBL RN$V2MBI | D61: Connection application and management services | E61: Re-energisation | F61: Retailer or metering coordinator/provider requests a visual examination upon re-energisation (physical) of the customer’s premises where the customer has not paid their electricity account. NMI de-energised > 30 days. | G61: BUSINESS HOURS - CT | H61: Long rural/Isolated | I61: Fee Based | J61: =VLOOKUP(B61,'2020-21 feebased approved'!$A$4:$H$313,'2020-21 feebased approved'!$H$1,FALSE) -> 481.1167068 | K61: =IF(OR(B61='Model update'!$P$187,B61='Model update'!$Q$187,B61='Model update'!$R$187,B61='Model update'!$S$187,B61='Model update'!$T$187,B61='Model update'!$U$187,B61='Model update'!$V$187,B61='Model update'!$W$187),'Model update'!$J$187,IF(OR(B61='Model update'!$P$188,B61='Model update'!$Q$188,B61='Model update'!$R$188,B61='Model update'!$S$188,B61='Model update'!$T$188,B61='Model update'!$U$188,B61='Model update'!$V$188,B61='Model update'!$W$188),'Model update'!$J$188,'Model update'!$J$186)) -> -0.009825264614 | L61: =J61*(1+'Model update'!$B$31)*(1-'2021_ACS service & prices'!K61)+'Model update'!$J$196 -> 490.0249056
B62: EE_70 | C62: =VLOOKUP(B62,'2020-21 feebased approved'!$A$4:$H$313,2,FALSE) -> RN$V2MAU | D62: Connection application and management services | E62: Re-energisation | F62: Retailer or metering coordinator/provider requests a visual examination upon re-energisation (physical) of the customer’s premises where the customer has not paid their electricity account. NMI de-energised > 30 days. | G62: AFTER HOURS - CT | H62: Urban/Short Rural | I62: Fee Based | J62: =VLOOKUP(B62,'2020-21 feebased approved'!$A$4:$H$313,'2020-21 feebased approved'!$H$1,FALSE) -> 248.3827591 | K62: =IF(OR(B62='Model update'!$P$187,B62='Model update'!$Q$187,B62='Model update'!$R$187,B62='Model update'!$S$187,B62='Model update'!$T$187,B62='Model update'!$U$187,B62='Model update'!$V$187,B62='Model update'!$W$187),'Model update'!$J$187,IF(OR(B62='Model update'!$P$188,B62='Model update'!$Q$188,B62='Model update'!$R$188,B62='Model update'!$S$188,B62='Model update'!$T$188,B62='Model update'!$U$188,B62='Model update'!$V$188,B62='Model update'!$W$188),'Model update'!$J$188,'Model update'!$J$186)) -> -0.009825264614 | L62: =J62*(1+'Model update'!$B$31)*(1-'2021_ACS service & prices'!K62)+'Model update'!$J$196 -> 252.9817326
B63: EE_71 | C63: =VLOOKUP(B63,'2020-21 feebased approved'!$A$4:$H$313,2,FALSE) -> RN$V2MAL RN$V2MAI | D63: Connection application and management services | E63: Re-energisation | F63: Retailer or metering coordinator/provider requests a visual examination upon re-energisation (physical) of the customer’s premises where the customer has not paid their electricity account. NMI de-energised > 30 days. | G63: AFTER HOURS - CT | H63: Long rural/Isolated | I63: Fee Based | J63: =VLOOKUP(B63,'2020-21 feebased approved'!$A$4:$H$313,'2020-21 feebased approved'!$H$1,FALSE) -> 632.4560994 | K63: =IF(OR(B63='Model update'!$P$187,B63='Model update'!$Q$187,B63='Model update'!$R$187,B63='Model update'!$S$187,B63='Model update'!$T$187,B63='Model update'!$U$187,B63='Model update'!$V$187,B63='Model update'!$W$187),'Model update'!$J$187,IF(OR(B63='Model update'!$P$188,B63='Model update'!$Q$188,B63='Model update'!$R$188,B63='Model update'!$S$188,B63='Model update'!$T$188,B63='Model update'!$U$188,B63='Model update'!$V$188,B63='Model update'!$W$188),'Model update'!$J$188,'Model update'!$J$186)) -> -0.009825264614 | L63: =J63*(1+'Model update'!$B$31)*(1-'2021_ACS service & prices'!K63)+'Model update'!$J$196 -> 644.1664487
B64: EE_72 | C64: =VLOOKUP(B64,'2020-21 feebased approved'!$A$4:$H$313,2,FALSE) -> RN$V2MTU | D64: Connection application and management services | E64: Re-energisation | F64: Retailer or metering coordinator/provider requests a visual examination upon re-energisation (physical) of the customer’s premises where the customer has not paid their electricity account. NMI de-energised > 30 days. | G64: ANYTIME - CT | H64: Urban/Short Rural | I64: Fee Based | J64: =VLOOKUP(B64,'2020-21 feebased approved'!$A$4:$H$313,'2020-21 feebased approved'!$H$1,FALSE) -> 248.3827591 | K64: =IF(OR(B64='Model update'!$P$187,B64='Model update'!$Q$187,B64='Model update'!$R$187,B64='Model update'!$S$187,B64='Model update'!$T$187,B64='Model update'!$U$187,B64='Model update'!$V$187,B64='Model update'!$W$187),'Model update'!$J$187,IF(OR(B64='Model update'!$P$188,B64='Model update'!$Q$188,B64='Model update'!$R$188,B64='Model update'!$S$188,B64='Model update'!$T$188,B64='Model update'!$U$188,B64='Model update'!$V$188,B64='Model update'!$W$188),'Model update'!$J$188,'Model update'!$J$186)) -> -0.009825264614 | L64: =J64*(1+'Model update'!$B$31)*(1-'2021_ACS service & prices'!K64)+'Model update'!$J$196 -> 252.9817326
B65: EE_73 | C65: =VLOOKUP(B65,'2020-21 feebased approved'!$A$4:$H$313,2,FALSE) -> RNR$B | D65: Connection application and management services | E65: Re-energisation | F65: Retailer or third party requested remote re-energisation via the meter after remote de-energisation non payment (PoC Exempt locations only) | G65: BUSINESS HOURS | H65: N/A | I65: Fee Based | J65: =VLOOKUP(B65,'2020-21 feebased approved'!$A$4:$H$313,'2020-21 feebased approved'!$H$1,FALSE) -> 94.74845305 | K65: =IF(OR(B65='Model update'!$P$187,B65='Model update'!$Q$187,B65='Model update'!$R$187,B65='Model update'!$S$187,B65='Model update'!$T$187,B65='Model update'!$U$187,B65='Model update'!$V$187,B65='Model update'!$W$187),'Model update'!$J$187,IF(OR(B65='Model update'!$P$188,B65='Model update'!$Q$188,B65='Model update'!$R$188,B65='Model update'!$S$188,B65='Model update'!$T$188,B65='Model update'!$U$188,B65='Model update'!$V$188,B65='Model update'!$W$188),'Model update'!$J$188,'Model update'!$J$186)) -> -0.009825264614 | L65: =J65*(1+'Model update'!$B$31)*(1-'2021_ACS service & prices'!K65)+'Model update'!$J$196 -> 96.50278427
B66: EE_74 | C66: =VLOOKUP(B66,'2020-21 feebased approved'!$A$4:$H$313,2,FALSE) -> RNR$A | D66: Connection application and management services | E66: Re-energisation | F66: Retailer or third party requested remote re-energisation via the meter after remote de-energisation non payment (PoC Exempt locations only) | G66: AFTER HOURS | H66: N/A | I66: Fee Based | J66: =VLOOKUP(B66,'2020-21 feebased approved'!$A$4:$H$313,'2020-21 feebased approved'!$H$1,FALSE) -> 119.2870813 | K66: =IF(OR(B66='Model update'!$P$187,B66='Model update'!$Q$187,B66='Model update'!$R$187,B66='Model update'!$S$187,B66='Model update'!$T$187,B66='Model update'!$U$187,B66='Model update'!$V$187,B66='Model update'!$W$187),'Model update'!$J$187,IF(OR(B66='Model update'!$P$188,B66='Model update'!$Q$188,B66='Model update'!$R$188,B66='Model update'!$S$188,B66='Model update'!$T$188,B66='Model update'!$U$188,B66='Model update'!$V$188,B66='Model update'!$W$188),'Model update'!$J$188,'Model update'!$J$186)) -> -0.009825264614 | L66: =J66*(1+'Model update'!$B$31)*(1-'2021_ACS service & prices'!K66)+'Model update'!$J$196 -> 121.4957617
B67: EE_75 | C67: =VLOOKUP(B67,'2020-21 feebased approved'!$A$4:$H$313,2,FALSE) -> RNR$T | D67: Connection application and management services | E67: Re-energisation | F67: Retailer or third party requested remote re-energisation via the meter after remote de-energisation non payment (PoC Exempt locations only) | G67: ANYTIME | H67: N/A | I67: Fee Based | J67: =VLOOKUP(B67,'2020-21 feebased approved'!$A$4:$H$313,'2020-21 feebased approved'!$H$1,FALSE) -> 119.2870813 | K67: =IF(OR(B67='Model update'!$P$187,B67='Model update'!$Q$187,B67='Model update'!$R$187,B67='Model update'!$S$187,B67='Model update'!$T$187,B67='Model update'!$U$187,B67='Model update'!$V$187,B67='Model update'!$W$187),'Model update'!$J$187,IF(OR(B67='Model update'!$P$188,B67='Model update'!$Q$188,B67='Model update'!$R$188,B67='Model update'!$S$188,B67='Model update'!$T$188,B67='Model update'!$U$188,B67='Model update'!$V$188,B67='Model update'!$W$188),'Model update'!$J$188,'Model update'!$J$186)) -> -0.009825264614 | L67: =J67*(1+'Model update'!$B$31)*(1-'2021_ACS service & prices'!K67)+'Model update'!$J$196 -> 121.4957617
B68: EE_76 | C68: =VLOOKUP(B68,'2020-21 feebased approved'!$A$4:$H$313,2,FALSE) -> RNRVB | D68: Connection application and management services | E68: Re-energisation | F68: Retailer or third party requested remote re-energisation via the meter after remote de-energisation (PoC Exempt locations only) | G68: BUSINESS HOURS | H68: N/A | I68: Fee Based | J68: =VLOOKUP(B68,'2020-21 feebased approved'!$A$4:$H$313,'2020-21 feebased approved'!$H$1,FALSE) -> 94.74845305 | K68: =IF(OR(B68='Model update'!$P$187,B68='Model update'!$Q$187,B68='Model update'!$R$187,B68='Model update'!$S$187,B68='Model update'!$T$187,B68='Model update'!$U$187,B68='Model update'!$V$187,B68='Model update'!$W$187),'Model update'!$J$187,IF(OR(B68='Model update'!$P$188,B68='Model update'!$Q$188,B68='Model update'!$R$188,B68='Model update'!$S$188,B68='Model update'!$T$188,B68='Model update'!$U$188,B68='Model update'!$V$188,B68='Model update'!$W$188),'Model update'!$J$188,'Model update'!$J$186)) -> -0.009825264614 | L68: =J68*(1+'Model update'!$B$31)*(1-'2021_ACS service & prices'!K68)+'Model update'!$J$196 -> 96.50278427
B69: EE_77 | C69: =VLOOKUP(B69,'2020-21 feebased approved'!$A$4:$H$313,2,FALSE) -> RNRVA | D69: Connection application and management services | E69: Re-energisation | F69: Retailer or third party requested remote re-energisation via the meter after remote de-energisation (PoC Exempt locations only) | G69: AFTER HOURS | H69: N/A | I69: Fee Based | J69: =VLOOKUP(B69,'2020-21 feebased approved'!$A$4:$H$313,'2020-21 feebased approved'!$H$1,FALSE) -> 119.2870813 | K69: =IF(OR(B69='Model update'!$P$187,B69='Model update'!$Q$187,B69='Model update'!$R$187,B69='Model update'!$S$187,B69='Model update'!$T$187,B69='Model update'!$U$187,B69='Model update'!$V$187,B69='Model update'!$W$187),'Model update'!$J$187,IF(OR(B69='Model update'!$P$188,B69='Model update'!$Q$188,B69='Model update'!$R$188,B69='Model update'!$S$188,B69='Model update'!$T$188,B69='Model update'!$U$188,B69='Model update'!$V$188,B69='Model update'!$W$188),'Model update'!$J$188,'Model update'!$J$186)) -> -0.009825264614 | L69: =J69*(1+'Model update'!$B$31)*(1-'2021_ACS service & prices'!K69)+'Model update'!$J$196 -> 121.4957617
B70: EE_78 | C70: =VLOOKUP(B70,'2020-21 feebased approved'!$A$4:$H$313,2,FALSE) -> RNRVT | D70: Connection application and management services | E70: Re-energisation | F70: Retailer or third party requested remote re-energisation via the meter after remote de-energisation (PoC Exempt locations only) | G70: ANYTIME | H70: N/A | I70: Fee Based | J70: =VLOOKUP(B70,'2020-21 feebased approved'!$A$4:$H$313,'2020-21 feebased approved'!$H$1,FALSE) -> 119.2870813 | K70: =IF(OR(B70='Model update'!$P$187,B70='Model update'!$Q$187,B70='Model update'!$R$187,B70='Model update'!$S$187,B70='Model update'!$T$187,B70='Model update'!$U$187,B70='Model update'!$V$187,B70='Model update'!$W$187),'Model update'!$J$187,IF(OR(B70='Model update'!$P$188,B70='Model update'!$Q$188,B70='Model update'!$R$188,B70='Model update'!$S$188,B70='Model update'!$T$188,B70='Model update'!$U$188,B70='Model update'!$V$188,B70='Model update'!$W$188),'Model update'!$J$188,'Model update'!$J$186)) -> -0.009825264614 | L70: =J70*(1+'Model update'!$B$31)*(1-'2021_ACS service & prices'!K70)+'Model update'!$J$196 -> 121.4957617
B71: EE_79 | C71: =VLOOKUP(B71,'2020-21 feebased approved'!$A$4:$H$313,2,FALSE) -> TDNNDBU | D71: Connection application and management services | E71: Temporary disconnections and reconnections (which may involve a line drop) | F71: Temporary de-energisation and re-energisation of supply to allow customer or contractor to work close - the supply will be disconnected | G71: No Dismantling - BUSINESS HOURS | H71: Urban/Short Rural | I71: Fee Based | J71: =VLOOKUP(B71,'2020-21 feebased approved'!$A$4:$H$313,'2020-21 feebased approved'!$H$1,FALSE) -> 349.9030595 | K71: =IF(OR(B71='Model update'!$P$187,B71='Model update'!$Q$187,B71='Model update'!$R$187,B71='Model update'!$S$187,B71='Model update'!$T$187,B71='Model update'!$U$187,B71='Model update'!$V$187,B71='Model update'!$W$187),'Model update'!$J$187,IF(OR(B71='Model update'!$P$188,B71='Model update'!$Q$188,B71='Model update'!$R$188,B71='Model update'!$S$188,B71='Model update'!$T$188,B71='Model update'!$U$188,B71='Model update'!$V$188,B71='Model update'!$W$188),'Model update'!$J$188,'Model update'!$J$186)) -> -0.009825264614 | L71: =J71*(1+'Model update'!$B$31)*(1-'2021_ACS service & prices'!K71)+'Model update'!$J$196 -> 356.3817495
B72: EE_80 | C72: =VLOOKUP(B72,'2020-21 feebased approved'!$A$4:$H$313,2,FALSE) -> TDNNDBL TDNNDBI | D72: Connection application and management services | E72: Temporary disconnections and reconnections (which may involve a line drop) | F72: Temporary de-energisation and re-energisation of supply to allow customer or contractor to work close - the supply will be disconnected | G72: No Dismantling - BUSINESS HOURS | H72: Long rural/Isolated | I72: Fee Based | J72: =VLOOKUP(B72,'2020-21 feebased approved'!$A$4:$H$313,'2020-21 feebased approved'!$H$1,FALSE) -> 934.2411688 | K72: =IF(OR(B72='Model update'!$P$187,B72='Model update'!$Q$187,B72='Model update'!$R$187,B72='Model update'!$S$187,B72='Model update'!$T$187,B72='Model update'!$U$187,B72='Model update'!$V$187,B72='Model update'!$W$187),'Model update'!$J$187,IF(OR(B72='Model update'!$P$188,B72='Model update'!$Q$188,B72='Model update'!$R$188,B72='Model update'!$S$188,B72='Model update'!$T$188,B72='Model update'!$U$188,B72='Model update'!$V$188,B72='Model update'!$W$188),'Model update'!$J$188,'Model update'!$J$186)) -> -0.009825264614 | L72: =J72*(1+'Model update'!$B$31)*(1-'2021_ACS service & prices'!K72)+'Model update'!$J$196 -> 951.5392713
B73: EE_81 | C73: =VLOOKUP(B73,'2020-21 feebased approved'!$A$4:$H$313,2,FALSE) -> TDNNDAU | D73: Connection application and management services | E73: Temporary disconnections and reconnections (which may involve a line drop) | F73: Temporary de-energisation and re-energisation of supply to allow customer or contractor to work close - the supply will be disconnected | G73: No Dismantling - AFTER HOURS | H73: Urban/Short Rural | I73: Fee Based | J73: =VLOOKUP(B73,'2020-21 feebased approved'!$A$4:$H$313,'2020-21 feebased approved'!$H$1,FALSE) -> 459.9680723 | K73: =IF(OR(B73='Model update'!$P$187,B73='Model update'!$Q$187,B73='Model update'!$R$187,B73='Model update'!$S$187,B73='Model update'!$T$187,B73='Model update'!$U$187,B73='Model update'!$V$187,B73='Model update'!$W$187),'Model update'!$J$187,IF(OR(B73='Model update'!$P$188,B73='Model update'!$Q$188,B73='Model update'!$R$188,B73='Model update'!$S$188,B73='Model update'!$T$188,B73='Model update'!$U$188,B73='Model update'!$V$188,B73='Model update'!$W$188),'Model update'!$J$188,'Model update'!$J$186)) -> -0.009825264614 | L73: =J73*(1+'Model update'!$B$31)*(1-'2021_ACS service & prices'!K73)+'Model update'!$J$196 -> 468.48469
B74: EE_82 | C74: =VLOOKUP(B74,'2020-21 feebased approved'!$A$4:$H$313,2,FALSE) -> TDNNDAL TDNNDAI | D74: Connection application and management services | E74: Temporary disconnections and reconnections (which may involve a line drop) | F74: Temporary de-energisation and re-energisation of supply to allow customer or contractor to work close - the supply will be disconnected | G74: No Dismantling - AFTER HOURS | H74: Long rural/Isolated | I74: Fee Based | J74: =VLOOKUP(B74,'2020-21 feebased approved'!$A$4:$H$313,'2020-21 feebased approved'!$H$1,FALSE) -> 1228.114753 | K74: =IF(OR(B74='Model update'!$P$187,B74='Model update'!$Q$187,B74='Model update'!$R$187,B74='Model update'!$S$187,B74='Model update'!$T$187,B74='Model update'!$U$187,B74='Model update'!$V$187,B74='Model update'!$W$187),'Model update'!$J$187,IF(OR(B74='Model update'!$P$188,B74='Model update'!$Q$188,B74='Model update'!$R$188,B74='Model update'!$S$188,B74='Model update'!$T$188,B74='Model update'!$U$188,B74='Model update'!$V$188,B74='Model update'!$W$188),'Model update'!$J$188,'Model update'!$J$186)) -> -0.009825264614 | L74: =J74*(1+'Model update'!$B$31)*(1-'2021_ACS service & prices'!K74)+'Model update'!$J$196 -> 1250.854122
B75: EE_85 | C75: =VLOOKUP(B75,'2020-21 feebased approved'!$A$4:$H$313,2,FALSE) -> TDNSPBU | D75: Connection application and management services | E75: Temporary disconnections and reconnections (which may involve a line drop) | F75: Temporary de-energisation and re-energisation of supply to allow customer or contractor to work close - the service may be physically dismantled or disconnected (e.g. overhead service dropped). This services includes switching if required. | G75: Dismantling - SINGLE PHASE - BUSINESS HOURS | H75: Urban/Short Rural | I75: Fee Based | J75: =VLOOKUP(B75,'2020-21 feebased approved'!$A$4:$H$313,'2020-21 feebased approved'!$H$1,FALSE) -> 815.2741286 | K75: =IF(OR(B75='Model update'!$P$187,B75='Model update'!$Q$187,B75='Model update'!$R$187,B75='Model update'!$S$187,B75='Model update'!$T$187,B75='Model update'!$U$187,B75='Model update'!$V$187,B75='Model update'!$W$187),'Model update'!$J$187,IF(OR(B75='Model update'!$P$188,B75='Model update'!$Q$188,B75='Model update'!$R$188,B75='Model update'!$S$188,B75='Model update'!$T$188,B75='Model update'!$U$188,B75='Model update'!$V$188,B75='Model update'!$W$188),'Model update'!$J$188,'Model update'!$J$186)) -> -0.009825264614 | L75: =J75*(1+'Model update'!$B$31)*(1-'2021_ACS service & prices'!K75)+'Model update'!$J$196 -> 830.3694764
B76: EE_86 | C76: =VLOOKUP(B76,'2020-21 feebased approved'!$A$4:$H$313,2,FALSE) -> TDNSPBL TDNSPBI | D76: Connection application and management services | E76: Temporary disconnections and reconnections (which may involve a line drop) | F76: Temporary de-energisation and re-energisation of supply to allow customer or contractor to work close - the service may be physically dismantled or disconnected (e.g. overhead service dropped). This services includes switching if required. | G76: Dismantling - SINGLE PHASE - BUSINESS HOURS | H76: Long rural/Isolated | I76: Fee Based | J76: =VLOOKUP(B76,'2020-21 feebased approved'!$A$4:$H$313,'2020-21 feebased approved'!$H$1,FALSE) -> 1399.612238 | K76: =IF(OR(B76='Model update'!$P$187,B76='Model update'!$Q$187,B76='Model update'!$R$187,B76='Model update'!$S$187,B76='Model update'!$T$187,B76='Model update'!$U$187,B76='Model update'!$V$187,B76='Model update'!$W$187),'Model update'!$J$187,IF(OR(B76='Model update'!$P$188,B76='Model update'!$Q$188,B76='Model update'!$R$188,B76='Model update'!$S$188,B76='Model update'!$T$188,B76='Model update'!$U$188,B76='Model update'!$V$188,B76='Model update'!$W$188),'Model update'!$J$188,'Model update'!$J$186)) -> -0.009825264614 | L76: =J76*(1+'Model update'!$B$31)*(1-'2021_ACS service & prices'!K76)+'Model update'!$J$196 -> 1425.526998
B77: EE_87 | C77: =VLOOKUP(B77,'2020-21 feebased approved'!$A$4:$H$313,2,FALSE) -> TDNMPBU | D77: Connection application and management services | E77: Temporary disconnections and reconnections (which may involve a line drop) | F77: Temporary de-energisation and re-energisation of supply to allow customer or contractor to work close - the service may be physically dismantled or disconnected (e.g. overhead service dropped). This services includes switching if required. | G77: Dismantling - MULTIPHASE - BUSINESS HOURS | H77: Urban/Short Rural | I77: Fee Based | J77: =VLOOKUP(B77,'2020-21 feebased approved'!$A$4:$H$313,'2020-21 feebased approved'!$H$1,FALSE) -> 990.2256583 | K77: =IF(OR(B77='Model update'!$P$187,B77='Model update'!$Q$187,B77='Model update'!$R$187,B77='Model update'!$S$187,B77='Model update'!$T$187,B77='Model update'!$U$187,B77='Model update'!$V$187,B77='Model update'!$W$187),'Model update'!$J$187,IF(OR(B77='Model update'!$P$188,B77='Model update'!$Q$188,B77='Model update'!$R$188,B77='Model update'!$S$188,B77='Model update'!$T$188,B77='Model update'!$U$188,B77='Model update'!$V$188,B77='Model update'!$W$188),'Model update'!$J$188,'Model update'!$J$186)) -> -0.009825264614 | L77: =J77*(1+'Model update'!$B$31)*(1-'2021_ACS service & prices'!K77)+'Model update'!$J$196 -> 1008.560351
B78: EE_88 | C78: =VLOOKUP(B78,'2020-21 feebased approved'!$A$4:$H$313,2,FALSE) -> TDNMPBL TDNMPBI | D78: Connection application and management services | E78: Temporary disconnections and reconnections (which may involve a line drop) | F78: Temporary de-energisation and re-energisation of supply to allow customer or contractor to work close - the service may be physically dismantled or disconnected (e.g. overhead service dropped). This services includes switching if required. | G78: Dismantling - MULTIPHASE - BUSINESS HOURS | H78: Long rural/Isolated | I78: Fee Based | J78: =VLOOKUP(B78,'2020-21 feebased approved'!$A$4:$H$313,'2020-21 feebased approved'!$H$1,FALSE) -> 1574.563768 | K78: =IF(OR(B78='Model update'!$P$187,B78='Model update'!$Q$187,B78='Model update'!$R$187,B78='Model update'!$S$187,B78='Model update'!$T$187,B78='Model update'!$U$187,B78='Model update'!$V$187,B78='Model update'!$W$187),'Model update'!$J$187,IF(OR(B78='Model update'!$P$188,B78='Model update'!$Q$188,B78='Model update'!$R$188,B78='Model update'!$S$188,B78='Model update'!$T$188,B78='Model update'!$U$188,B78='Model update'!$V$188,B78='Model update'!$W$188),'Model update'!$J$188,'Model update'!$J$186)) -> -0.009825264614 | L78: =J78*(1+'Model update'!$B$31)*(1-'2021_ACS service & prices'!K78)+'Model update'!$J$196 -> 1603.717873
B79: EE_89 | C79: =VLOOKUP(B79,'2020-21 feebased approved'!$A$4:$H$313,2,FALSE) -> TDNSPTCBU | D79: Connection application and management services | E79: Temporary disconnections and reconnections (which may involve a line drop) | F79: Temporary de-energisation and re-energisation of supply to allow customer or contractor to work close - the service may be physically dismantled or disconnected (e.g. overhead service dropped). This services includes switching if required. | G79: Dismantling - SINGLE PHASE - BUSINESS HOURS - Traffic Control | H79: Urban/Short Rural | I79: Fee Based | J79: =VLOOKUP(B79,'2020-21 feebased approved'!$A$4:$H$313,'2020-21 feebased approved'!$H$1,FALSE) -> 1613.163131 | K79: =IF(OR(B79='Model update'!$P$187,B79='Model update'!$Q$187,B79='Model update'!$R$187,B79='Model update'!$S$187,B79='Model update'!$T$187,B79='Model update'!$U$187,B79='Model update'!$V$187,B79='Model update'!$W$187),'Model update'!$J$187,IF(OR(B79='Model update'!$P$188,B79='Model update'!$Q$188,B79='Model update'!$R$188,B79='Model update'!$S$188,B79='Model update'!$T$188,B79='Model update'!$U$188,B79='Model update'!$V$188,B79='Model update'!$W$188),'Model update'!$J$188,'Model update'!$J$186)) -> -0.009825264614 | L79: =J79*(1+'Model update'!$B$31)*(1-'2021_ACS service & prices'!K79)+'Model update'!$J$196 -> 1643.031929
B80: EE_90 | C80: =VLOOKUP(B80,'2020-21 feebased approved'!$A$4:$H$313,2,FALSE) -> TDNSPTCBL TDNSPTCBI | D80: Connection application and management services | E80: Temporary disconnections and reconnections (which may involve a line drop) | F80: Temporary de-energisation and re-energisation of supply to allow customer or contractor to work close - the service may be physically dismantled or disconnected (e.g. overhead service dropped). This services includes switching if required. | G80: Dismantling - SINGLE PHASE - BUSINESS HOURS - Traffic Control | H80: Long rural/Isolated | I80: Fee Based | J80: =VLOOKUP(B80,'2020-21 feebased approved'!$A$4:$H$313,'2020-21 feebased approved'!$H$1,FALSE) -> 2197.50124 | K80: =IF(OR(B80='Model update'!$P$187,B80='Model update'!$Q$187,B80='Model update'!$R$187,B80='Model update'!$S$187,B80='Model update'!$T$187,B80='Model update'!$U$187,B80='Model update'!$V$187,B80='Model update'!$W$187),'Model update'!$J$187,IF(OR(B80='Model update'!$P$188,B80='Model update'!$Q$188,B80='Model update'!$R$188,B80='Model update'!$S$188,B80='Model update'!$T$188,B80='Model update'!$U$188,B80='Model update'!$V$188,B80='Model update'!$W$188),'Model update'!$J$188,'Model update'!$J$186)) -> -0.009825264614 | L80: =J80*(1+'Model update'!$B$31)*(1-'2021_ACS service & prices'!K80)+'Model update'!$J$196 -> 2238.189451
B81: EE_91 | C81: =VLOOKUP(B81,'2020-21 feebased approved'!$A$4:$H$313,2,FALSE) -> TDNMPTCBU | D81: Connection application and management services | E81: Temporary disconnections and reconnections (which may involve a line drop) | F81: Temporary de-energisation and re-energisation of supply to allow customer or contractor to work close - the service may be physically dismantled or disconnected (e.g. overhead service dropped). This services includes switching if required. | G81: Dismantling - MULTIPHASE - BUSINESS HOURS - Traffic Control | H81: Urban/Short Rural | I81: Fee Based | J81: =VLOOKUP(B81,'2020-21 feebased approved'!$A$4:$H$313,'2020-21 feebased approved'!$H$1,FALSE) -> 1788.114661 | K81: =IF(OR(B81='Model update'!$P$187,B81='Model update'!$Q$187,B81='Model update'!$R$187,B81='Model update'!$S$187,B81='Model update'!$T$187,B81='Model update'!$U$187,B81='Model update'!$V$187,B81='Model update'!$W$187),'Model update'!$J$187,IF(OR(B81='Model update'!$P$188,B81='Model update'!$Q$188,B81='Model update'!$R$188,B81='Model update'!$S$188,B81='Model update'!$T$188,B81='Model update'!$U$188,B81='Model update'!$V$188,B81='Model update'!$W$188),'Model update'!$J$188,'Model update'!$J$186)) -> -0.009825264614 | L81: =J81*(1+'Model update'!$B$31)*(1-'2021_ACS service & prices'!K81)+'Model update'!$J$196 -> 1821.222804
B82: EE_92 | C82: =VLOOKUP(B82,'2020-21 feebased approved'!$A$4:$H$313,2,FALSE) -> TDNMPTCBL TDNMPTCBI | D82: Connection application and management services | E82: Temporary disconnections and reconnections (which may involve a line drop) | F82: Temporary de-energisation and re-energisation of supply to allow customer or contractor to work close - the service may be physically dismantled or disconnected (e.g. overhead service dropped). This services includes switching if required. | G82: Dismantling - MULTIPHASE - BUSINESS HOURS - Traffic Control | H82: Long rural/Isolated | I82: Fee Based | J82: =VLOOKUP(B82,'2020-21 feebased approved'!$A$4:$H$313,'2020-21 feebased approved'!$H$1,FALSE) -> 2372.45277 | K82: =IF(OR(B82='Model update'!$P$187,B82='Model update'!$Q$187,B82='Model update'!$R$187,B82='Model update'!$S$187,B82='Model update'!$T$187,B82='Model update'!$U$187,B82='Model update'!$V$187,B82='Model update'!$W$187),'Model update'!$J$187,IF(OR(B82='Model update'!$P$188,B82='Model update'!$Q$188,B82='Model update'!$R$188,B82='Model update'!$S$188,B82='Model update'!$T$188,B82='Model update'!$U$188,B82='Model update'!$V$188,B82='Model update'!$W$188),'Model update'!$J$188,'Model update'!$J$186)) -> -0.009825264614 | L82: =J82*(1+'Model update'!$B$31)*(1-'2021_ACS service & prices'!K82)+'Model update'!$J$196 -> 2416.380326
B83: EE_93 | C83: =VLOOKUP(B83,'2020-21 feebased approved'!$A$4:$H$313,2,FALSE) -> TDNSPAU | D83: Connection application and management services | E83: Temporary disconnections and reconnections (which may involve a line drop) | F83: Temporary de-energisation and re-energisation of supply to allow customer or contractor to work close - the service may be physically dismantled or disconnected (e.g. overhead service dropped). This services includes switching if required. | G83: Dismantling - SINGLE PHASE - AFTER HOURS | H83: Urban/Short Rural | I83: Fee Based | J83: =VLOOKUP(B83,'2020-21 feebased approved'!$A$4:$H$313,'2020-21 feebased approved'!$H$1,FALSE) -> 1071.725609 | K83: =IF(OR(B83='Model update'!$P$187,B83='Model update'!$Q$187,B83='Model update'!$R$187,B83='Model update'!$S$187,B83='Model update'!$T$187,B83='Model update'!$U$187,B83='Model update'!$V$187,B83='Model update'!$W$187),'Model update'!$J$187,IF(OR(B83='Model update'!$P$188,B83='Model update'!$Q$188,B83='Model update'!$R$188,B83='Model update'!$S$188,B83='Model update'!$T$188,B83='Model update'!$U$188,B83='Model update'!$V$188,B83='Model update'!$W$188),'Model update'!$J$188,'Model update'!$J$186)) -> -0.009825264614 | L83: =J83*(1+'Model update'!$B$31)*(1-'2021_ACS service & prices'!K83)+'Model update'!$J$196 -> 1091.569328
B84: EE_94 | C84: =VLOOKUP(B84,'2020-21 feebased approved'!$A$4:$H$313,2,FALSE) -> TDNSPAL TDNSPAI | D84: Connection application and management services | E84: Temporary disconnections and reconnections (which may involve a line drop) | F84: Temporary de-energisation and re-energisation of supply to allow customer or contractor to work close - the service may be physically dismantled or disconnected (e.g. overhead service dropped). This services includes switching if required. | G84: Dismantling - SINGLE PHASE - AFTER HOURS | H84: Long rural/Isolated | I84: Fee Based | J84: =VLOOKUP(B84,'2020-21 feebased approved'!$A$4:$H$313,'2020-21 feebased approved'!$H$1,FALSE) -> 1839.872289 | K84: =IF(OR(B84='Model update'!$P$187,B84='Model update'!$Q$187,B84='Model update'!$R$187,B84='Model update'!$S$187,B84='Model update'!$T$187,B84='Model update'!$U$187,B84='Model update'!$V$187,B84='Model update'!$W$187),'Model update'!$J$187,IF(OR(B84='Model update'!$P$188,B84='Model update'!$Q$188,B84='Model update'!$R$188,B84='Model update'!$S$188,B84='Model update'!$T$188,B84='Model update'!$U$188,B84='Model update'!$V$188,B84='Model update'!$W$188),'Model update'!$J$188,'Model update'!$J$186)) -> -0.009825264614 | L84: =J84*(1+'Model update'!$B$31)*(1-'2021_ACS service & prices'!K84)+'Model update'!$J$196 -> 1873.93876
B85: EE_95 | C85: =VLOOKUP(B85,'2020-21 feebased approved'!$A$4:$H$313,2,FALSE) -> TDNMPAU | D85: Connection application and management services | E85: Temporary disconnections and reconnections (which may involve a line drop) | F85: Temporary de-energisation and re-energisation of supply to allow customer or contractor to work close - the service may be physically dismantled or disconnected (e.g. overhead service dropped). This services includes switching if required. | G85: Dismantling - MULTIPHASE - AFTER HOURS | H85: Urban/Short Rural | I85: Fee Based | J85: =VLOOKUP(B85,'2020-21 feebased approved'!$A$4:$H$313,'2020-21 feebased approved'!$H$1,FALSE) -> 1301.709645 | K85: =IF(OR(B85='Model update'!$P$187,B85='Model update'!$Q$187,B85='Model update'!$R$187,B85='Model update'!$S$187,B85='Model update'!$T$187,B85='Model update'!$U$187,B85='Model update'!$V$187,B85='Model update'!$W$187),'Model update'!$J$187,IF(OR(B85='Model update'!$P$188,B85='Model update'!$Q$188,B85='Model update'!$R$188,B85='Model update'!$S$188,B85='Model update'!$T$188,B85='Model update'!$U$188,B85='Model update'!$V$188,B85='Model update'!$W$188),'Model update'!$J$188,'Model update'!$J$186)) -> -0.009825264614 | L85: =J85*(1+'Model update'!$B$31)*(1-'2021_ACS service & prices'!K85)+'Model update'!$J$196 -> 1325.811673
B86: EE_96 | C86: =VLOOKUP(B86,'2020-21 feebased approved'!$A$4:$H$313,2,FALSE) -> TDNMPAL TDNMPAI | D86: Connection application and management services | E86: Temporary disconnections and reconnections (which may involve a line drop) | F86: Temporary de-energisation and re-energisation of supply to allow customer or contractor to work close - the service may be physically dismantled or disconnected (e.g. overhead service dropped). This services includes switching if required. | G86: Dismantling - MULTIPHASE - AFTER HOURS | H86: Long rural/Isolated | I86: Fee Based | J86: =VLOOKUP(B86,'2020-21 feebased approved'!$A$4:$H$313,'2020-21 feebased approved'!$H$1,FALSE) -> 2069.856325 | K86: =IF(OR(B86='Model update'!$P$187,B86='Model update'!$Q$187,B86='Model update'!$R$187,B86='Model update'!$S$187,B86='Model update'!$T$187,B86='Model update'!$U$187,B86='Model update'!$V$187,B86='Model update'!$W$187),'Model update'!$J$187,IF(OR(B86='Model update'!$P$188,B86='Model update'!$Q$188,B86='Model update'!$R$188,B86='Model update'!$S$188,B86='Model update'!$T$188,B86='Model update'!$U$188,B86='Model update'!$V$188,B86='Model update'!$W$188),'Model update'!$J$188,'Model update'!$J$186)) -> -0.009825264614 | L86: =J86*(1+'Model update'!$B$31)*(1-'2021_ACS service & prices'!K86)+'Model update'!$J$196 -> 2108.181105
B87: EE_97 | C87: =VLOOKUP(B87,'2020-21 feebased approved'!$A$4:$H$313,2,FALSE) -> TDNSPTCAU | D87: Connection application and management services | E87: Temporary disconnections and reconnections (which may involve a line drop) | F87: Temporary de-energisation and re-energisation of supply to allow customer or contractor to work close - the service may be physically dismantled or disconnected (e.g. overhead service dropped). This services includes switching if required. | G87: Dismantling - SINGLE PHASE - AFTER HOURS - Traffic Control | H87: Urban/Short Rural | I87: Fee Based | J87: =VLOOKUP(B87,'2020-21 feebased approved'!$A$4:$H$313,'2020-21 feebased approved'!$H$1,FALSE) -> 1869.614611 | K87: =IF(OR(B87='Model update'!$P$187,B87='Model update'!$Q$187,B87='Model update'!$R$187,B87='Model update'!$S$187,B87='Model update'!$T$187,B87='Model update'!$U$187,B87='Model update'!$V$187,B87='Model update'!$W$187),'Model update'!$J$187,IF(OR(B87='Model update'!$P$188,B87='Model update'!$Q$188,B87='Model update'!$R$188,B87='Model update'!$S$188,B87='Model update'!$T$188,B87='Model update'!$U$188,B87='Model update'!$V$188,B87='Model update'!$W$188),'Model update'!$J$188,'Model update'!$J$186)) -> -0.009825264614 | L87: =J87*(1+'Model update'!$B$31)*(1-'2021_ACS service & prices'!K87)+'Model update'!$J$196 -> 1904.231781
B88: EE_98 | C88: =VLOOKUP(B88,'2020-21 feebased approved'!$A$4:$H$313,2,FALSE) -> TDNSPTCAL TDNSPTCAI | D88: Connection application and management services | E88: Temporary disconnections and reconnections (which may involve a line drop) | F88: Temporary de-energisation and re-energisation of supply to allow customer or contractor to work close - the service may be physically dismantled or disconnected (e.g. overhead service dropped). This services includes switching if required. | G88: Dismantling - SINGLE PHASE - AFTER HOURS - Traffic Control | H88: Long rural/Isolated | I88: Fee Based | J88: =VLOOKUP(B88,'2020-21 feebased approved'!$A$4:$H$313,'2020-21 feebased approved'!$H$1,FALSE) -> 2637.761292 | K88: =IF(OR(B88='Model update'!$P$187,B88='Model update'!$Q$187,B88='Model update'!$R$187,B88='Model update'!$S$187,B88='Model update'!$T$187,B88='Model update'!$U$187,B88='Model update'!$V$187,B88='Model update'!$W$187),'Model update'!$J$187,IF(OR(B88='Model update'!$P$188,B88='Model update'!$Q$188,B88='Model update'!$R$188,B88='Model update'!$S$188,B88='Model update'!$T$188,B88='Model update'!$U$188,B88='Model update'!$V$188,B88='Model update'!$W$188),'Model update'!$J$188,'Model update'!$J$186)) -> -0.009825264614 | L88: =J88*(1+'Model update'!$B$31)*(1-'2021_ACS service & prices'!K88)+'Model update'!$J$196 -> 2686.601213
B89: EE_99 | C89: =VLOOKUP(B89,'2020-21 feebased approved'!$A$4:$H$313,2,FALSE) -> TDNMPTCAU | D89: Connection application and management services | E89: Temporary disconnections and reconnections (which may involve a line drop) | F89: Temporary de-energisation and re-energisation of supply to allow customer or contractor to work close - the service may be physically dismantled or disconnected (e.g. overhead service dropped). This services includes switching if required. | G89: Dismantling - MULTIPHASE - AFTER HOURS - Traffic Control | H89: Urban/Short Rural | I89: Fee Based | J89: =VLOOKUP(B89,'2020-21 feebased approved'!$A$4:$H$313,'2020-21 feebased approved'!$H$1,FALSE) -> 2099.598647 | K89: =IF(OR(B89='Model update'!$P$187,B89='Model update'!$Q$187,B89='Model update'!$R$187,B89='Model update'!$S$187,B89='Model update'!$T$187,B89='Model update'!$U$187,B89='Model update'!$V$187,B89='Model update'!$W$187),'Model update'!$J$187,IF(OR(B89='Model update'!$P$188,B89='Model update'!$Q$188,B89='Model update'!$R$188,B89='Model update'!$S$188,B89='Model update'!$T$188,B89='Model update'!$U$188,B89='Model update'!$V$188,B89='Model update'!$W$188),'Model update'!$J$188,'Model update'!$J$186)) -> -0.009825264614 | L89: =J89*(1+'Model update'!$B$31)*(1-'2021_ACS service & prices'!K89)+'Model update'!$J$196 -> 2138.474126
B90: EE_100 | C90: =VLOOKUP(B90,'2020-21 feebased approved'!$A$4:$H$313,2,FALSE) -> TDNMPTCAL TDNMPTCAI | D90: Connection application and management services | E90: Temporary disconnections and reconnections (which may involve a line drop) | F90: Temporary de-energisation and re-energisation of supply to allow customer or contractor to work close - the service may be physically dismantled or disconnected (e.g. overhead service dropped). This services includes switching if required. | G90: Dismantling - MULTIPHASE - AFTER HOURS - Traffic Control | H90: Long rural/Isolated | I90: Fee Based | J90: =VLOOKUP(B90,'2020-21 feebased approved'!$A$4:$H$313,'2020-21 feebased approved'!$H$1,FALSE) -> 2867.745328 | K90: =IF(OR(B90='Model update'!$P$187,B90='Model update'!$Q$187,B90='Model update'!$R$187,B90='Model update'!$S$187,B90='Model update'!$T$187,B90='Model update'!$U$187,B90='Model update'!$V$187,B90='Model update'!$W$187),'Model update'!$J$187,IF(OR(B90='Model update'!$P$188,B90='Model update'!$Q$188,B90='Model update'!$R$188,B90='Model update'!$S$188,B90='Model update'!$T$188,B90='Model update'!$U$188,B90='Model update'!$V$188,B90='Model update'!$W$188),'Model update'!$J$188,'Model update'!$J$186)) -> -0.009825264614 | L90: =J90*(1+'Model update'!$B$31)*(1-'2021_ACS service & prices'!K90)+'Model update'!$J$196 -> 2920.843558
B91: EE_109 | C91: =VLOOKUP(B91,'2020-21 feebased approved'!$A$4:$H$313,2,FALSE) -> NCTMTRBU NCTMTRBL NCTMTRBI | D91: Connection application and management services | E91: Temporary connection | F91: Work on metering equipment for temporary connection, not in permanent position - single phase or multi phase metered. Note: this service is only available for non-grid connected areas of our network (isolated feeders and the Mount Isa-Cloncurry supply network). | G91: BUSINESS HOURS | H91: N/A | I91: Fee Based | J91: =VLOOKUP(B91,'2020-21 feebased approved'!$A$4:$H$313,'2020-21 feebased approved'!$H$1,FALSE) -> 174.9515297 | K91: =IF(OR(B91='Model update'!$P$187,B91='Model update'!$Q$187,B91='Model update'!$R$187,B91='Model update'!$S$187,B91='Model update'!$T$187,B91='Model update'!$U$187,B91='Model update'!$V$187,B91='Model update'!$W$187),'Model update'!$J$187,IF(OR(B91='Model update'!$P$188,B91='Model update'!$Q$188,B91='Model update'!$R$188,B91='Model update'!$S$188,B91='Model update'!$T$188,B91='Model update'!$U$188,B91='Model update'!$V$188,B91='Model update'!$W$188),'Model update'!$J$188,'Model update'!$J$186)) -> -0.009825264614 | L91: =J91*(1+'Model update'!$B$31)*(1-'2021_ACS service & prices'!K91)+'Model update'!$J$196 -> 178.1908748
B92: EE_110 | C92: =VLOOKUP(B92,'2020-21 feebased approved'!$A$4:$H$313,2,FALSE) -> NCT1MBU | D92: Connection application and management services | E92: Temporary connection | F92: Customer requested temporary connection (short term) and the recovery of the temporary builders supply. Excludes work on metering equipment. | G92: BUSINESS HOURS - NO CT | H92: Urban/Short Rural | I92: Fee Based | J92: =VLOOKUP(B92,'2020-21 feebased approved'!$A$4:$H$313,'2020-21 feebased approved'!$H$1,FALSE) -> 990.2256583 | K92: =IF(OR(B92='Model update'!$P$187,B92='Model update'!$Q$187,B92='Model update'!$R$187,B92='Model update'!$S$187,B92='Model update'!$T$187,B92='Model update'!$U$187,B92='Model update'!$V$187,B92='Model update'!$W$187),'Model update'!$J$187,IF(OR(B92='Model update'!$P$188,B92='Model update'!$Q$188,B92='Model update'!$R$188,B92='Model update'!$S$188,B92='Model update'!$T$188,B92='Model update'!$U$188,B92='Model update'!$V$188,B92='Model update'!$W$188),'Model update'!$J$188,'Model update'!$J$186)) -> -0.009825264614 | L92: =J92*(1+'Model update'!$B$31)*(1-'2021_ACS service & prices'!K92)+'Model update'!$J$196 -> 1008.560351
B93: EE_111 | C93: =VLOOKUP(B93,'2020-21 feebased approved'!$A$4:$H$313,2,FALSE) -> NCT1MBL NCT1MBI | D93: Connection application and management services | E93: Temporary connection | F93: Customer requested temporary connection (short term) and the recovery of the temporary builders supply. Excludes work on metering equipment. | G93: BUSINESS HOURS - NO CT | H93: Long rural/Isolated | I93: Fee Based | J93: =VLOOKUP(B93,'2020-21 feebased approved'!$A$4:$H$313,'2020-21 feebased approved'!$H$1,FALSE) -> 1574.563768 | K93: =IF(OR(B93='Model update'!$P$187,B93='Model update'!$Q$187,B93='Model update'!$R$187,B93='Model update'!$S$187,B93='Model update'!$T$187,B93='Model update'!$U$187,B93='Model update'!$V$187,B93='Model update'!$W$187),'Model update'!$J$187,IF(OR(B93='Model update'!$P$188,B93='Model update'!$Q$188,B93='Model update'!$R$188,B93='Model update'!$S$188,B93='Model update'!$T$188,B93='Model update'!$U$188,B93='Model update'!$V$188,B93='Model update'!$W$188),'Model update'!$J$188,'Model update'!$J$186)) -> -0.009825264614 | L93: =J93*(1+'Model update'!$B$31)*(1-'2021_ACS service & prices'!K93)+'Model update'!$J$196 -> 1603.717873
B94: EE_112 | C94: =VLOOKUP(B94,'2020-21 feebased approved'!$A$4:$H$313,2,FALSE) -> NCT1MAU | D94: Connection application and management services | E94: Temporary connection | F94: Customer requested temporary connection (short term) and the recovery of the temporary builders supply. Excludes work on metering equipment. | G94: AFTER HOURS - NO CT | H94: Urban/Short Rural | I94: Fee Based | J94: =VLOOKUP(B94,'2020-21 feebased approved'!$A$4:$H$313,'2020-21 feebased approved'!$H$1,FALSE) -> 1301.709645 | K94: =IF(OR(B94='Model update'!$P$187,B94='Model update'!$Q$187,B94='Model update'!$R$187,B94='Model update'!$S$187,B94='Model update'!$T$187,B94='Model update'!$U$187,B94='Model update'!$V$187,B94='Model update'!$W$187),'Model update'!$J$187,IF(OR(B94='Model update'!$P$188,B94='Model update'!$Q$188,B94='Model update'!$R$188,B94='Model update'!$S$188,B94='Model update'!$T$188,B94='Model update'!$U$188,B94='Model update'!$V$188,B94='Model update'!$W$188),'Model update'!$J$188,'Model update'!$J$186)) -> -0.009825264614 | L94: =J94*(1+'Model update'!$B$31)*(1-'2021_ACS service & prices'!K94)+'Model update'!$J$196 -> 1325.811673
B95: EE_113 | C95: =VLOOKUP(B95,'2020-21 feebased approved'!$A$4:$H$313,2,FALSE) -> NCT1MAL NCT1MAI | D95: Connection application and management services | E95: Temporary connection | F95: Customer requested temporary connection (short term) and the recovery of the temporary builders supply. Excludes work on metering equipment. | G95: AFTER HOURS - NO CT | H95: Long rural/Isolated | I95: Fee Based | J95: =VLOOKUP(B95,'2020-21 feebased approved'!$A$4:$H$313,'2020-21 feebased approved'!$H$1,FALSE) -> 2069.856325 | K95: =IF(OR(B95='Model update'!$P$187,B95='Model update'!$Q$187,B95='Model update'!$R$187,B95='Model update'!$S$187,B95='Model update'!$T$187,B95='Model update'!$U$187,B95='Model update'!$V$187,B95='Model update'!$W$187),'Model update'!$J$187,IF(OR(B95='Model update'!$P$188,B95='Model update'!$Q$188,B95='Model update'!$R$188,B95='Model update'!$S$188,B95='Model update'!$T$188,B95='Model update'!$U$188,B95='Model update'!$V$188,B95='Model update'!$W$188),'Model update'!$J$188,'Model update'!$J$186)) -> -0.009825264614 | L95: =J95*(1+'Model update'!$B$31)*(1-'2021_ACS service & prices'!K95)+'Model update'!$J$196 -> 2108.181105
B96: EE_114 | C96: =VLOOKUP(B96,'2020-21 feebased approved'!$A$4:$H$313,2,FALSE) -> NCT2MBU | D96: Connection application and management services | E96: Temporary connection | F96: Customer requested temporary connection (short term) and the recovery of the temporary builders supply. Excludes work on metering equipment. | G96: BUSINESS HOURS - CT | H96: Urban/Short Rural | I96: Fee Based | J96: =VLOOKUP(B96,'2020-21 feebased approved'!$A$4:$H$313,'2020-21 feebased approved'!$H$1,FALSE) -> 1690.031777 | K96: =IF(OR(B96='Model update'!$P$187,B96='Model update'!$Q$187,B96='Model update'!$R$187,B96='Model update'!$S$187,B96='Model update'!$T$187,B96='Model update'!$U$187,B96='Model update'!$V$187,B96='Model update'!$W$187),'Model update'!$J$187,IF(OR(B96='Model update'!$P$188,B96='Model update'!$Q$188,B96='Model update'!$R$188,B96='Model update'!$S$188,B96='Model update'!$T$188,B96='Model update'!$U$188,B96='Model update'!$V$188,B96='Model update'!$W$188),'Model update'!$J$188,'Model update'!$J$186)) -> -0.009825264614 | L96: =J96*(1+'Model update'!$B$31)*(1-'2021_ACS service & prices'!K96)+'Model update'!$J$196 -> 1721.32385
B97: EE_115 | C97: =VLOOKUP(B97,'2020-21 feebased approved'!$A$4:$H$313,2,FALSE) -> NCT2MBL NCT2MBI | D97: Connection application and management services | E97: Temporary connection | F97: Customer requested temporary connection (short term) and the recovery of the temporary builders supply. Excludes work on metering equipment. | G97: BUSINESS HOURS - CT | H97: Long rural/Isolated | I97: Fee Based | J97: =VLOOKUP(B97,'2020-21 feebased approved'!$A$4:$H$313,'2020-21 feebased approved'!$H$1,FALSE) -> 2274.369887 | K97: =IF(OR(B97='Model update'!$P$187,B97='Model update'!$Q$187,B97='Model update'!$R$187,B97='Model update'!$S$187,B97='Model update'!$T$187,B97='Model update'!$U$187,B97='Model update'!$V$187,B97='Model update'!$W$187),'Model update'!$J$187,IF(OR(B97='Model update'!$P$188,B97='Model update'!$Q$188,B97='Model update'!$R$188,B97='Model update'!$S$188,B97='Model update'!$T$188,B97='Model update'!$U$188,B97='Model update'!$V$188,B97='Model update'!$W$188),'Model update'!$J$188,'Model update'!$J$186)) -> -0.009825264614 | L97: =J97*(1+'Model update'!$B$31)*(1-'2021_ACS service & prices'!K97)+'Model update'!$J$196 -> 2316.481372
B98: EE_116 | C98: =VLOOKUP(B98,'2020-21 feebased approved'!$A$4:$H$313,2,FALSE) -> NCT2MAU | D98: Connection application and management services | E98: Temporary connection | F98: Customer requested temporary connection (short term) and the recovery of the temporary builders supply. Excludes work on metering equipment. | G98: AFTER HOURS - CT | H98: Urban/Short Rural | I98: Fee Based | J98: =VLOOKUP(B98,'2020-21 feebased approved'!$A$4:$H$313,'2020-21 feebased approved'!$H$1,FALSE) -> 2221.645789 | K98: =IF(OR(B98='Model update'!$P$187,B98='Model update'!$Q$187,B98='Model update'!$R$187,B98='Model update'!$S$187,B98='Model update'!$T$187,B98='Model update'!$U$187,B98='Model update'!$V$187,B98='Model update'!$W$187),'Model update'!$J$187,IF(OR(B98='Model update'!$P$188,B98='Model update'!$Q$188,B98='Model update'!$R$188,B98='Model update'!$S$188,B98='Model update'!$T$188,B98='Model update'!$U$188,B98='Model update'!$V$188,B98='Model update'!$W$188),'Model update'!$J$188,'Model update'!$J$186)) -> -0.009825264614 | L98: =J98*(1+'Model update'!$B$31)*(1-'2021_ACS service & prices'!K98)+'Model update'!$J$196 -> 2262.781053
B99: EE_117 | C99: =VLOOKUP(B99,'2020-21 feebased approved'!$A$4:$H$313,2,FALSE) -> NCT2MAL NCT2MAI | D99: Connection application and management services | E99: Temporary connection | F99: Customer requested temporary connection (short term) and the recovery of the temporary builders supply. Excludes work on metering equipment. | G99: AFTER HOURS - CT | H99: Long rural/Isolated | I99: Fee Based | J99: =VLOOKUP(B99,'2020-21 feebased approved'!$A$4:$H$313,'2020-21 feebased approved'!$H$1,FALSE) -> 2989.79247 | K99: =IF(OR(B99='Model update'!$P$187,B99='Model update'!$Q$187,B99='Model update'!$R$187,B99='Model update'!$S$187,B99='Model update'!$T$187,B99='Model update'!$U$187,B99='Model update'!$V$187,B99='Model update'!$W$187),'Model update'!$J$187,IF(OR(B99='Model update'!$P$188,B99='Model update'!$Q$188,B99='Model update'!$R$188,B99='Model update'!$S$188,B99='Model update'!$T$188,B99='Model update'!$U$188,B99='Model update'!$V$188,B99='Model update'!$W$188),'Model update'!$J$188,'Model update'!$J$186)) -> -0.009825264614 | L99: =J99*(1+'Model update'!$B$31)*(1-'2021_ACS service & prices'!K99)+'Model update'!$J$196 -> 3045.150485
B100: EE_118 | C100: =VLOOKUP(B100,'2020-21 feebased approved'!$A$4:$H$313,2,FALSE) -> SA2BU | D100: Connection application and management services | E100: Supply Abolishment | F100: Retailer requests Ergon Energy to abolish supply at a connection point and decommission a NMI. May be used where a property is to be demolished; supply is no longer required; an alternative connection point is to be used; or a redundant supply is to be removed. Overhead or Underground | G100: SERVICE ONLY - BUSINESS HOURS - CT (Complex) | H100: Urban/Short Rural | I100: Fee Based | J100: =VLOOKUP(B100,'2020-21 feebased approved'!$A$4:$H$313,'2020-21 feebased approved'!$H$1,FALSE) -> 465.3710691 | K100: =IF(OR(B100='Model update'!$P$187,B100='Model update'!$Q$187,B100='Model update'!$R$187,B100='Model update'!$S$187,B100='Model update'!$T$187,B100='Model update'!$U$187,B100='Model update'!$V$187,B100='Model update'!$W$187),'Model update'!$J$187,IF(OR(B100='Model update'!$P$188,B100='Model update'!$Q$188,B100='Model update'!$R$188,B100='Model update'!$S$188,B100='Model update'!$T$188,B100='Model update'!$U$188,B100='Model update'!$V$188,B100='Model update'!$W$188),'Model update'!$J$188,'Model update'!$J$186)) -> -0.009825264614 | L100: =J100*(1+'Model update'!$B$31)*(1-'2021_ACS service & prices'!K100)+'Model update'!$J$196 -> 473.9877269
B101: EE_119 | C101: =VLOOKUP(B101,'2020-21 feebased approved'!$A$4:$H$313,2,FALSE) -> SA2BL SA2BI | D101: Connection application and management services | E101: Supply Abolishment | F101: Retailer requests Ergon Energy to abolish supply at a connection point and decommission a NMI. May be used where a property is to be demolished; supply is no longer required; an alternative connection point is to be used; or a redundant supply is to be removed. Overhead or Underground | G101: SERVICE ONLY - BUSINESS HOURS - CT (Complex) | H101: Long rural/Isolated | I101: Fee Based | J101: =VLOOKUP(B101,'2020-21 feebased approved'!$A$4:$H$313,'2020-21 feebased approved'!$H$1,FALSE) -> 1049.709178 | K101: =IF(OR(B101='Model update'!$P$187,B101='Model update'!$Q$187,B101='Model update'!$R$187,B101='Model update'!$S$187,B101='Model update'!$T$187,B101='Model update'!$U$187,B101='Model update'!$V$187,B101='Model update'!$W$187),'Model update'!$J$187,IF(OR(B101='Model update'!$P$188,B101='Model update'!$Q$188,B101='Model update'!$R$188,B101='Model update'!$S$188,B101='Model update'!$T$188,B101='Model update'!$U$188,B101='Model update'!$V$188,B101='Model update'!$W$188),'Model update'!$J$188,'Model update'!$J$186)) -> -0.009825264614 | L101: =J101*(1+'Model update'!$B$31)*(1-'2021_ACS service & prices'!K101)+'Model update'!$J$196 -> 1069.145249
B102: EE_120 | C102: =VLOOKUP(B102,'2020-21 feebased approved'!$A$4:$H$313,2,FALSE) -> SA2TCBU | D102: Connection application and management services | E102: Supply Abolishment | F102: Retailer requests Ergon Energy to abolish supply at a connection point and decommission a NMI. May be used where a property is to be demolished; supply is no longer required; an alternative connection point is to be used; or a redundant supply is to be removed. Overhead or Underground | G102: SERVICE ONLY - BUSINESS HOURS - CT (Complex) - Traffic control | H102: Urban/Short Rural | I102: Fee Based | J102: =VLOOKUP(B102,'2020-21 feebased approved'!$A$4:$H$313,'2020-21 feebased approved'!$H$1,FALSE) -> 1263.260072 | K102: =IF(OR(B102='Model update'!$P$187,B102='Model update'!$Q$187,B102='Model update'!$R$187,B102='Model update'!$S$187,B102='Model update'!$T$187,B102='Model update'!$U$187,B102='Model update'!$V$187,B102='Model update'!$W$187),'Model update'!$J$187,IF(OR(B102='Model update'!$P$188,B102='Model update'!$Q$188,B102='Model update'!$R$188,B102='Model update'!$S$188,B102='Model update'!$T$188,B102='Model update'!$U$188,B102='Model update'!$V$188,B102='Model update'!$W$188),'Model update'!$J$188,'Model update'!$J$186)) -> -0.009825264614 | L102: =J102*(1+'Model update'!$B$31)*(1-'2021_ACS service & prices'!K102)+'Model update'!$J$196 -> 1286.65018
B103: EE_121 | C103: =VLOOKUP(B103,'2020-21 feebased approved'!$A$4:$H$313,2,FALSE) -> SA2TCBL SA2TCBI | D103: Connection application and management services | E103: Supply Abolishment | F103: Retailer requests Ergon Energy to abolish supply at a connection point and decommission a NMI. May be used where a property is to be demolished; supply is no longer required; an alternative connection point is to be used; or a redundant supply is to be removed. Overhead or Underground | G103: SERVICE ONLY - BUSINESS HOURS - CT (Complex) - Traffic control | H103: Long rural/Isolated | I103: Fee Based | J103: =VLOOKUP(B103,'2020-21 feebased approved'!$A$4:$H$313,'2020-21 feebased approved'!$H$1,FALSE) -> 1847.598181 | K103: =IF(OR(B103='Model update'!$P$187,B103='Model update'!$Q$187,B103='Model update'!$R$187,B103='Model update'!$S$187,B103='Model update'!$T$187,B103='Model update'!$U$187,B103='Model update'!$V$187,B103='Model update'!$W$187),'Model update'!$J$187,IF(OR(B103='Model update'!$P$188,B103='Model update'!$Q$188,B103='Model update'!$R$188,B103='Model update'!$S$188,B103='Model update'!$T$188,B103='Model update'!$U$188,B103='Model update'!$V$188,B103='Model update'!$W$188),'Model update'!$J$188,'Model update'!$J$186)) -> -0.009825264614 | L103: =J103*(1+'Model update'!$B$31)*(1-'2021_ACS service & prices'!K103)+'Model update'!$J$196 -> 1881.807702
B104: EE_122 | C104: =VLOOKUP(B104,'2020-21 feebased approved'!$A$4:$H$313,2,FALSE) -> SA1BU | D104: Connection application and management services | E104: Supply Abolishment | F104: Retailer requests Ergon Energy to abolish supply at a connection point and decommission a NMI. May be used where a property is to be demolished; supply is no longer required; an alternative connection point is to be used; or a redundant supply is to be removed. Overhead or Underground | G104: SERVICE ONLY - BUSINESS HOURS - NO CT (Simple) | H104: Urban/Short Rural | I104: Fee Based | J104: =VLOOKUP(B104,'2020-21 feebased approved'!$A$4:$H$313,'2020-21 feebased approved'!$H$1,FALSE) -> 377.8953042 | K104: =IF(OR(B104='Model update'!$P$187,B104='Model update'!$Q$187,B104='Model update'!$R$187,B104='Model update'!$S$187,B104='Model update'!$T$187,B104='Model update'!$U$187,B104='Model update'!$V$187,B104='Model update'!$W$187),'Model update'!$J$187,IF(OR(B104='Model update'!$P$188,B104='Model update'!$Q$188,B104='Model update'!$R$188,B104='Model update'!$S$188,B104='Model update'!$T$188,B104='Model update'!$U$188,B104='Model update'!$V$188,B104='Model update'!$W$188),'Model update'!$J$188,'Model update'!$J$186)) -> -0.009825264614 | L104: =J104*(1+'Model update'!$B$31)*(1-'2021_ACS service & prices'!K104)+'Model update'!$J$196 -> 384.8922895
B105: EE_123 | C105: =VLOOKUP(B105,'2020-21 feebased approved'!$A$4:$H$313,2,FALSE) -> SA1BL SA1BI | D105: Connection application and management services | E105: Supply Abolishment | F105: Retailer requests Ergon Energy to abolish supply at a connection point and decommission a NMI. May be used where a property is to be demolished; supply is no longer required; an alternative connection point is to be used; or a redundant supply is to be removed. Overhead or Underground | G105: SERVICE ONLY - BUSINESS HOURS - NO CT (Simple) | H105: Long rural/Isolated | I105: Fee Based | J105: =VLOOKUP(B105,'2020-21 feebased approved'!$A$4:$H$313,'2020-21 feebased approved'!$H$1,FALSE) -> 962.2334136 | K105: =IF(OR(B105='Model update'!$P$187,B105='Model update'!$Q$187,B105='Model update'!$R$187,B105='Model update'!$S$187,B105='Model update'!$T$187,B105='Model update'!$U$187,B105='Model update'!$V$187,B105='Model update'!$W$187),'Model update'!$J$187,IF(OR(B105='Model update'!$P$188,B105='Model update'!$Q$188,B105='Model update'!$R$188,B105='Model update'!$S$188,B105='Model update'!$T$188,B105='Model update'!$U$188,B105='Model update'!$V$188,B105='Model update'!$W$188),'Model update'!$J$188,'Model update'!$J$186)) -> -0.009825264614 | L105: =J105*(1+'Model update'!$B$31)*(1-'2021_ACS service & prices'!K105)+'Model update'!$J$196 -> 980.0498112
B106: EE_124 | C106: =VLOOKUP(B106,'2020-21 feebased approved'!$A$4:$H$313,2,FALSE) -> SA1TCBU | D106: Connection application and management services | E106: Supply Abolishment | F106: Retailer requests Ergon Energy to abolish supply at a connection point and decommission a NMI. May be used where a property is to be demolished; supply is no longer required; an alternative connection point is to be used; or a redundant supply is to be removed. Overhead or Underground | G106: SERVICE ONLY - BUSINESS HOURS - NO CT (Simple) - Traffic control | H106: Urban/Short Rural | I106: Fee Based | J106: =VLOOKUP(B106,'2020-21 feebased approved'!$A$4:$H$313,'2020-21 feebased approved'!$H$1,FALSE) -> 1175.784307 | K106: =IF(OR(B106='Model update'!$P$187,B106='Model update'!$Q$187,B106='Model update'!$R$187,B106='Model update'!$S$187,B106='Model update'!$T$187,B106='Model update'!$U$187,B106='Model update'!$V$187,B106='Model update'!$W$187),'Model update'!$J$187,IF(OR(B106='Model update'!$P$188,B106='Model update'!$Q$188,B106='Model update'!$R$188,B106='Model update'!$S$188,B106='Model update'!$T$188,B106='Model update'!$U$188,B106='Model update'!$V$188,B106='Model update'!$W$188),'Model update'!$J$188,'Model update'!$J$186)) -> -0.009825264614 | L106: =J106*(1+'Model update'!$B$31)*(1-'2021_ACS service & prices'!K106)+'Model update'!$J$196 -> 1197.554742
B107: EE_125 | C107: =VLOOKUP(B107,'2020-21 feebased approved'!$A$4:$H$313,2,FALSE) -> SA1TCBL SA1TCBI | D107: Connection application and management services | E107: Supply Abolishment | F107: Retailer requests Ergon Energy to abolish supply at a connection point and decommission a NMI. May be used where a property is to be demolished; supply is no longer required; an alternative connection point is to be used; or a redundant supply is to be removed. Overhead or Underground | G107: SERVICE ONLY - BUSINESS HOURS - NO CT (Simple) - Traffic control | H107: Long rural/Isolated | I107: Fee Based | J107: =VLOOKUP(B107,'2020-21 feebased approved'!$A$4:$H$313,'2020-21 feebased approved'!$H$1,FALSE) -> 1760.122416 | K107: =IF(OR(B107='Model update'!$P$187,B107='Model update'!$Q$187,B107='Model update'!$R$187,B107='Model update'!$S$187,B107='Model update'!$T$187,B107='Model update'!$U$187,B107='Model update'!$V$187,B107='Model update'!$W$187),'Model update'!$J$187,IF(OR(B107='Model update'!$P$188,B107='Model update'!$Q$188,B107='Model update'!$R$188,B107='Model update'!$S$188,B107='Model update'!$T$188,B107='Model update'!$U$188,B107='Model update'!$V$188,B107='Model update'!$W$188),'Model update'!$J$188,'Model update'!$J$186)) -> -0.009825264614 | L107: =J107*(1+'Model update'!$B$31)*(1-'2021_ACS service & prices'!K107)+'Model update'!$J$196 -> 1792.712264
B108: EE_126 | C108: =VLOOKUP(B108,'2020-21 feebased approved'!$A$4:$H$313,2,FALSE) -> SA2AU | D108: Connection application and management services | E108: Supply Abolishment | F108: Retailer requests Ergon Energy to abolish supply at a connection point and decommission a NMI. May be used where a property is to be demolished; supply is no longer required; an alternative connection point is to be used; or a redundant supply is to be removed. Overhead or Underground | G108: SERVICE ONLY - AFTER HOURS - CT (Complex) | H108: Urban/Short Rural | I108: Fee Based | J108: =VLOOKUP(B108,'2020-21 feebased approved'!$A$4:$H$313,'2020-21 feebased approved'!$H$1,FALSE) -> 611.7575362 | K108: =IF(OR(B108='Model update'!$P$187,B108='Model update'!$Q$187,B108='Model update'!$R$187,B108='Model update'!$S$187,B108='Model update'!$T$187,B108='Model update'!$U$187,B108='Model update'!$V$187,B108='Model update'!$W$187),'Model update'!$J$187,IF(OR(B108='Model update'!$P$188,B108='Model update'!$Q$188,B108='Model update'!$R$188,B108='Model update'!$S$188,B108='Model update'!$T$188,B108='Model update'!$U$188,B108='Model update'!$V$188,B108='Model update'!$W$188),'Model update'!$J$188,'Model update'!$J$186)) -> -0.009825264614 | L108: =J108*(1+'Model update'!$B$31)*(1-'2021_ACS service & prices'!K108)+'Model update'!$J$196 -> 623.0846377
B109: EE_127 | C109: =VLOOKUP(B109,'2020-21 feebased approved'!$A$4:$H$313,2,FALSE) -> SA2AL SA2AI | D109: Connection application and management services | E109: Supply Abolishment | F109: Retailer requests Ergon Energy to abolish supply at a connection point and decommission a NMI. May be used where a property is to be demolished; supply is no longer required; an alternative connection point is to be used; or a redundant supply is to be removed. Overhead or Underground | G109: SERVICE ONLY - AFTER HOURS - CT (Complex) | H109: Long rural/Isolated | I109: Fee Based | J109: =VLOOKUP(B109,'2020-21 feebased approved'!$A$4:$H$313,'2020-21 feebased approved'!$H$1,FALSE) -> 1379.904217 | K109: =IF(OR(B109='Model update'!$P$187,B109='Model update'!$Q$187,B109='Model update'!$R$187,B109='Model update'!$S$187,B109='Model update'!$T$187,B109='Model update'!$U$187,B109='Model update'!$V$187,B109='Model update'!$W$187),'Model update'!$J$187,IF(OR(B109='Model update'!$P$188,B109='Model update'!$Q$188,B109='Model update'!$R$188,B109='Model update'!$S$188,B109='Model update'!$T$188,B109='Model update'!$U$188,B109='Model update'!$V$188,B109='Model update'!$W$188),'Model update'!$J$188,'Model update'!$J$186)) -> -0.009825264614 | L109: =J109*(1+'Model update'!$B$31)*(1-'2021_ACS service & prices'!K109)+'Model update'!$J$196 -> 1405.45407
B110: EE_128 | C110: =VLOOKUP(B110,'2020-21 feebased approved'!$A$4:$H$313,2,FALSE) -> SA2TCAU | D110: Connection application and management services | E110: Supply Abolishment | F110: Retailer requests Ergon Energy to abolish supply at a connection point and decommission a NMI. May be used where a property is to be demolished; supply is no longer required; an alternative connection point is to be used; or a redundant supply is to be removed. Overhead or Underground | G110: SERVICE ONLY - AFTER HOURS - CT (Complex) - Traffic control | H110: Urban/Short Rural | I110: Fee Based | J110: =VLOOKUP(B110,'2020-21 feebased approved'!$A$4:$H$313,'2020-21 feebased approved'!$H$1,FALSE) -> 1409.646539 | K110: =IF(OR(B110='Model update'!$P$187,B110='Model update'!$Q$187,B110='Model update'!$R$187,B110='Model update'!$S$187,B110='Model update'!$T$187,B110='Model update'!$U$187,B110='Model update'!$V$187,B110='Model update'!$W$187),'Model update'!$J$187,IF(OR(B110='Model update'!$P$188,B110='Model update'!$Q$188,B110='Model update'!$R$188,B110='Model update'!$S$188,B110='Model update'!$T$188,B110='Model update'!$U$188,B110='Model update'!$V$188,B110='Model update'!$W$188),'Model update'!$J$188,'Model update'!$J$186)) -> -0.009825264614 | L110: =J110*(1+'Model update'!$B$31)*(1-'2021_ACS service & prices'!K110)+'Model update'!$J$196 -> 1435.747091
B111: EE_129 | C111: =VLOOKUP(B111,'2020-21 feebased approved'!$A$4:$H$313,2,FALSE) -> SA2TCAL SA2TCAI | D111: Connection application and management services | E111: Supply Abolishment | F111: Retailer requests Ergon Energy to abolish supply at a connection point and decommission a NMI. May be used where a property is to be demolished; supply is no longer required; an alternative connection point is to be used; or a redundant supply is to be removed. Overhead or Underground | G111: SERVICE ONLY - AFTER HOURS - CT (Complex) - Traffic control | H111: Long rural/Isolated | I111: Fee Based | J111: =VLOOKUP(B111,'2020-21 feebased approved'!$A$4:$H$313,'2020-21 feebased approved'!$H$1,FALSE) -> 2177.793219 | K111: =IF(OR(B111='Model update'!$P$187,B111='Model update'!$Q$187,B111='Model update'!$R$187,B111='Model update'!$S$187,B111='Model update'!$T$187,B111='Model update'!$U$187,B111='Model update'!$V$187,B111='Model update'!$W$187),'Model update'!$J$187,IF(OR(B111='Model update'!$P$188,B111='Model update'!$Q$188,B111='Model update'!$R$188,B111='Model update'!$S$188,B111='Model update'!$T$188,B111='Model update'!$U$188,B111='Model update'!$V$188,B111='Model update'!$W$188),'Model update'!$J$188,'Model update'!$J$186)) -> -0.009825264614 | L111: =J111*(1+'Model update'!$B$31)*(1-'2021_ACS service & prices'!K111)+'Model update'!$J$196 -> 2218.116523
B112: EE_130 | C112: =VLOOKUP(B112,'2020-21 feebased approved'!$A$4:$H$313,2,FALSE) -> SA1AU | D112: Connection application and management services | E112: Supply Abolishment | F112: Retailer requests Ergon Energy to abolish supply at a connection point and decommission a NMI. May be used where a property is to be demolished; supply is no longer required; an alternative connection point is to be used; or a redundant supply is to be removed. Overhead or Underground | G112: SERVICE ONLY- AFTER HOURS - NO CT (Simple) | H112: Urban/Short Rural | I112: Fee Based | J112: =VLOOKUP(B112,'2020-21 feebased approved'!$A$4:$H$313,'2020-21 feebased approved'!$H$1,FALSE) -> 496.7655181 | K112: =IF(OR(B112='Model update'!$P$187,B112='Model update'!$Q$187,B112='Model update'!$R$187,B112='Model update'!$S$187,B112='Model update'!$T$187,B112='Model update'!$U$187,B112='Model update'!$V$187,B112='Model update'!$W$187),'Model update'!$J$187,IF(OR(B112='Model update'!$P$188,B112='Model update'!$Q$188,B112='Model update'!$R$188,B112='Model update'!$S$188,B112='Model update'!$T$188,B112='Model update'!$U$188,B112='Model update'!$V$188,B112='Model update'!$W$188),'Model update'!$J$188,'Model update'!$J$186)) -> -0.009825264614 | L112: =J112*(1+'Model update'!$B$31)*(1-'2021_ACS service & prices'!K112)+'Model update'!$J$196 -> 505.9634652
B113: EE_131 | C113: =VLOOKUP(B113,'2020-21 feebased approved'!$A$4:$H$313,2,FALSE) -> SA1AL SA1AI | D113: Connection application and management services | E113: Supply Abolishment | F113: Retailer requests Ergon Energy to abolish supply at a connection point and decommission a NMI. May be used where a property is to be demolished; supply is no longer required; an alternative connection point is to be used; or a redundant supply is to be removed. Overhead or Underground | G113: SERVICE ONLY- AFTER HOURS - NO CT (Simple) | H113: Long rural/Isolated | I113: Fee Based | J113: =VLOOKUP(B113,'2020-21 feebased approved'!$A$4:$H$313,'2020-21 feebased approved'!$H$1,FALSE) -> 1264.912199 | K113: =IF(OR(B113='Model update'!$P$187,B113='Model update'!$Q$187,B113='Model update'!$R$187,B113='Model update'!$S$187,B113='Model update'!$T$187,B113='Model update'!$U$187,B113='Model update'!$V$187,B113='Model update'!$W$187),'Model update'!$J$187,IF(OR(B113='Model update'!$P$188,B113='Model update'!$Q$188,B113='Model update'!$R$188,B113='Model update'!$S$188,B113='Model update'!$T$188,B113='Model update'!$U$188,B113='Model update'!$V$188,B113='Model update'!$W$188),'Model update'!$J$188,'Model update'!$J$186)) -> -0.009825264614 | L113: =J113*(1+'Model update'!$B$31)*(1-'2021_ACS service & prices'!K113)+'Model update'!$J$196 -> 1288.332897
B114: EE_132 | C114: =VLOOKUP(B114,'2020-21 feebased approved'!$A$4:$H$313,2,FALSE) -> SA1TCAU | D114: Connection application and management services | E114: Supply Abolishment | F114: Retailer requests Ergon Energy to abolish supply at a connection point and decommission a NMI. May be used where a property is to be demolished; supply is no longer required; an alternative connection point is to be used; or a redundant supply is to be removed. Overhead or Underground | G114: SERVICE ONLY- AFTER HOURS - NO CT (Simple) - Traffic control | H114: Urban/Short Rural | I114: Fee Based | J114: =VLOOKUP(B114,'2020-21 feebased approved'!$A$4:$H$313,'2020-21 feebased approved'!$H$1,FALSE) -> 1294.654521 | K114: =IF(OR(B114='Model update'!$P$187,B114='Model update'!$Q$187,B114='Model update'!$R$187,B114='Model update'!$S$187,B114='Model update'!$T$187,B114='Model update'!$U$187,B114='Model update'!$V$187,B114='Model update'!$W$187),'Model update'!$J$187,IF(OR(B114='Model update'!$P$188,B114='Model update'!$Q$188,B114='Model update'!$R$188,B114='Model update'!$S$188,B114='Model update'!$T$188,B114='Model update'!$U$188,B114='Model update'!$V$188,B114='Model update'!$W$188),'Model update'!$J$188,'Model update'!$J$186)) -> -0.009825264614 | L114: =J114*(1+'Model update'!$B$31)*(1-'2021_ACS service & prices'!K114)+'Model update'!$J$196 -> 1318.625918
B115: EE_133 | C115: =VLOOKUP(B115,'2020-21 feebased approved'!$A$4:$H$313,2,FALSE) -> SA1TCAL SA1TCAI | D115: Connection application and management services | E115: Supply Abolishment | F115: Retailer requests Ergon Energy to abolish supply at a connection point and decommission a NMI. May be used where a property is to be demolished; supply is no longer required; an alternative connection point is to be used; or a redundant supply is to be removed. Overhead or Underground | G115: SERVICE ONLY- AFTER HOURS - NO CT (Simple) - Traffic control | H115: Long rural/Isolated | I115: Fee Based | J115: =VLOOKUP(B115,'2020-21 feebased approved'!$A$4:$H$313,'2020-21 feebased approved'!$H$1,FALSE) -> 2062.801201 | K115: =IF(OR(B115='Model update'!$P$187,B115='Model update'!$Q$187,B115='Model update'!$R$187,B115='Model update'!$S$187,B115='Model update'!$T$187,B115='Model update'!$U$187,B115='Model update'!$V$187,B115='Model update'!$W$187),'Model update'!$J$187,IF(OR(B115='Model update'!$P$188,B115='Model update'!$Q$188,B115='Model update'!$R$188,B115='Model update'!$S$188,B115='Model update'!$T$188,B115='Model update'!$U$188,B115='Model update'!$V$188,B115='Model update'!$W$188),'Model update'!$J$188,'Model update'!$J$186)) -> -0.009825264614 | L115: =J115*(1+'Model update'!$B$31)*(1-'2021_ACS service & prices'!K115)+'Model update'!$J$196 -> 2100.99535
B116: EE_134 | C116: =VLOOKUP(B116,'2020-21 feebased approved'!$A$4:$H$313,2,FALSE) -> SA2TU | D116: Connection application and management services | E116: Supply Abolishment | F116: Retailer requests Ergon Energy to abolish supply at a connection point and decommission a NMI. May be used where a property is to be demolished; supply is no longer required; an alternative connection point is to be used; or a redundant supply is to be removed. Overhead or Underground | G116: SERVICE ONLY - ANYTIME - CT (Complex) | H116: Urban/Short Rural | I116: Fee Based | J116: =VLOOKUP(B116,'2020-21 feebased approved'!$A$4:$H$313,'2020-21 feebased approved'!$H$1,FALSE) -> 611.7575362 | K116: =IF(OR(B116='Model update'!$P$187,B116='Model update'!$Q$187,B116='Model update'!$R$187,B116='Model update'!$S$187,B116='Model update'!$T$187,B116='Model update'!$U$187,B116='Model update'!$V$187,B116='Model update'!$W$187),'Model update'!$J$187,IF(OR(B116='Model update'!$P$188,B116='Model update'!$Q$188,B116='Model update'!$R$188,B116='Model update'!$S$188,B116='Model update'!$T$188,B116='Model update'!$U$188,B116='Model update'!$V$188,B116='Model update'!$W$188),'Model update'!$J$188,'Model update'!$J$186)) -> -0.009825264614 | L116: =J116*(1+'Model update'!$B$31)*(1-'2021_ACS service & prices'!K116)+'Model update'!$J$196 -> 623.0846377
B117: EE_135 | C117: =VLOOKUP(B117,'2020-21 feebased approved'!$A$4:$H$313,2,FALSE) -> SA2TCTU | D117: Connection application and management services | E117: Supply Abolishment | F117: Retailer requests Ergon Energy to abolish supply at a connection point and decommission a NMI. May be used where a property is to be demolished; supply is no longer required; an alternative connection point is to be used; or a redundant supply is to be removed. Overhead or Underground | G117: SERVICE ONLY - ANYTIME - CT (Complex) - Traffic control | H117: Urban/Short Rural | I117: Fee Based | J117: =VLOOKUP(B117,'2020-21 feebased approved'!$A$4:$H$313,'2020-21 feebased approved'!$H$1,FALSE) -> 1409.646539 | K117: =IF(OR(B117='Model update'!$P$187,B117='Model update'!$Q$187,B117='Model update'!$R$187,B117='Model update'!$S$187,B117='Model update'!$T$187,B117='Model update'!$U$187,B117='Model update'!$V$187,B117='Model update'!$W$187),'Model update'!$J$187,IF(OR(B117='Model update'!$P$188,B117='Model update'!$Q$188,B117='Model update'!$R$188,B117='Model update'!$S$188,B117='Model update'!$T$188,B117='Model update'!$U$188,B117='Model update'!$V$188,B117='Model update'!$W$188),'Model update'!$J$188,'Model update'!$J$186)) -> -0.009825264614 | L117: =J117*(1+'Model update'!$B$31)*(1-'2021_ACS service & prices'!K117)+'Model update'!$J$196 -> 1435.747091
B118: EE_136 | C118: =VLOOKUP(B118,'2020-21 feebased approved'!$A$4:$H$313,2,FALSE) -> SA1TU | D118: Connection application and management services | E118: Supply Abolishment | F118: Retailer requests Ergon Energy to abolish supply at a connection point and decommission a NMI. May be used where a property is to be demolished; supply is no longer required; an alternative connection point is to be used; or a redundant supply is to be removed. Overhead or Underground | G118: SERVICE ONLY - ANYTIME - NO CT (Simple) | H118: Urban/Short Rural | I118: Fee Based | J118: =VLOOKUP(B118,'2020-21 feebased approved'!$A$4:$H$313,'2020-21 feebased approved'!$H$1,FALSE) -> 496.7655181 | K118: =IF(OR(B118='Model update'!$P$187,B118='Model update'!$Q$187,B118='Model update'!$R$187,B118='Model update'!$S$187,B118='Model update'!$T$187,B118='Model update'!$U$187,B118='Model update'!$V$187,B118='Model update'!$W$187),'Model update'!$J$187,IF(OR(B118='Model update'!$P$188,B118='Model update'!$Q$188,B118='Model update'!$R$188,B118='Model update'!$S$188,B118='Model update'!$T$188,B118='Model update'!$U$188,B118='Model update'!$V$188,B118='Model update'!$W$188),'Model update'!$J$188,'Model update'!$J$186)) -> -0.009825264614 | L118: =J118*(1+'Model update'!$B$31)*(1-'2021_ACS service & prices'!K118)+'Model update'!$J$196 -> 505.9634652
B119: EE_137 | C119: =VLOOKUP(B119,'2020-21 feebased approved'!$A$4:$H$313,2,FALSE) -> SA1TCTU | D119: Connection application and management services | E119: Supply Abolishment | F119: Retailer requests Ergon Energy to abolish supply at a connection point and decommission a NMI. May be used where a property is to be demolished; supply is no longer required; an alternative connection point is to be used; or a redundant supply is to be removed. Overhead or Underground | G119: SERVICE ONLY - ANYTIME - NO CT (Simple) - Traffic control | H119: Urban/Short Rural | I119: Fee Based | J119: =VLOOKUP(B119,'2020-21 feebased approved'!$A$4:$H$313,'2020-21 feebased approved'!$H$1,FALSE) -> 1294.654521 | K119: =IF(OR(B119='Model update'!$P$187,B119='Model update'!$Q$187,B119='Model update'!$R$187,B119='Model update'!$S$187,B119='Model update'!$T$187,B119='Model update'!$U$187,B119='Model update'!$V$187,B119='Model update'!$W$187),'Model update'!$J$187,IF(OR(B119='Model update'!$P$188,B119='Model update'!$Q$188,B119='Model update'!$R$188,B119='Model update'!$S$188,B119='Model update'!$T$188,B119='Model update'!$U$188,B119='Model update'!$V$188,B119='Model update'!$W$188),'Model update'!$J$188,'Model update'!$J$186)) -> -0.009825264614 | L119: =J119*(1+'Model update'!$B$31)*(1-'2021_ACS service & prices'!K119)+'Model update'!$J$196 -> 1318.625918
B120: EE_138 | C120: =VLOOKUP(B120,'2020-21 feebased approved'!$A$4:$H$313,2,FALSE) -> SA4BU | D120: Connection application and management services | E120: Supply Abolishment | F120: Retailer requests Ergon Energy to abolish supply at a connection point and decommission a NMI. May be used where a property is to be demolished; supply is no longer required; an alternative connection point is to be used; or a redundant supply is to be removed. Overhead or Underground (No travel time) | G120: METER ONLY (Per NMI) - BUSINESS HOURS - CT | H120: Urban/Short Rural | I120: Fee Based | J120: =VLOOKUP(B120,'2020-21 feebased approved'!$A$4:$H$313,'2020-21 feebased approved'!$H$1,FALSE) -> 349.9030595 | K120: =IF(OR(B120='Model update'!$P$187,B120='Model update'!$Q$187,B120='Model update'!$R$187,B120='Model update'!$S$187,B120='Model update'!$T$187,B120='Model update'!$U$187,B120='Model update'!$V$187,B120='Model update'!$W$187),'Model update'!$J$187,IF(OR(B120='Model update'!$P$188,B120='Model update'!$Q$188,B120='Model update'!$R$188,B120='Model update'!$S$188,B120='Model update'!$T$188,B120='Model update'!$U$188,B120='Model update'!$V$188,B120='Model update'!$W$188),'Model update'!$J$188,'Model update'!$J$186)) -> -0.009825264614 | L120: =J120*(1+'Model update'!$B$31)*(1-'2021_ACS service & prices'!K120)+'Model update'!$J$196 -> 356.3817495
B121: EE_139 | C121: =VLOOKUP(B121,'2020-21 feebased approved'!$A$4:$H$313,2,FALSE) -> SA4BL SA4BI | D121: Connection application and management services | E121: Supply Abolishment | F121: Retailer requests Ergon Energy to abolish supply at a connection point and decommission a NMI. May be used where a property is to be demolished; supply is no longer required; an alternative connection point is to be used; or a redundant supply is to be removed. Overhead or Underground (No travel time) | G121: METER ONLY (Per NMI) - BUSINESS HOURS - CT | H121: Long rural/Isolated | I121: Fee Based | J121: =VLOOKUP(B121,'2020-21 feebased approved'!$A$4:$H$313,'2020-21 feebased approved'!$H$1,FALSE) -> 349.9030595 | K121: =IF(OR(B121='Model update'!$P$187,B121='Model update'!$Q$187,B121='Model update'!$R$187,B121='Model update'!$S$187,B121='Model update'!$T$187,B121='Model update'!$U$187,B121='Model update'!$V$187,B121='Model update'!$W$187),'Model update'!$J$187,IF(OR(B121='Model update'!$P$188,B121='Model update'!$Q$188,B121='Model update'!$R$188,B121='Model update'!$S$188,B121='Model update'!$T$188,B121='Model update'!$U$188,B121='Model update'!$V$188,B121='Model update'!$W$188),'Model update'!$J$188,'Model update'!$J$186)) -> -0.009825264614 | L121: =J121*(1+'Model update'!$B$31)*(1-'2021_ACS service & prices'!K121)+'Model update'!$J$196 -> 356.3817495
B122: EE_140 | C122: =VLOOKUP(B122,'2020-21 feebased approved'!$A$4:$H$313,2,FALSE) -> SA3BU | D122: Connection application and management services | E122: Supply Abolishment | F122: Retailer requests Ergon Energy to abolish supply at a connection point and decommission a NMI. May be used where a property is to be demolished; supply is no longer required; an alternative connection point is to be used; or a redundant supply is to be removed. Overhead or Underground (No travel time) | G122: METER ONLY (Per NMI) - BUSINESS HOURS - NO CT | H122: Urban/Short Rural | I122: Fee Based | J122: =VLOOKUP(B122,'2020-21 feebased approved'!$A$4:$H$313,'2020-21 feebased approved'!$H$1,FALSE) -> 87.47576487 | K122: =IF(OR(B122='Model update'!$P$187,B122='Model update'!$Q$187,B122='Model update'!$R$187,B122='Model update'!$S$187,B122='Model update'!$T$187,B122='Model update'!$U$187,B122='Model update'!$V$187,B122='Model update'!$W$187),'Model update'!$J$187,IF(OR(B122='Model update'!$P$188,B122='Model update'!$Q$188,B122='Model update'!$R$188,B122='Model update'!$S$188,B122='Model update'!$T$188,B122='Model update'!$U$188,B122='Model update'!$V$188,B122='Model update'!$W$188),'Model update'!$J$188,'Model update'!$J$186)) -> -0.009825264614 | L122: =J122*(1+'Model update'!$B$31)*(1-'2021_ACS service & prices'!K122)+'Model update'!$J$196 -> 89.09543739
B123: EE_141 | C123: =VLOOKUP(B123,'2020-21 feebased approved'!$A$4:$H$313,2,FALSE) -> SA3BL SA3BI | D123: Connection application and management services | E123: Supply Abolishment | F123: Retailer requests Ergon Energy to abolish supply at a connection point and decommission a NMI. May be used where a property is to be demolished; supply is no longer required; an alternative connection point is to be used; or a redundant supply is to be removed. Overhead or Underground (No travel time) | G123: METER ONLY (Per NMI) - BUSINESS HOURS - NO CT | H123: Long rural/Isolated | I123: Fee Based | J123: =VLOOKUP(B123,'2020-21 feebased approved'!$A$4:$H$313,'2020-21 feebased approved'!$H$1,FALSE) -> 87.47576487 | K123: =IF(OR(B123='Model update'!$P$187,B123='Model update'!$Q$187,B123='Model update'!$R$187,B123='Model update'!$S$187,B123='Model update'!$T$187,B123='Model update'!$U$187,B123='Model update'!$V$187,B123='Model update'!$W$187),'Model update'!$J$187,IF(OR(B123='Model update'!$P$188,B123='Model update'!$Q$188,B123='Model update'!$R$188,B123='Model update'!$S$188,B123='Model update'!$T$188,B123='Model update'!$U$188,B123='Model update'!$V$188,B123='Model update'!$W$188),'Model update'!$J$188,'Model update'!$J$186)) -> -0.009825264614 | L123: =J123*(1+'Model update'!$B$31)*(1-'2021_ACS service & prices'!K123)+'Model update'!$J$196 -> 89.09543739
B124: EE_142 | C124: =VLOOKUP(B124,'2020-21 feebased approved'!$A$4:$H$313,2,FALSE) -> SA4AU | D124: Connection application and management services | E124: Supply Abolishment | F124: Retailer requests Ergon Energy to abolish supply at a connection point and decommission a NMI. May be used where a property is to be demolished; supply is no longer required; an alternative connection point is to be used; or a redundant supply is to be removed. Overhead or Underground (No travel time) | G124: METER ONLY (Per NMI) - AFTER HOURS- CT | H124: Urban/Short Rural | I124: Fee Based | J124: =VLOOKUP(B124,'2020-21 feebased approved'!$A$4:$H$313,'2020-21 feebased approved'!$H$1,FALSE) -> 459.9680723 | K124: =IF(OR(B124='Model update'!$P$187,B124='Model update'!$Q$187,B124='Model update'!$R$187,B124='Model update'!$S$187,B124='Model update'!$T$187,B124='Model update'!$U$187,B124='Model update'!$V$187,B124='Model update'!$W$187),'Model update'!$J$187,IF(OR(B124='Model update'!$P$188,B124='Model update'!$Q$188,B124='Model update'!$R$188,B124='Model update'!$S$188,B124='Model update'!$T$188,B124='Model update'!$U$188,B124='Model update'!$V$188,B124='Model update'!$W$188),'Model update'!$J$188,'Model update'!$J$186)) -> -0.009825264614 | L124: =J124*(1+'Model update'!$B$31)*(1-'2021_ACS service & prices'!K124)+'Model update'!$J$196 -> 468.48469
B125: EE_143 | C125: =VLOOKUP(B125,'2020-21 feebased approved'!$A$4:$H$313,2,FALSE) -> SA4AL SA4AI | D125: Connection application and management services | E125: Supply Abolishment | F125: Retailer requests Ergon Energy to abolish supply at a connection point and decommission a NMI. May be used where a property is to be demolished; supply is no longer required; an alternative connection point is to be used; or a redundant supply is to be removed. Overhead or Underground (No travel time) | G125: METER ONLY (Per NMI) - AFTER HOURS- CT | H125: Long rural/Isolated | I125: Fee Based | J125: =VLOOKUP(B125,'2020-21 feebased approved'!$A$4:$H$313,'2020-21 feebased approved'!$H$1,FALSE) -> 459.9680723 | K125: =IF(OR(B125='Model update'!$P$187,B125='Model update'!$Q$187,B125='Model update'!$R$187,B125='Model update'!$S$187,B125='Model update'!$T$187,B125='Model update'!$U$187,B125='Model update'!$V$187,B125='Model update'!$W$187),'Model update'!$J$187,IF(OR(B125='Model update'!$P$188,B125='Model update'!$Q$188,B125='Model update'!$R$188,B125='Model update'!$S$188,B125='Model update'!$T$188,B125='Model update'!$U$188,B125='Model update'!$V$188,B125='Model update'!$W$188),'Model update'!$J$188,'Model update'!$J$186)) -> -0.009825264614 | L125: =J125*(1+'Model update'!$B$31)*(1-'2021_ACS service & prices'!K125)+'Model update'!$J$196 -> 468.48469
B126: EE_144 | C126: =VLOOKUP(B126,'2020-21 feebased approved'!$A$4:$H$313,2,FALSE) -> SA3AU | D126: Connection application and management services | E126: Supply Abolishment | F126: Retailer requests Ergon Energy to abolish supply at a connection point and decommission a NMI. May be used where a property is to be demolished; supply is no longer required; an alternative connection point is to be used; or a redundant supply is to be removed. Overhead or Underground (No travel time) | G126: METER ONLY (Per NMI) - AFTER HOURS - NO CT | H126: Urban/Short Rural | I126: Fee Based | J126: =VLOOKUP(B126,'2020-21 feebased approved'!$A$4:$H$313,'2020-21 feebased approved'!$H$1,FALSE) -> 114.9920181 | K126: =IF(OR(B126='Model update'!$P$187,B126='Model update'!$Q$187,B126='Model update'!$R$187,B126='Model update'!$S$187,B126='Model update'!$T$187,B126='Model update'!$U$187,B126='Model update'!$V$187,B126='Model update'!$W$187),'Model update'!$J$187,IF(OR(B126='Model update'!$P$188,B126='Model update'!$Q$188,B126='Model update'!$R$188,B126='Model update'!$S$188,B126='Model update'!$T$188,B126='Model update'!$U$188,B126='Model update'!$V$188,B126='Model update'!$W$188),'Model update'!$J$188,'Model update'!$J$186)) -> -0.009825264614 | L126: =J126*(1+'Model update'!$B$31)*(1-'2021_ACS service & prices'!K126)+'Model update'!$J$196 -> 117.1211725
B127: EE_145 | C127: =VLOOKUP(B127,'2020-21 feebased approved'!$A$4:$H$313,2,FALSE) -> SA3AL SA3AI | D127: Connection application and management services | E127: Supply Abolishment | F127: Retailer requests Ergon Energy to abolish supply at a connection point and decommission a NMI. May be used where a property is to be demolished; supply is no longer required; an alternative connection point is to be used; or a redundant supply is to be removed. Overhead or Underground (No travel time) | G127: METER ONLY (Per NMI) - AFTER HOURS - NO CT | H127: Long rural/Isolated | I127: Fee Based | J127: =VLOOKUP(B127,'2020-21 feebased approved'!$A$4:$H$313,'2020-21 feebased approved'!$H$1,FALSE) -> 114.9920181 | K127: =IF(OR(B127='Model update'!$P$187,B127='Model update'!$Q$187,B127='Model update'!$R$187,B127='Model update'!$S$187,B127='Model update'!$T$187,B127='Model update'!$U$187,B127='Model update'!$V$187,B127='Model update'!$W$187),'Model update'!$J$187,IF(OR(B127='Model update'!$P$188,B127='Model update'!$Q$188,B127='Model update'!$R$188,B127='Model update'!$S$188,B127='Model update'!$T$188,B127='Model update'!$U$188,B127='Model update'!$V$188,B127='Model update'!$W$188),'Model update'!$J$188,'Model update'!$J$186)) -> -0.009825264614 | L127: =J127*(1+'Model update'!$B$31)*(1-'2021_ACS service & prices'!K127)+'Model update'!$J$196 -> 117.1211725
B128: EE_146 | C128: =VLOOKUP(B128,'2020-21 feebased approved'!$A$4:$H$313,2,FALSE) -> SA4TU | D128: Connection application and management services | E128: Supply Abolishment | F128: Retailer requests Ergon Energy to abolish supply at a connection point and decommission a NMI. May be used where a property is to be demolished; supply is no longer required; an alternative connection point is to be used; or a redundant supply is to be removed. Overhead or Underground (No travel time) | G128: METER ONLY (Per NMI) - ANYTIME - CT | H128: Urban/Short Rural | I128: Fee Based | J128: =VLOOKUP(B128,'2020-21 feebased approved'!$A$4:$H$313,'2020-21 feebased approved'!$H$1,FALSE) -> 459.9680723 | K128: =IF(OR(B128='Model update'!$P$187,B128='Model update'!$Q$187,B128='Model update'!$R$187,B128='Model update'!$S$187,B128='Model update'!$T$187,B128='Model update'!$U$187,B128='Model update'!$V$187,B128='Model update'!$W$187),'Model update'!$J$187,IF(OR(B128='Model update'!$P$188,B128='Model update'!$Q$188,B128='Model update'!$R$188,B128='Model update'!$S$188,B128='Model update'!$T$188,B128='Model update'!$U$188,B128='Model update'!$V$188,B128='Model update'!$W$188),'Model update'!$J$188,'Model update'!$J$186)) -> -0.009825264614 | L128: =J128*(1+'Model update'!$B$31)*(1-'2021_ACS service & prices'!K128)+'Model update'!$J$196 -> 468.48469
B129: EE_147 | C129: =VLOOKUP(B129,'2020-21 feebased approved'!$A$4:$H$313,2,FALSE) -> SA3TU | D129: Connection application and management services | E129: Supply Abolishment | F129: Retailer requests Ergon Energy to abolish supply at a connection point and decommission a NMI. May be used where a property is to be demolished; supply is no longer required; an alternative connection point is to be used; or a redundant supply is to be removed. Overhead or Underground (No travel time) | G129: METER ONLY (Per NMI) - ANYTIME - NO CT | H129: Urban/Short Rural | I129: Fee Based | J129: =VLOOKUP(B129,'2020-21 feebased approved'!$A$4:$H$313,'2020-21 feebased approved'!$H$1,FALSE) -> 114.9920181 | K129: =IF(OR(B129='Model update'!$P$187,B129='Model update'!$Q$187,B129='Model update'!$R$187,B129='Model update'!$S$187,B129='Model update'!$T$187,B129='Model update'!$U$187,B129='Model update'!$V$187,B129='Model update'!$W$187),'Model update'!$J$187,IF(OR(B129='Model update'!$P$188,B129='Model update'!$Q$188,B129='Model update'!$R$188,B129='Model update'!$S$188,B129='Model update'!$T$188,B129='Model update'!$U$188,B129='Model update'!$V$188,B129='Model update'!$W$188),'Model update'!$J$188,'Model update'!$J$186)) -> -0.009825264614 | L129: =J129*(1+'Model update'!$B$31)*(1-'2021_ACS service & prices'!K129)+'Model update'!$J$196 -> 117.1211725
B130: NEW1 | C130: =VLOOKUP(B130,'2020-21 feebased approved'!$A$4:$H$313,2,FALSE) -> DNUMSBU | D130: Connection application and management services | E130: Supply Abolishment | F130: Request to de-energise an unmetered supply point. | G130: BUSINESS HOURS | H130: Urban/Short Rural | I130: Fee Based | J130: =VLOOKUP(B130,'2020-21 feebased approved'!$A$4:$H$313,'2020-21 feebased approved'!$H$1,FALSE) -> 377.8953042 | K130: =IF(OR(B130='Model update'!$P$187,B130='Model update'!$Q$187,B130='Model update'!$R$187,B130='Model update'!$S$187,B130='Model update'!$T$187,B130='Model update'!$U$187,B130='Model update'!$V$187,B130='Model update'!$W$187),'Model update'!$J$187,IF(OR(B130='Model update'!$P$188,B130='Model update'!$Q$188,B130='Model update'!$R$188,B130='Model update'!$S$188,B130='Model update'!$T$188,B130='Model update'!$U$188,B130='Model update'!$V$188,B130='Model update'!$W$188),'Model update'!$J$188,'Model update'!$J$186)) -> -0.009825264614 | L130: =J130*(1+'Model update'!$B$31)*(1-'2021_ACS service & prices'!K130)+'Model update'!$J$196 -> 384.8922895
B131: NEW2 | C131: =VLOOKUP(B131,'2020-21 feebased approved'!$A$4:$H$313,2,FALSE) -> DNUMSAU | D131: Connection application and management services | E131: Supply Abolishment | F131: Request to de-energise an unmetered supply point. | G131: AFTER HOURS | H131: Urban/Short Rural | I131: Fee Based | J131: =VLOOKUP(B131,'2020-21 feebased approved'!$A$4:$H$313,'2020-21 feebased approved'!$H$1,FALSE) -> 496.7655181 | K131: =IF(OR(B131='Model update'!$P$187,B131='Model update'!$Q$187,B131='Model update'!$R$187,B131='Model update'!$S$187,B131='Model update'!$T$187,B131='Model update'!$U$187,B131='Model update'!$V$187,B131='Model update'!$W$187),'Model update'!$J$187,IF(OR(B131='Model update'!$P$188,B131='Model update'!$Q$188,B131='Model update'!$R$188,B131='Model update'!$S$188,B131='Model update'!$T$188,B131='Model update'!$U$188,B131='Model update'!$V$188,B131='Model update'!$W$188),'Model update'!$J$188,'Model update'!$J$186)) -> -0.009825264614 | L131: =J131*(1+'Model update'!$B$31)*(1-'2021_ACS service & prices'!K131)+'Model update'!$J$196 -> 505.9634652
B132: NEW3 | C132: =VLOOKUP(B132,'2020-21 feebased approved'!$A$4:$H$313,2,FALSE) -> DNUMSTCBU | D132: Connection application and management services | E132: Supply Abolishment | F132: Request to de-energise an unmetered supply point. | G132: BUSINESS HOURS - TRAFFIC CONTROL | H132: Urban/Short Rural | I132: Fee Based | J132: =VLOOKUP(B132,'2020-21 feebased approved'!$A$4:$H$313,'2020-21 feebased approved'!$H$1,FALSE) -> 1175.784307 | K132: =IF(OR(B132='Model update'!$P$187,B132='Model update'!$Q$187,B132='Model update'!$R$187,B132='Model update'!$S$187,B132='Model update'!$T$187,B132='Model update'!$U$187,B132='Model update'!$V$187,B132='Model update'!$W$187),'Model update'!$J$187,IF(OR(B132='Model update'!$P$188,B132='Model update'!$Q$188,B132='Model update'!$R$188,B132='Model update'!$S$188,B132='Model update'!$T$188,B132='Model update'!$U$188,B132='Model update'!$V$188,B132='Model update'!$W$188),'Model update'!$J$188,'Model update'!$J$186)) -> -0.009825264614 | L132: =J132*(1+'Model update'!$B$31)*(1-'2021_ACS service & prices'!K132)+'Model update'!$J$196 -> 1197.554742
B133: NEW4 | C133: =VLOOKUP(B133,'2020-21 feebased approved'!$A$4:$H$313,2,FALSE) -> DNUMSTCAU | D133: Connection application and management services | E133: Supply Abolishment | F133: Request to de-energise an unmetered supply point. | G133: AFTER HOURS - TRAFFIC CONTROL | H133: Urban/Short Rural | I133: Fee Based | J133: =VLOOKUP(B133,'2020-21 feebased approved'!$A$4:$H$313,'2020-21 feebased approved'!$H$1,FALSE) -> 1294.654521 | K133: =IF(OR(B133='Model update'!$P$187,B133='Model update'!$Q$187,B133='Model update'!$R$187,B133='Model update'!$S$187,B133='Model update'!$T$187,B133='Model update'!$U$187,B133='Model update'!$V$187,B133='Model update'!$W$187),'Model update'!$J$187,IF(OR(B133='Model update'!$P$188,B133='Model update'!$Q$188,B133='Model update'!$R$188,B133='Model update'!$S$188,B133='Model update'!$T$188,B133='Model update'!$U$188,B133='Model update'!$V$188,B133='Model update'!$W$188),'Model update'!$J$188,'Model update'!$J$186)) -> -0.009825264614 | L133: =J133*(1+'Model update'!$B$31)*(1-'2021_ACS service & prices'!K133)+'Model update'!$J$196 -> 1318.625918
B134: NEW5 | C134: =VLOOKUP(B134,'2020-21 feebased approved'!$A$4:$H$313,2,FALSE) -> DNUMSBL DNUMSBI | D134: Connection application and management services | E134: Supply Abolishment | F134: Request to de-energise an unmetered supply point. | G134: BUSINESS HOURS | H134: Long rural/Isolated | I134: Fee Based | J134: =VLOOKUP(B134,'2020-21 feebased approved'!$A$4:$H$313,'2020-21 feebased approved'!$H$1,FALSE) -> 962.2334136 | K134: =IF(OR(B134='Model update'!$P$187,B134='Model update'!$Q$187,B134='Model update'!$R$187,B134='Model update'!$S$187,B134='Model update'!$T$187,B134='Model update'!$U$187,B134='Model update'!$V$187,B134='Model update'!$W$187),'Model update'!$J$187,IF(OR(B134='Model update'!$P$188,B134='Model update'!$Q$188,B134='Model update'!$R$188,B134='Model update'!$S$188,B134='Model update'!$T$188,B134='Model update'!$U$188,B134='Model update'!$V$188,B134='Model update'!$W$188),'Model update'!$J$188,'Model update'!$J$186)) -> -0.009825264614 | L134: =J134*(1+'Model update'!$B$31)*(1-'2021_ACS service & prices'!K134)+'Model update'!$J$196 -> 980.0498112
B135: NEW6 | C135: =VLOOKUP(B135,'2020-21 feebased approved'!$A$4:$H$313,2,FALSE) -> DNUMSAL DNUMSAI | D135: Connection application and management services | E135: Supply Abolishment | F135: Request to de-energise an unmetered supply point. | G135: AFTER HOURS | H135: Long rural/Isolated | I135: Fee Based | J135: =VLOOKUP(B135,'2020-21 feebased approved'!$A$4:$H$313,'2020-21 feebased approved'!$H$1,FALSE) -> 1264.912199 | K135: =IF(OR(B135='Model update'!$P$187,B135='Model update'!$Q$187,B135='Model update'!$R$187,B135='Model update'!$S$187,B135='Model update'!$T$187,B135='Model update'!$U$187,B135='Model update'!$V$187,B135='Model update'!$W$187),'Model update'!$J$187,IF(OR(B135='Model update'!$P$188,B135='Model update'!$Q$188,B135='Model update'!$R$188,B135='Model update'!$S$188,B135='Model update'!$T$188,B135='Model update'!$U$188,B135='Model update'!$V$188,B135='Model update'!$W$188),'Model update'!$J$188,'Model update'!$J$186)) -> -0.009825264614 | L135: =J135*(1+'Model update'!$B$31)*(1-'2021_ACS service & prices'!K135)+'Model update'!$J$196 -> 1288.332897
B136: NEW7 | C136: =VLOOKUP(B136,'2020-21 feebased approved'!$A$4:$H$313,2,FALSE) -> DNUMSTCBL DNUMSTCBI | D136: Connection application and management services | E136: Supply Abolishment | F136: Request to de-energise an unmetered supply point. | G136: BUSINESS HOURS - TRAFFIC CONTROL | H136: Long rural/Isolated | I136: Fee Based | J136: =VLOOKUP(B136,'2020-21 feebased approved'!$A$4:$H$313,'2020-21 feebased approved'!$H$1,FALSE) -> 1760.122416 | K136: =IF(OR(B136='Model update'!$P$187,B136='Model update'!$Q$187,B136='Model update'!$R$187,B136='Model update'!$S$187,B136='Model update'!$T$187,B136='Model update'!$U$187,B136='Model update'!$V$187,B136='Model update'!$W$187),'Model update'!$J$187,IF(OR(B136='Model update'!$P$188,B136='Model update'!$Q$188,B136='Model update'!$R$188,B136='Model update'!$S$188,B136='Model update'!$T$188,B136='Model update'!$U$188,B136='Model update'!$V$188,B136='Model update'!$W$188),'Model update'!$J$188,'Model update'!$J$186)) -> -0.009825264614 | L136: =J136*(1+'Model update'!$B$31)*(1-'2021_ACS service & prices'!K136)+'Model update'!$J$196 -> 1792.712264
B137: NEW8 | C137: =VLOOKUP(B137,'2020-21 feebased approved'!$A$4:$H$313,2,FALSE) -> DNUMSTCAL DNUMSTCAI | D137: Connection application and management services | E137: Supply Abolishment | F137: Request to de-energise an unmetered supply point. | G137: AFTER HOURS - TRAFFIC CONTROL | H137: Long rural/Isolated | I137: Fee Based | J137: =VLOOKUP(B137,'2020-21 feebased approved'!$A$4:$H$313,'2020-21 feebased approved'!$H$1,FALSE) -> 2062.801201 | K137: =IF(OR(B137='Model update'!$P$187,B137='Model update'!$Q$187,B137='Model update'!$R$187,B137='Model update'!$S$187,B137='Model update'!$T$187,B137='Model update'!$U$187,B137='Model update'!$V$187,B137='Model update'!$W$187),'Model update'!$J$187,IF(OR(B137='Model update'!$P$188,B137='Model update'!$Q$188,B137='Model update'!$R$188,B137='Model update'!$S$188,B137='Model update'!$T$188,B137='Model update'!$U$188,B137='Model update'!$V$188,B137='Model update'!$W$188),'Model update'!$J$188,'Model update'!$J$186)) -> -0.009825264614 | L137: =J137*(1+'Model update'!$B$31)*(1-'2021_ACS service & prices'!K137)+'Model update'!$J$196 -> 2100.99535
B138: EE_148 | C138: =VLOOKUP(B138,'2020-21 feebased approved'!$A$4:$H$313,2,FALSE) -> SEOMPBU | D138: Connection application and management services | E138: Supply enhancement | F138: Service upgrade. For example, an upgrade from single phase to multi phase and/or increase capacity. Excludes work on metering equipment (if required). Overhead | G138: BUSINESS HOURS - SINGLE TO MULTI PHASE | H138: Urban/Short Rural | I138: Fee Based | J138: =VLOOKUP(B138,'2020-21 feebased approved'!$A$4:$H$313,'2020-21 feebased approved'!$H$1,FALSE) -> 1048.93282 | K138: =IF(OR(B138='Model update'!$P$187,B138='Model update'!$Q$187,B138='Model update'!$R$187,B138='Model update'!$S$187,B138='Model update'!$T$187,B138='Model update'!$U$187,B138='Model update'!$V$187,B138='Model update'!$W$187),'Model update'!$J$187,IF(OR(B138='Model update'!$P$188,B138='Model update'!$Q$188,B138='Model update'!$R$188,B138='Model update'!$S$188,B138='Model update'!$T$188,B138='Model update'!$U$188,B138='Model update'!$V$188,B138='Model update'!$W$188),'Model update'!$J$188,'Model update'!$J$186)) -> -0.009825264614 | L138: =J138*(1+'Model update'!$B$31)*(1-'2021_ACS service & prices'!K138)+'Model update'!$J$196 -> 1068.354516
B139: EE_149 | C139: =VLOOKUP(B139,'2020-21 feebased approved'!$A$4:$H$313,2,FALSE) -> SEOMPBL SEOMPBI | D139: Connection application and management services | E139: Supply enhancement | F139: Service upgrade. For example, an upgrade from single phase to multi phase and/or increase capacity. Excludes work on metering equipment (if required). Overhead | G139: BUSINESS HOURS - SINGLE TO MULTI PHASE | H139: Long rural/Isolated | I139: Fee Based | J139: =VLOOKUP(B139,'2020-21 feebased approved'!$A$4:$H$313,'2020-21 feebased approved'!$H$1,FALSE) -> 1633.27093 | K139: =IF(OR(B139='Model update'!$P$187,B139='Model update'!$Q$187,B139='Model update'!$R$187,B139='Model update'!$S$187,B139='Model update'!$T$187,B139='Model update'!$U$187,B139='Model update'!$V$187,B139='Model update'!$W$187),'Model update'!$J$187,IF(OR(B139='Model update'!$P$188,B139='Model update'!$Q$188,B139='Model update'!$R$188,B139='Model update'!$S$188,B139='Model update'!$T$188,B139='Model update'!$U$188,B139='Model update'!$V$188,B139='Model update'!$W$188),'Model update'!$J$188,'Model update'!$J$186)) -> -0.009825264614 | L139: =J139*(1+'Model update'!$B$31)*(1-'2021_ACS service & prices'!K139)+'Model update'!$J$196 -> 1663.512037
B140: EE_150 | C140: =VLOOKUP(B140,'2020-21 feebased approved'!$A$4:$H$313,2,FALSE) -> SEOMPTCBU | D140: Connection application and management services | E140: Supply enhancement | F140: Service upgrade. For example, an upgrade from single phase to multi phase and/or increase capacity. Excludes work on metering equipment (if required). Overhead | G140: BUSINESS HOURS - SINGLE TO MULTI PHASE - Traffic control | H140: Urban/Short Rural | I140: Fee Based | J140: =VLOOKUP(B140,'2020-21 feebased approved'!$A$4:$H$313,'2020-21 feebased approved'!$H$1,FALSE) -> 1846.821823 | K140: =IF(OR(B140='Model update'!$P$187,B140='Model update'!$Q$187,B140='Model update'!$R$187,B140='Model update'!$S$187,B140='Model update'!$T$187,B140='Model update'!$U$187,B140='Model update'!$V$187,B140='Model update'!$W$187),'Model update'!$J$187,IF(OR(B140='Model update'!$P$188,B140='Model update'!$Q$188,B140='Model update'!$R$188,B140='Model update'!$S$188,B140='Model update'!$T$188,B140='Model update'!$U$188,B140='Model update'!$V$188,B140='Model update'!$W$188),'Model update'!$J$188,'Model update'!$J$186)) -> -0.009825264614 | L140: =J140*(1+'Model update'!$B$31)*(1-'2021_ACS service & prices'!K140)+'Model update'!$J$196 -> 1881.016969
B141: EE_151 | C141: =VLOOKUP(B141,'2020-21 feebased approved'!$A$4:$H$313,2,FALSE) -> SEOMPTCBL SEOMPTCBI | D141: Connection application and management services | E141: Supply enhancement | F141: Service upgrade. For example, an upgrade from single phase to multi phase and/or increase capacity. Excludes work on metering equipment (if required). Overhead | G141: BUSINESS HOURS - SINGLE TO MULTI PHASE - Traffic control | H141: Long rural/Isolated | I141: Fee Based | J141: =VLOOKUP(B141,'2020-21 feebased approved'!$A$4:$H$313,'2020-21 feebased approved'!$H$1,FALSE) -> 2431.159932 | K141: =IF(OR(B141='Model update'!$P$187,B141='Model update'!$Q$187,B141='Model update'!$R$187,B141='Model update'!$S$187,B141='Model update'!$T$187,B141='Model update'!$U$187,B141='Model update'!$V$187,B141='Model update'!$W$187),'Model update'!$J$187,IF(OR(B141='Model update'!$P$188,B141='Model update'!$Q$188,B141='Model update'!$R$188,B141='Model update'!$S$188,B141='Model update'!$T$188,B141='Model update'!$U$188,B141='Model update'!$V$188,B141='Model update'!$W$188),'Model update'!$J$188,'Model update'!$J$186)) -> -0.009825264614 | L141: =J141*(1+'Model update'!$B$31)*(1-'2021_ACS service & prices'!K141)+'Model update'!$J$196 -> 2476.17449
B142: EE_152 | C142: =VLOOKUP(B142,'2020-21 feebased approved'!$A$4:$H$313,2,FALSE) -> SEOCAPBU | D142: Connection application and management services | E142: Supply enhancement | F142: Service upgrade. For example, an upgrade from single phase to multi phase and/or increase capacity. Excludes work on metering equipment (if required). Overhead | G142: BUSINESS HOURS - MULTIPHASE INCREASE CAPACITY | H142: Urban/Short Rural | I142: Fee Based | J142: =VLOOKUP(B142,'2020-21 feebased approved'!$A$4:$H$313,'2020-21 feebased approved'!$H$1,FALSE) -> 1136.408585 | K142: =IF(OR(B142='Model update'!$P$187,B142='Model update'!$Q$187,B142='Model update'!$R$187,B142='Model update'!$S$187,B142='Model update'!$T$187,B142='Model update'!$U$187,B142='Model update'!$V$187,B142='Model update'!$W$187),'Model update'!$J$187,IF(OR(B142='Model update'!$P$188,B142='Model update'!$Q$188,B142='Model update'!$R$188,B142='Model update'!$S$188,B142='Model update'!$T$188,B142='Model update'!$U$188,B142='Model update'!$V$188,B142='Model update'!$W$188),'Model update'!$J$188,'Model update'!$J$186)) -> -0.009825264614 | L142: =J142*(1+'Model update'!$B$31)*(1-'2021_ACS service & prices'!K142)+'Model update'!$J$196 -> 1157.449953
B143: EE_153 | C143: =VLOOKUP(B143,'2020-21 feebased approved'!$A$4:$H$313,2,FALSE) -> SEOCAPBL SEOCAPBI | D143: Connection application and management services | E143: Supply enhancement | F143: Service upgrade. For example, an upgrade from single phase to multi phase and/or increase capacity. Excludes work on metering equipment (if required). Overhead | G143: BUSINESS HOURS - MULTIPHASE INCREASE CAPACITY | H143: Long rural/Isolated | I143: Fee Based | J143: =VLOOKUP(B143,'2020-21 feebased approved'!$A$4:$H$313,'2020-21 feebased approved'!$H$1,FALSE) -> 1720.746694 | K143: =IF(OR(B143='Model update'!$P$187,B143='Model update'!$Q$187,B143='Model update'!$R$187,B143='Model update'!$S$187,B143='Model update'!$T$187,B143='Model update'!$U$187,B143='Model update'!$V$187,B143='Model update'!$W$187),'Model update'!$J$187,IF(OR(B143='Model update'!$P$188,B143='Model update'!$Q$188,B143='Model update'!$R$188,B143='Model update'!$S$188,B143='Model update'!$T$188,B143='Model update'!$U$188,B143='Model update'!$V$188,B143='Model update'!$W$188),'Model update'!$J$188,'Model update'!$J$186)) -> -0.009825264614 | L143: =J143*(1+'Model update'!$B$31)*(1-'2021_ACS service & prices'!K143)+'Model update'!$J$196 -> 1752.607475
B144: EE_154 | C144: =VLOOKUP(B144,'2020-21 feebased approved'!$A$4:$H$313,2,FALSE) -> SEOCAPTCBU | D144: Connection application and management services | E144: Supply enhancement | F144: Service upgrade. For example, an upgrade from single phase to multi phase and/or increase capacity. Excludes work on metering equipment (if required). Overhead | G144: BUSINESS HOURS - MULTIPHASE INCREASE CAPACITY - Traffic control | H144: Urban/Short Rural | I144: Fee Based | J144: =VLOOKUP(B144,'2020-21 feebased approved'!$A$4:$H$313,'2020-21 feebased approved'!$H$1,FALSE) -> 1934.297588 | K144: =IF(OR(B144='Model update'!$P$187,B144='Model update'!$Q$187,B144='Model update'!$R$187,B144='Model update'!$S$187,B144='Model update'!$T$187,B144='Model update'!$U$187,B144='Model update'!$V$187,B144='Model update'!$W$187),'Model update'!$J$187,IF(OR(B144='Model update'!$P$188,B144='Model update'!$Q$188,B144='Model update'!$R$188,B144='Model update'!$S$188,B144='Model update'!$T$188,B144='Model update'!$U$188,B144='Model update'!$V$188,B144='Model update'!$W$188),'Model update'!$J$188,'Model update'!$J$186)) -> -0.009825264614 | L144: =J144*(1+'Model update'!$B$31)*(1-'2021_ACS service & prices'!K144)+'Model update'!$J$196 -> 1970.112406
B145: EE_155 | C145: =VLOOKUP(B145,'2020-21 feebased approved'!$A$4:$H$313,2,FALSE) -> SEOCAPTCBL SEOCAPTCBI | D145: Connection application and management services | E145: Supply enhancement | F145: Service upgrade. For example, an upgrade from single phase to multi phase and/or increase capacity. Excludes work on metering equipment (if required). Overhead | G145: BUSINESS HOURS - MULTIPHASE INCREASE CAPACITY - Traffic control | H145: Long rural/Isolated | I145: Fee Based | J145: =VLOOKUP(B145,'2020-21 feebased approved'!$A$4:$H$313,'2020-21 feebased approved'!$H$1,FALSE) -> 2518.635697 | K145: =IF(OR(B145='Model update'!$P$187,B145='Model update'!$Q$187,B145='Model update'!$R$187,B145='Model update'!$S$187,B145='Model update'!$T$187,B145='Model update'!$U$187,B145='Model update'!$V$187,B145='Model update'!$W$187),'Model update'!$J$187,IF(OR(B145='Model update'!$P$188,B145='Model update'!$Q$188,B145='Model update'!$R$188,B145='Model update'!$S$188,B145='Model update'!$T$188,B145='Model update'!$U$188,B145='Model update'!$V$188,B145='Model update'!$W$188),'Model update'!$J$188,'Model update'!$J$186)) -> -0.009825264614 | L145: =J145*(1+'Model update'!$B$31)*(1-'2021_ACS service & prices'!K145)+'Model update'!$J$196 -> 2565.269928
B146: EE_156 | C146: =VLOOKUP(B146,'2020-21 feebased approved'!$A$4:$H$313,2,FALSE) -> SEOMPAU | D146: Connection application and management services | E146: Supply enhancement | F146: Service upgrade. For example, an upgrade from single phase to multi phase and/or increase capacity. Excludes work on metering equipment (if required). Overhead | G146: AFTER HOURS - SINGLE TO MULTI PHASE | H146: Urban/Short Rural | I146: Fee Based | J146: =VLOOKUP(B146,'2020-21 feebased approved'!$A$4:$H$313,'2020-21 feebased approved'!$H$1,FALSE) -> 1305.3843 | K146: =IF(OR(B146='Model update'!$P$187,B146='Model update'!$Q$187,B146='Model update'!$R$187,B146='Model update'!$S$187,B146='Model update'!$T$187,B146='Model update'!$U$187,B146='Model update'!$V$187,B146='Model update'!$W$187),'Model update'!$J$187,IF(OR(B146='Model update'!$P$188,B146='Model update'!$Q$188,B146='Model update'!$R$188,B146='Model update'!$S$188,B146='Model update'!$T$188,B146='Model update'!$U$188,B146='Model update'!$V$188,B146='Model update'!$W$188),'Model update'!$J$188,'Model update'!$J$186)) -> -0.009825264614 | L146: =J146*(1+'Model update'!$B$31)*(1-'2021_ACS service & prices'!K146)+'Model update'!$J$196 -> 1329.554367
B147: EE_157 | C147: =VLOOKUP(B147,'2020-21 feebased approved'!$A$4:$H$313,2,FALSE) -> SEOMPAL SEOMPAI | D147: Connection application and management services | E147: Supply enhancement | F147: Service upgrade. For example, an upgrade from single phase to multi phase and/or increase capacity. Excludes work on metering equipment (if required). Overhead | G147: AFTER HOURS - SINGLE TO MULTI PHASE | H147: Long rural/Isolated | I147: Fee Based | J147: =VLOOKUP(B147,'2020-21 feebased approved'!$A$4:$H$313,'2020-21 feebased approved'!$H$1,FALSE) -> 2073.530981 | K147: =IF(OR(B147='Model update'!$P$187,B147='Model update'!$Q$187,B147='Model update'!$R$187,B147='Model update'!$S$187,B147='Model update'!$T$187,B147='Model update'!$U$187,B147='Model update'!$V$187,B147='Model update'!$W$187),'Model update'!$J$187,IF(OR(B147='Model update'!$P$188,B147='Model update'!$Q$188,B147='Model update'!$R$188,B147='Model update'!$S$188,B147='Model update'!$T$188,B147='Model update'!$U$188,B147='Model update'!$V$188,B147='Model update'!$W$188),'Model update'!$J$188,'Model update'!$J$186)) -> -0.009825264614 | L147: =J147*(1+'Model update'!$B$31)*(1-'2021_ACS service & prices'!K147)+'Model update'!$J$196 -> 2111.923799
B148: EE_158 | C148: =VLOOKUP(B148,'2020-21 feebased approved'!$A$4:$H$313,2,FALSE) -> SEOMPTCAU | D148: Connection application and management services | E148: Supply enhancement | F148: Service upgrade. For example, an upgrade from single phase to multi phase and/or increase capacity. Excludes work on metering equipment (if required). Overhead | G148: AFTER HOURS - SINGLE TO MULTI PHASE - Traffic control | H148: Urban/Short Rural | I148: Fee Based | J148: =VLOOKUP(B148,'2020-21 feebased approved'!$A$4:$H$313,'2020-21 feebased approved'!$H$1,FALSE) -> 2103.273303 | K148: =IF(OR(B148='Model update'!$P$187,B148='Model update'!$Q$187,B148='Model update'!$R$187,B148='Model update'!$S$187,B148='Model update'!$T$187,B148='Model update'!$U$187,B148='Model update'!$V$187,B148='Model update'!$W$187),'Model update'!$J$187,IF(OR(B148='Model update'!$P$188,B148='Model update'!$Q$188,B148='Model update'!$R$188,B148='Model update'!$S$188,B148='Model update'!$T$188,B148='Model update'!$U$188,B148='Model update'!$V$188,B148='Model update'!$W$188),'Model update'!$J$188,'Model update'!$J$186)) -> -0.009825264614 | L148: =J148*(1+'Model update'!$B$31)*(1-'2021_ACS service & prices'!K148)+'Model update'!$J$196 -> 2142.21682
B149: EE_159 | C149: =VLOOKUP(B149,'2020-21 feebased approved'!$A$4:$H$313,2,FALSE) -> SEOMPTCAL SEOMPTCAI | D149: Connection application and management services | E149: Supply enhancement | F149: Service upgrade. For example, an upgrade from single phase to multi phase and/or increase capacity. Excludes work on metering equipment (if required). Overhead | G149: AFTER HOURS - SINGLE TO MULTI PHASE - Traffic control | H149: Long rural/Isolated | I149: Fee Based | J149: =VLOOKUP(B149,'2020-21 feebased approved'!$A$4:$H$313,'2020-21 feebased approved'!$H$1,FALSE) -> 2871.419983 | K149: =IF(OR(B149='Model update'!$P$187,B149='Model update'!$Q$187,B149='Model update'!$R$187,B149='Model update'!$S$187,B149='Model update'!$T$187,B149='Model update'!$U$187,B149='Model update'!$V$187,B149='Model update'!$W$187),'Model update'!$J$187,IF(OR(B149='Model update'!$P$188,B149='Model update'!$Q$188,B149='Model update'!$R$188,B149='Model update'!$S$188,B149='Model update'!$T$188,B149='Model update'!$U$188,B149='Model update'!$V$188,B149='Model update'!$W$188),'Model update'!$J$188,'Model update'!$J$186)) -> -0.009825264614 | L149: =J149*(1+'Model update'!$B$31)*(1-'2021_ACS service & prices'!K149)+'Model update'!$J$196 -> 2924.586252
B150: EE_160 | C150: =VLOOKUP(B150,'2020-21 feebased approved'!$A$4:$H$313,2,FALSE) -> SEOCAPAU | D150: Connection application and management services | E150: Supply enhancement | F150: Service upgrade. For example, an upgrade from single phase to multi phase and/or increase capacity. Excludes work on metering equipment (if required). Overhead | G150: AFTER HOURS - MULTIPHASE INCREASE CAPACITY | H150: Urban/Short Rural | I150: Fee Based | J150: =VLOOKUP(B150,'2020-21 feebased approved'!$A$4:$H$313,'2020-21 feebased approved'!$H$1,FALSE) -> 1420.376318 | K150: =IF(OR(B150='Model update'!$P$187,B150='Model update'!$Q$187,B150='Model update'!$R$187,B150='Model update'!$S$187,B150='Model update'!$T$187,B150='Model update'!$U$187,B150='Model update'!$V$187,B150='Model update'!$W$187),'Model update'!$J$187,IF(OR(B150='Model update'!$P$188,B150='Model update'!$Q$188,B150='Model update'!$R$188,B150='Model update'!$S$188,B150='Model update'!$T$188,B150='Model update'!$U$188,B150='Model update'!$V$188,B150='Model update'!$W$188),'Model update'!$J$188,'Model update'!$J$186)) -> -0.009825264614 | L150: =J150*(1+'Model update'!$B$31)*(1-'2021_ACS service & prices'!K150)+'Model update'!$J$196 -> 1446.675539
B151: EE_161 | C151: =VLOOKUP(B151,'2020-21 feebased approved'!$A$4:$H$313,2,FALSE) -> SEOCAPAL SEOCAPAI | D151: Connection application and management services | E151: Supply enhancement | F151: Service upgrade. For example, an upgrade from single phase to multi phase and/or increase capacity. Excludes work on metering equipment (if required). Overhead | G151: AFTER HOURS - MULTIPHASE INCREASE CAPACITY | H151: Long rural/Isolated | I151: Fee Based | J151: =VLOOKUP(B151,'2020-21 feebased approved'!$A$4:$H$313,'2020-21 feebased approved'!$H$1,FALSE) -> 2188.522999 | K151: =IF(OR(B151='Model update'!$P$187,B151='Model update'!$Q$187,B151='Model update'!$R$187,B151='Model update'!$S$187,B151='Model update'!$T$187,B151='Model update'!$U$187,B151='Model update'!$V$187,B151='Model update'!$W$187),'Model update'!$J$187,IF(OR(B151='Model update'!$P$188,B151='Model update'!$Q$188,B151='Model update'!$R$188,B151='Model update'!$S$188,B151='Model update'!$T$188,B151='Model update'!$U$188,B151='Model update'!$V$188,B151='Model update'!$W$188),'Model update'!$J$188,'Model update'!$J$186)) -> -0.009825264614 | L151: =J151*(1+'Model update'!$B$31)*(1-'2021_ACS service & prices'!K151)+'Model update'!$J$196 -> 2229.044972
B152: EE_162 | C152: =VLOOKUP(B152,'2020-21 feebased approved'!$A$4:$H$313,2,FALSE) -> SEOCAPTCAU | D152: Connection application and management services | E152: Supply enhancement | F152: Service upgrade. For example, an upgrade from single phase to multi phase and/or increase capacity. Excludes work on metering equipment (if required). Overhead | G152: AFTER HOURS - MULTIPHASE INCREASE CAPACITY - Traffic control | H152: Urban/Short Rural | I152: Fee Based | J152: =VLOOKUP(B152,'2020-21 feebased approved'!$A$4:$H$313,'2020-21 feebased approved'!$H$1,FALSE) -> 2218.265321 | K152: =IF(OR(B152='Model update'!$P$187,B152='Model update'!$Q$187,B152='Model update'!$R$187,B152='Model update'!$S$187,B152='Model update'!$T$187,B152='Model update'!$U$187,B152='Model update'!$V$187,B152='Model update'!$W$187),'Model update'!$J$187,IF(OR(B152='Model update'!$P$188,B152='Model update'!$Q$188,B152='Model update'!$R$188,B152='Model update'!$S$188,B152='Model update'!$T$188,B152='Model update'!$U$188,B152='Model update'!$V$188,B152='Model update'!$W$188),'Model update'!$J$188,'Model update'!$J$186)) -> -0.009825264614 | L152: =J152*(1+'Model update'!$B$31)*(1-'2021_ACS service & prices'!K152)+'Model update'!$J$196 -> 2259.337992
B153: EE_163 | C153: =VLOOKUP(B153,'2020-21 feebased approved'!$A$4:$H$313,2,FALSE) -> SEOCAPTCAL SEOCAPTCAI | D153: Connection application and management services | E153: Supply enhancement | F153: Service upgrade. For example, an upgrade from single phase to multi phase and/or increase capacity. Excludes work on metering equipment (if required). Overhead | G153: AFTER HOURS - MULTIPHASE INCREASE CAPACITY - Traffic control | H153: Long rural/Isolated | I153: Fee Based | J153: =VLOOKUP(B153,'2020-21 feebased approved'!$A$4:$H$313,'2020-21 feebased approved'!$H$1,FALSE) -> 2986.412001 | K153: =IF(OR(B153='Model update'!$P$187,B153='Model update'!$Q$187,B153='Model update'!$R$187,B153='Model update'!$S$187,B153='Model update'!$T$187,B153='Model update'!$U$187,B153='Model update'!$V$187,B153='Model update'!$W$187),'Model update'!$J$187,IF(OR(B153='Model update'!$P$188,B153='Model update'!$Q$188,B153='Model update'!$R$188,B153='Model update'!$S$188,B153='Model update'!$T$188,B153='Model update'!$U$188,B153='Model update'!$V$188,B153='Model update'!$W$188),'Model update'!$J$188,'Model update'!$J$186)) -> -0.009825264614 | L153: =J153*(1+'Model update'!$B$31)*(1-'2021_ACS service & prices'!K153)+'Model update'!$J$196 -> 3041.707425
B154: EE_164 | C154: =VLOOKUP(B154,'2020-21 feebased approved'!$A$4:$H$313,2,FALSE) -> SEUMPBU | D154: Connection application and management services | E154: Supply enhancement | F154: Service upgrade. For example, an upgrade from single phase to multi phase and/or increase capacity. Excludes work on metering equipment (if required). Underground | G154: BUSINESS HOURS - SINGLE TO MULTI PHASE | H154: Urban/Short Rural | I154: Fee Based | J154: =VLOOKUP(B154,'2020-21 feebased approved'!$A$4:$H$313,'2020-21 feebased approved'!$H$1,FALSE) -> 232.6855346 | K154: =IF(OR(B154='Model update'!$P$187,B154='Model update'!$Q$187,B154='Model update'!$R$187,B154='Model update'!$S$187,B154='Model update'!$T$187,B154='Model update'!$U$187,B154='Model update'!$V$187,B154='Model update'!$W$187),'Model update'!$J$187,IF(OR(B154='Model update'!$P$188,B154='Model update'!$Q$188,B154='Model update'!$R$188,B154='Model update'!$S$188,B154='Model update'!$T$188,B154='Model update'!$U$188,B154='Model update'!$V$188,B154='Model update'!$W$188),'Model update'!$J$188,'Model update'!$J$186)) -> -0.009825264614 | L154: =J154*(1+'Model update'!$B$31)*(1-'2021_ACS service & prices'!K154)+'Model update'!$J$196 -> 236.9938634
B155: EE_165 | C155: =VLOOKUP(B155,'2020-21 feebased approved'!$A$4:$H$313,2,FALSE) -> SEUMPBL SEUMPBI | D155: Connection application and management services | E155: Supply enhancement | F155: Service upgrade. For example, an upgrade from single phase to multi phase and/or increase capacity. Excludes work on metering equipment (if required). Underground | G155: BUSINESS HOURS - SINGLE TO MULTI PHASE | H155: Long rural/Isolated | I155: Fee Based | J155: =VLOOKUP(B155,'2020-21 feebased approved'!$A$4:$H$313,'2020-21 feebased approved'!$H$1,FALSE) -> 524.8545892 | K155: =IF(OR(B155='Model update'!$P$187,B155='Model update'!$Q$187,B155='Model update'!$R$187,B155='Model update'!$S$187,B155='Model update'!$T$187,B155='Model update'!$U$187,B155='Model update'!$V$187,B155='Model update'!$W$187),'Model update'!$J$187,IF(OR(B155='Model update'!$P$188,B155='Model update'!$Q$188,B155='Model update'!$R$188,B155='Model update'!$S$188,B155='Model update'!$T$188,B155='Model update'!$U$188,B155='Model update'!$V$188,B155='Model update'!$W$188),'Model update'!$J$188,'Model update'!$J$186)) -> -0.009825264614 | L155: =J155*(1+'Model update'!$B$31)*(1-'2021_ACS service & prices'!K155)+'Model update'!$J$196 -> 534.5726243
B156: EE_166 | C156: =VLOOKUP(B156,'2020-21 feebased approved'!$A$4:$H$313,2,FALSE) -> SEUMPTCBU | D156: Connection application and management services | E156: Supply enhancement | F156: Service upgrade. For example, an upgrade from single phase to multi phase and/or increase capacity. Excludes work on metering equipment (if required). Underground | G156: BUSINESS HOURS - SINGLE TO MULTI PHASE - Traffic control | H156: Urban/Short Rural | I156: Fee Based | J156: =VLOOKUP(B156,'2020-21 feebased approved'!$A$4:$H$313,'2020-21 feebased approved'!$H$1,FALSE) -> 1030.574537 | K156: =IF(OR(B156='Model update'!$P$187,B156='Model update'!$Q$187,B156='Model update'!$R$187,B156='Model update'!$S$187,B156='Model update'!$T$187,B156='Model update'!$U$187,B156='Model update'!$V$187,B156='Model update'!$W$187),'Model update'!$J$187,IF(OR(B156='Model update'!$P$188,B156='Model update'!$Q$188,B156='Model update'!$R$188,B156='Model update'!$S$188,B156='Model update'!$T$188,B156='Model update'!$U$188,B156='Model update'!$V$188,B156='Model update'!$W$188),'Model update'!$J$188,'Model update'!$J$186)) -> -0.009825264614 | L156: =J156*(1+'Model update'!$B$31)*(1-'2021_ACS service & prices'!K156)+'Model update'!$J$196 -> 1049.656316
B157: EE_167 | C157: =VLOOKUP(B157,'2020-21 feebased approved'!$A$4:$H$313,2,FALSE) -> SEUMPTCBL SEUMPTCBI | D157: Connection application and management services | E157: Supply enhancement | F157: Service upgrade. For example, an upgrade from single phase to multi phase and/or increase capacity. Excludes work on metering equipment (if required). Underground | G157: BUSINESS HOURS - SINGLE TO MULTI PHASE - Traffic control | H157: Long rural/Isolated | I157: Fee Based | J157: =VLOOKUP(B157,'2020-21 feebased approved'!$A$4:$H$313,'2020-21 feebased approved'!$H$1,FALSE) -> 1322.743592 | K157: =IF(OR(B157='Model update'!$P$187,B157='Model update'!$Q$187,B157='Model update'!$R$187,B157='Model update'!$S$187,B157='Model update'!$T$187,B157='Model update'!$U$187,B157='Model update'!$V$187,B157='Model update'!$W$187),'Model update'!$J$187,IF(OR(B157='Model update'!$P$188,B157='Model update'!$Q$188,B157='Model update'!$R$188,B157='Model update'!$S$188,B157='Model update'!$T$188,B157='Model update'!$U$188,B157='Model update'!$V$188,B157='Model update'!$W$188),'Model update'!$J$188,'Model update'!$J$186)) -> -0.009825264614 | L157: =J157*(1+'Model update'!$B$31)*(1-'2021_ACS service & prices'!K157)+'Model update'!$J$196 -> 1347.235077
B158: EE_168 | C158: =VLOOKUP(B158,'2020-21 feebased approved'!$A$4:$H$313,2,FALSE) -> SEUCAPBU | D158: Connection application and management services | E158: Supply enhancement | F158: Service upgrade. For example, an upgrade from single phase to multi phase and/or increase capacity. Excludes work on metering equipment (if required). Underground | G158: BUSINESS HOURS - MULTIPHASE INCREASE CAPACITY | H158: Urban/Short Rural | I158: Fee Based | J158: =VLOOKUP(B158,'2020-21 feebased approved'!$A$4:$H$313,'2020-21 feebased approved'!$H$1,FALSE) -> 232.6855346 | K158: =IF(OR(B158='Model update'!$P$187,B158='Model update'!$Q$187,B158='Model update'!$R$187,B158='Model update'!$S$187,B158='Model update'!$T$187,B158='Model update'!$U$187,B158='Model update'!$V$187,B158='Model update'!$W$187),'Model update'!$J$187,IF(OR(B158='Model update'!$P$188,B158='Model update'!$Q$188,B158='Model update'!$R$188,B158='Model update'!$S$188,B158='Model update'!$T$188,B158='Model update'!$U$188,B158='Model update'!$V$188,B158='Model update'!$W$188),'Model update'!$J$188,'Model update'!$J$186)) -> -0.009825264614 | L158: =J158*(1+'Model update'!$B$31)*(1-'2021_ACS service & prices'!K158)+'Model update'!$J$196 -> 236.9938634
B159: EE_169 | C159: =VLOOKUP(B159,'2020-21 feebased approved'!$A$4:$H$313,2,FALSE) -> SEUCAPBL SEUCAPBI | D159: Connection application and management services | E159: Supply enhancement | F159: Service upgrade. For example, an upgrade from single phase to multi phase and/or increase capacity. Excludes work on metering equipment (if required). Underground | G159: BUSINESS HOURS - MULTIPHASE INCREASE CAPACITY | H159: Long rural/Isolated | I159: Fee Based | J159: =VLOOKUP(B159,'2020-21 feebased approved'!$A$4:$H$313,'2020-21 feebased approved'!$H$1,FALSE) -> 524.8545892 | K159: =IF(OR(B159='Model update'!$P$187,B159='Model update'!$Q$187,B159='Model update'!$R$187,B159='Model update'!$S$187,B159='Model update'!$T$187,B159='Model update'!$U$187,B159='Model update'!$V$187,B159='Model update'!$W$187),'Model update'!$J$187,IF(OR(B159='Model update'!$P$188,B159='Model update'!$Q$188,B159='Model update'!$R$188,B159='Model update'!$S$188,B159='Model update'!$T$188,B159='Model update'!$U$188,B159='Model update'!$V$188,B159='Model update'!$W$188),'Model update'!$J$188,'Model update'!$J$186)) -> -0.009825264614 | L159: =J159*(1+'Model update'!$B$31)*(1-'2021_ACS service & prices'!K159)+'Model update'!$J$196 -> 534.5726243
B160: EE_170 | C160: =VLOOKUP(B160,'2020-21 feebased approved'!$A$4:$H$313,2,FALSE) -> SEUCAPTCBU | D160: Connection application and management services | E160: Supply enhancement | F160: Service upgrade. For example, an upgrade from single phase to multi phase and/or increase capacity. Excludes work on metering equipment (if required). Underground | G160: BUSINESS HOURS - MULTIPHASE INCREASE CAPACITY - Traffic control | H160: Urban/Short Rural | I160: Fee Based | J160: =VLOOKUP(B160,'2020-21 feebased approved'!$A$4:$H$313,'2020-21 feebased approved'!$H$1,FALSE) -> 1030.574537 | K160: =IF(OR(B160='Model update'!$P$187,B160='Model update'!$Q$187,B160='Model update'!$R$187,B160='Model update'!$S$187,B160='Model update'!$T$187,B160='Model update'!$U$187,B160='Model update'!$V$187,B160='Model update'!$W$187),'Model update'!$J$187,IF(OR(B160='Model update'!$P$188,B160='Model update'!$Q$188,B160='Model update'!$R$188,B160='Model update'!$S$188,B160='Model update'!$T$188,B160='Model update'!$U$188,B160='Model update'!$V$188,B160='Model update'!$W$188),'Model update'!$J$188,'Model update'!$J$186)) -> -0.009825264614 | L160: =J160*(1+'Model update'!$B$31)*(1-'2021_ACS service & prices'!K160)+'Model update'!$J$196 -> 1049.656316
B161: EE_171 | C161: =VLOOKUP(B161,'2020-21 feebased approved'!$A$4:$H$313,2,FALSE) -> SEUCAPTCBL SEUCAPTCBI | D161: Connection application and management services | E161: Supply enhancement | F161: Service upgrade. For example, an upgrade from single phase to multi phase and/or increase capacity. Excludes work on metering equipment (if required). Underground | G161: BUSINESS HOURS - MULTIPHASE INCREASE CAPACITY - Traffic control | H161: Long rural/Isolated | I161: Fee Based | J161: =VLOOKUP(B161,'2020-21 feebased approved'!$A$4:$H$313,'2020-21 feebased approved'!$H$1,FALSE) -> 1322.743592 | K161: =IF(OR(B161='Model update'!$P$187,B161='Model update'!$Q$187,B161='Model update'!$R$187,B161='Model update'!$S$187,B161='Model update'!$T$187,B161='Model update'!$U$187,B161='Model update'!$V$187,B161='Model update'!$W$187),'Model update'!$J$187,IF(OR(B161='Model update'!$P$188,B161='Model update'!$Q$188,B161='Model update'!$R$188,B161='Model update'!$S$188,B161='Model update'!$T$188,B161='Model update'!$U$188,B161='Model update'!$V$188,B161='Model update'!$W$188),'Model update'!$J$188,'Model update'!$J$186)) -> -0.009825264614 | L161: =J161*(1+'Model update'!$B$31)*(1-'2021_ACS service & prices'!K161)+'Model update'!$J$196 -> 1347.235077
B162: EE_172 | C162: =VLOOKUP(B162,'2020-21 feebased approved'!$A$4:$H$313,2,FALSE) -> SEUMPAU | D162: Connection application and management services | E162: Supply enhancement | F162: Service upgrade. For example, an upgrade from single phase to multi phase and/or increase capacity. Excludes work on metering equipment (if required). Underground | G162: AFTER HOURS - SINGLE TO MULTI PHASE | H162: Urban/Short Rural | I162: Fee Based | J162: =VLOOKUP(B162,'2020-21 feebased approved'!$A$4:$H$313,'2020-21 feebased approved'!$H$1,FALSE) -> 305.8787681 | K162: =IF(OR(B162='Model update'!$P$187,B162='Model update'!$Q$187,B162='Model update'!$R$187,B162='Model update'!$S$187,B162='Model update'!$T$187,B162='Model update'!$U$187,B162='Model update'!$V$187,B162='Model update'!$W$187),'Model update'!$J$187,IF(OR(B162='Model update'!$P$188,B162='Model update'!$Q$188,B162='Model update'!$R$188,B162='Model update'!$S$188,B162='Model update'!$T$188,B162='Model update'!$U$188,B162='Model update'!$V$188,B162='Model update'!$W$188),'Model update'!$J$188,'Model update'!$J$186)) -> -0.009825264614 | L162: =J162*(1+'Model update'!$B$31)*(1-'2021_ACS service & prices'!K162)+'Model update'!$J$196 -> 311.5423188
B163: EE_173 | C163: =VLOOKUP(B163,'2020-21 feebased approved'!$A$4:$H$313,2,FALSE) -> SEUMPAL SEUMPAI | D163: Connection application and management services | E163: Supply enhancement | F163: Service upgrade. For example, an upgrade from single phase to multi phase and/or increase capacity. Excludes work on metering equipment (if required). Underground | G163: AFTER HOURS - SINGLE TO MULTI PHASE | H163: Long rural/Isolated | I163: Fee Based | J163: =VLOOKUP(B163,'2020-21 feebased approved'!$A$4:$H$313,'2020-21 feebased approved'!$H$1,FALSE) -> 689.9521085 | K163: =IF(OR(B163='Model update'!$P$187,B163='Model update'!$Q$187,B163='Model update'!$R$187,B163='Model update'!$S$187,B163='Model update'!$T$187,B163='Model update'!$U$187,B163='Model update'!$V$187,B163='Model update'!$W$187),'Model update'!$J$187,IF(OR(B163='Model update'!$P$188,B163='Model update'!$Q$188,B163='Model update'!$R$188,B163='Model update'!$S$188,B163='Model update'!$T$188,B163='Model update'!$U$188,B163='Model update'!$V$188,B163='Model update'!$W$188),'Model update'!$J$188,'Model update'!$J$186)) -> -0.009825264614 | L163: =J163*(1+'Model update'!$B$31)*(1-'2021_ACS service & prices'!K163)+'Model update'!$J$196 -> 702.727035
B164: EE_174 | C164: =VLOOKUP(B164,'2020-21 feebased approved'!$A$4:$H$313,2,FALSE) -> SEUMPTCAU | D164: Connection application and management services | E164: Supply enhancement | F164: Service upgrade. For example, an upgrade from single phase to multi phase and/or increase capacity. Excludes work on metering equipment (if required). Underground | G164: AFTER HOURS - SINGLE TO MULTI PHASE - Traffic control | H164: Urban/Short Rural | I164: Fee Based | J164: =VLOOKUP(B164,'2020-21 feebased approved'!$A$4:$H$313,'2020-21 feebased approved'!$H$1,FALSE) -> 1103.767771 | K164: =IF(OR(B164='Model update'!$P$187,B164='Model update'!$Q$187,B164='Model update'!$R$187,B164='Model update'!$S$187,B164='Model update'!$T$187,B164='Model update'!$U$187,B164='Model update'!$V$187,B164='Model update'!$W$187),'Model update'!$J$187,IF(OR(B164='Model update'!$P$188,B164='Model update'!$Q$188,B164='Model update'!$R$188,B164='Model update'!$S$188,B164='Model update'!$T$188,B164='Model update'!$U$188,B164='Model update'!$V$188,B164='Model update'!$W$188),'Model update'!$J$188,'Model update'!$J$186)) -> -0.009825264614 | L164: =J164*(1+'Model update'!$B$31)*(1-'2021_ACS service & prices'!K164)+'Model update'!$J$196 -> 1124.204772
B165: EE_175 | C165: =VLOOKUP(B165,'2020-21 feebased approved'!$A$4:$H$313,2,FALSE) -> SEUMPTCAL SEUMPTCAI | D165: Connection application and management services | E165: Supply enhancement | F165: Service upgrade. For example, an upgrade from single phase to multi phase and/or increase capacity. Excludes work on metering equipment (if required). Underground | G165: AFTER HOURS - SINGLE TO MULTI PHASE - Traffic control | H165: Long rural/Isolated | I165: Fee Based | J165: =VLOOKUP(B165,'2020-21 feebased approved'!$A$4:$H$313,'2020-21 feebased approved'!$H$1,FALSE) -> 1487.841111 | K165: =IF(OR(B165='Model update'!$P$187,B165='Model update'!$Q$187,B165='Model update'!$R$187,B165='Model update'!$S$187,B165='Model update'!$T$187,B165='Model update'!$U$187,B165='Model update'!$V$187,B165='Model update'!$W$187),'Model update'!$J$187,IF(OR(B165='Model update'!$P$188,B165='Model update'!$Q$188,B165='Model update'!$R$188,B165='Model update'!$S$188,B165='Model update'!$T$188,B165='Model update'!$U$188,B165='Model update'!$V$188,B165='Model update'!$W$188),'Model update'!$J$188,'Model update'!$J$186)) -> -0.009825264614 | L165: =J165*(1+'Model update'!$B$31)*(1-'2021_ACS service & prices'!K165)+'Model update'!$J$196 -> 1515.389488
B166: EE_176 | C166: =VLOOKUP(B166,'2020-21 feebased approved'!$A$4:$H$313,2,FALSE) -> SEUCAPAU | D166: Connection application and management services | E166: Supply enhancement | F166: Service upgrade. For example, an upgrade from single phase to multi phase and/or increase capacity. Excludes work on metering equipment (if required). Underground | G166: AFTER HOURS - MULTIPHASE INCREASE CAPACITY | H166: Urban/Short Rural | I166: Fee Based | J166: =VLOOKUP(B166,'2020-21 feebased approved'!$A$4:$H$313,'2020-21 feebased approved'!$H$1,FALSE) -> 305.8787681 | K166: =IF(OR(B166='Model update'!$P$187,B166='Model update'!$Q$187,B166='Model update'!$R$187,B166='Model update'!$S$187,B166='Model update'!$T$187,B166='Model update'!$U$187,B166='Model update'!$V$187,B166='Model update'!$W$187),'Model update'!$J$187,IF(OR(B166='Model update'!$P$188,B166='Model update'!$Q$188,B166='Model update'!$R$188,B166='Model update'!$S$188,B166='Model update'!$T$188,B166='Model update'!$U$188,B166='Model update'!$V$188,B166='Model update'!$W$188),'Model update'!$J$188,'Model update'!$J$186)) -> -0.009825264614 | L166: =J166*(1+'Model update'!$B$31)*(1-'2021_ACS service & prices'!K166)+'Model update'!$J$196 -> 311.5423188
B167: EE_177 | C167: =VLOOKUP(B167,'2020-21 feebased approved'!$A$4:$H$313,2,FALSE) -> SEUCAPAL SEUCAPAI | D167: Connection application and management services | E167: Supply enhancement | F167: Service upgrade. For example, an upgrade from single phase to multi phase and/or increase capacity. Excludes work on metering equipment (if required). Underground | G167: AFTER HOURS - MULTIPHASE INCREASE CAPACITY | H167: Long rural/Isolated | I167: Fee Based | J167: =VLOOKUP(B167,'2020-21 feebased approved'!$A$4:$H$313,'2020-21 feebased approved'!$H$1,FALSE) -> 689.9521085 | K167: =IF(OR(B167='Model update'!$P$187,B167='Model update'!$Q$187,B167='Model update'!$R$187,B167='Model update'!$S$187,B167='Model update'!$T$187,B167='Model update'!$U$187,B167='Model update'!$V$187,B167='Model update'!$W$187),'Model update'!$J$187,IF(OR(B167='Model update'!$P$188,B167='Model update'!$Q$188,B167='Model update'!$R$188,B167='Model update'!$S$188,B167='Model update'!$T$188,B167='Model update'!$U$188,B167='Model update'!$V$188,B167='Model update'!$W$188),'Model update'!$J$188,'Model update'!$J$186)) -> -0.009825264614 | L167: =J167*(1+'Model update'!$B$31)*(1-'2021_ACS service & prices'!K167)+'Model update'!$J$196 -> 702.727035
B168: EE_178 | C168: =VLOOKUP(B168,'2020-21 feebased approved'!$A$4:$H$313,2,FALSE) -> SEUCAPTCAU | D168: Connection application and management services | E168: Supply enhancement | F168: Service upgrade. For example, an upgrade from single phase to multi phase and/or increase capacity. Excludes work on metering equipment (if required). Underground | G168: AFTER HOURS - MULTIPHASE INCREASE CAPACITY - Traffic control | H168: Urban/Short Rural | I168: Fee Based | J168: =VLOOKUP(B168,'2020-21 feebased approved'!$A$4:$H$313,'2020-21 feebased approved'!$H$1,FALSE) -> 1103.767771 | K168: =IF(OR(B168='Model update'!$P$187,B168='Model update'!$Q$187,B168='Model update'!$R$187,B168='Model update'!$S$187,B168='Model update'!$T$187,B168='Model update'!$U$187,B168='Model update'!$V$187,B168='Model update'!$W$187),'Model update'!$J$187,IF(OR(B168='Model update'!$P$188,B168='Model update'!$Q$188,B168='Model update'!$R$188,B168='Model update'!$S$188,B168='Model update'!$T$188,B168='Model update'!$U$188,B168='Model update'!$V$188,B168='Model update'!$W$188),'Model update'!$J$188,'Model update'!$J$186)) -> -0.009825264614 | L168: =J168*(1+'Model update'!$B$31)*(1-'2021_ACS service & prices'!K168)+'Model update'!$J$196 -> 1124.204772
B169: EE_179 | C169: =VLOOKUP(B169,'2020-21 feebased approved'!$A$4:$H$313,2,FALSE) -> SEUCAPTCAL SEUCAPTCAI | D169: Connection application and management services | E169: Supply enhancement | F169: Service upgrade. For example, an upgrade from single phase to multi phase and/or increase capacity. Excludes work on metering equipment (if required). Underground | G169: AFTER HOURS - MULTIPHASE INCREASE CAPACITY - Traffic control | H169: Long rural/Isolated | I169: Fee Based | J169: =VLOOKUP(B169,'2020-21 feebased approved'!$A$4:$H$313,'2020-21 feebased approved'!$H$1,FALSE) -> 1487.841111 | K169: =IF(OR(B169='Model update'!$P$187,B169='Model update'!$Q$187,B169='Model update'!$R$187,B169='Model update'!$S$187,B169='Model update'!$T$187,B169='Model update'!$U$187,B169='Model update'!$V$187,B169='Model update'!$W$187),'Model update'!$J$187,IF(OR(B169='Model update'!$P$188,B169='Model update'!$Q$188,B169='Model update'!$R$188,B169='Model update'!$S$188,B169='Model update'!$T$188,B169='Model update'!$U$188,B169='Model update'!$V$188,B169='Model update'!$W$188),'Model update'!$J$188,'Model update'!$J$186)) -> -0.009825264614 | L169: =J169*(1+'Model update'!$B$31)*(1-'2021_ACS service & prices'!K169)+'Model update'!$J$196 -> 1515.389488
B170: EE_180 | C170: =VLOOKUP(B170,'2020-21 feebased approved'!$A$4:$H$313,2,FALSE) -> POASPBU | D170: Connection application and management services | E170: Point of attachment relocation | F170: Customer requests their existing overhead service to be replaced or relocated, e.g.as a result of point of attachment relocation. No material change to load. This includes De-energisation, followed by physical dismantling then reattachment of service and re-energisation. Excludes work on metering equipment (if required) | G170: BUSINESS HOURS - SINGLE PHASE | H170: Urban/Short Rural | I170: Fee Based | J170: =VLOOKUP(B170,'2020-21 feebased approved'!$A$4:$H$313,'2020-21 feebased approved'!$H$1,FALSE) -> 517.856528 | K170: =IF(OR(B170='Model update'!$P$187,B170='Model update'!$Q$187,B170='Model update'!$R$187,B170='Model update'!$S$187,B170='Model update'!$T$187,B170='Model update'!$U$187,B170='Model update'!$V$187,B170='Model update'!$W$187),'Model update'!$J$187,IF(OR(B170='Model update'!$P$188,B170='Model update'!$Q$188,B170='Model update'!$R$188,B170='Model update'!$S$188,B170='Model update'!$T$188,B170='Model update'!$U$188,B170='Model update'!$V$188,B170='Model update'!$W$188),'Model update'!$J$188,'Model update'!$J$186)) -> -0.009825264614 | L170: =J170*(1+'Model update'!$B$31)*(1-'2021_ACS service & prices'!K170)+'Model update'!$J$196 -> 527.4449893
B171: EE_181 | C171: =VLOOKUP(B171,'2020-21 feebased approved'!$A$4:$H$313,2,FALSE) -> POASPBL POASPBI | D171: Connection application and management services | E171: Point of attachment relocation | F171: Customer requests their existing overhead service to be replaced or relocated, e.g.as a result of point of attachment relocation. No material change to load. This includes De-energisation, followed by physical dismantling then reattachment of service and re-energisation. Excludes work on metering equipment (if required) | G171: BUSINESS HOURS - SINGLE PHASE | H171: Long rural/Isolated | I171: Fee Based | J171: =VLOOKUP(B171,'2020-21 feebased approved'!$A$4:$H$313,'2020-21 feebased approved'!$H$1,FALSE) -> 1102.194637 | K171: =IF(OR(B171='Model update'!$P$187,B171='Model update'!$Q$187,B171='Model update'!$R$187,B171='Model update'!$S$187,B171='Model update'!$T$187,B171='Model update'!$U$187,B171='Model update'!$V$187,B171='Model update'!$W$187),'Model update'!$J$187,IF(OR(B171='Model update'!$P$188,B171='Model update'!$Q$188,B171='Model update'!$R$188,B171='Model update'!$S$188,B171='Model update'!$T$188,B171='Model update'!$U$188,B171='Model update'!$V$188,B171='Model update'!$W$188),'Model update'!$J$188,'Model update'!$J$186)) -> -0.009825264614 | L171: =J171*(1+'Model update'!$B$31)*(1-'2021_ACS service & prices'!K171)+'Model update'!$J$196 -> 1122.602511
B172: EE_182 | C172: =VLOOKUP(B172,'2020-21 feebased approved'!$A$4:$H$313,2,FALSE) -> POASPTCBU | D172: Connection application and management services | E172: Point of attachment relocation | F172: Customer requests their existing overhead service to be replaced or relocated, e.g.as a result of point of attachment relocation. No material change to load. This includes De-energisation, followed by physical dismantling then reattachment of service and re-energisation. Excludes work on metering equipment (if required) | G172: BUSINESS HOURS - SINGLE PHASE - Traffic Control | H172: Urban/Short Rural | I172: Fee Based | J172: =VLOOKUP(B172,'2020-21 feebased approved'!$A$4:$H$313,'2020-21 feebased approved'!$H$1,FALSE) -> 1315.74553 | K172: =IF(OR(B172='Model update'!$P$187,B172='Model update'!$Q$187,B172='Model update'!$R$187,B172='Model update'!$S$187,B172='Model update'!$T$187,B172='Model update'!$U$187,B172='Model update'!$V$187,B172='Model update'!$W$187),'Model update'!$J$187,IF(OR(B172='Model update'!$P$188,B172='Model update'!$Q$188,B172='Model update'!$R$188,B172='Model update'!$S$188,B172='Model update'!$T$188,B172='Model update'!$U$188,B172='Model update'!$V$188,B172='Model update'!$W$188),'Model update'!$J$188,'Model update'!$J$186)) -> -0.009825264614 | L172: =J172*(1+'Model update'!$B$31)*(1-'2021_ACS service & prices'!K172)+'Model update'!$J$196 -> 1340.107442
B173: EE_183 | C173: =VLOOKUP(B173,'2020-21 feebased approved'!$A$4:$H$313,2,FALSE) -> POASPTCBL POASPTCBI | D173: Connection application and management services | E173: Point of attachment relocation | F173: Customer requests their existing overhead service to be replaced or relocated, e.g.as a result of point of attachment relocation. No material change to load. This includes De-energisation, followed by physical dismantling then reattachment of service and re-energisation. Excludes work on metering equipment (if required) | G173: BUSINESS HOURS - SINGLE PHASE - Traffic Control | H173: Long rural/Isolated | I173: Fee Based | J173: =VLOOKUP(B173,'2020-21 feebased approved'!$A$4:$H$313,'2020-21 feebased approved'!$H$1,FALSE) -> 1900.08364 | K173: =IF(OR(B173='Model update'!$P$187,B173='Model update'!$Q$187,B173='Model update'!$R$187,B173='Model update'!$S$187,B173='Model update'!$T$187,B173='Model update'!$U$187,B173='Model update'!$V$187,B173='Model update'!$W$187),'Model update'!$J$187,IF(OR(B173='Model update'!$P$188,B173='Model update'!$Q$188,B173='Model update'!$R$188,B173='Model update'!$S$188,B173='Model update'!$T$188,B173='Model update'!$U$188,B173='Model update'!$V$188,B173='Model update'!$W$188),'Model update'!$J$188,'Model update'!$J$186)) -> -0.009825264614 | L173: =J173*(1+'Model update'!$B$31)*(1-'2021_ACS service & prices'!K173)+'Model update'!$J$196 -> 1935.264964
B174: EE_184 | C174: =VLOOKUP(B174,'2020-21 feebased approved'!$A$4:$H$313,2,FALSE) -> POASPAU | D174: Connection application and management services | E174: Point of attachment relocation | F174: Customer requests their existing overhead service to be replaced or relocated, e.g.as a result of point of attachment relocation. No material change to load. This includes De-energisation, followed by physical dismantling then reattachment of service and re-energisation. Excludes work on metering equipment (if required) | G174: AFTER HOURS - SINGLE PHASE | H174: Urban/Short Rural | I174: Fee Based | J174: =VLOOKUP(B174,'2020-21 feebased approved'!$A$4:$H$313,'2020-21 feebased approved'!$H$1,FALSE) -> 680.752747 | K174: =IF(OR(B174='Model update'!$P$187,B174='Model update'!$Q$187,B174='Model update'!$R$187,B174='Model update'!$S$187,B174='Model update'!$T$187,B174='Model update'!$U$187,B174='Model update'!$V$187,B174='Model update'!$W$187),'Model update'!$J$187,IF(OR(B174='Model update'!$P$188,B174='Model update'!$Q$188,B174='Model update'!$R$188,B174='Model update'!$S$188,B174='Model update'!$T$188,B174='Model update'!$U$188,B174='Model update'!$V$188,B174='Model update'!$W$188),'Model update'!$J$188,'Model update'!$J$186)) -> -0.009825264614 | L174: =J174*(1+'Model update'!$B$31)*(1-'2021_ACS service & prices'!K174)+'Model update'!$J$196 -> 693.3573412
B175: EE_185 | C175: =VLOOKUP(B175,'2020-21 feebased approved'!$A$4:$H$313,2,FALSE) -> POASPAL POASPAI | D175: Connection application and management services | E175: Point of attachment relocation | F175: Customer requests their existing overhead service to be replaced or relocated, e.g.as a result of point of attachment relocation. No material change to load. This includes De-energisation, followed by physical dismantling then reattachment of service and re-energisation. Excludes work on metering equipment (if required) | G175: AFTER HOURS - SINGLE PHASE | H175: Long rural/Isolated | I175: Fee Based | J175: =VLOOKUP(B175,'2020-21 feebased approved'!$A$4:$H$313,'2020-21 feebased approved'!$H$1,FALSE) -> 1448.899428 | K175: =IF(OR(B175='Model update'!$P$187,B175='Model update'!$Q$187,B175='Model update'!$R$187,B175='Model update'!$S$187,B175='Model update'!$T$187,B175='Model update'!$U$187,B175='Model update'!$V$187,B175='Model update'!$W$187),'Model update'!$J$187,IF(OR(B175='Model update'!$P$188,B175='Model update'!$Q$188,B175='Model update'!$R$188,B175='Model update'!$S$188,B175='Model update'!$T$188,B175='Model update'!$U$188,B175='Model update'!$V$188,B175='Model update'!$W$188),'Model update'!$J$188,'Model update'!$J$186)) -> -0.009825264614 | L175: =J175*(1+'Model update'!$B$31)*(1-'2021_ACS service & prices'!K175)+'Model update'!$J$196 -> 1475.726773
B176: EE_186 | C176: =VLOOKUP(B176,'2020-21 feebased approved'!$A$4:$H$313,2,FALSE) -> POASPTCAU | D176: Connection application and management services | E176: Point of attachment relocation | F176: Customer requests their existing overhead service to be replaced or relocated, e.g.as a result of point of attachment relocation. No material change to load. This includes De-energisation, followed by physical dismantling then reattachment of service and re-energisation. Excludes work on metering equipment (if required) | G176: AFTER HOURS - SINGLE PHASE - Traffic Control | H176: Urban/Short Rural | I176: Fee Based | J176: =VLOOKUP(B176,'2020-21 feebased approved'!$A$4:$H$313,'2020-21 feebased approved'!$H$1,FALSE) -> 1478.641749 | K176: =IF(OR(B176='Model update'!$P$187,B176='Model update'!$Q$187,B176='Model update'!$R$187,B176='Model update'!$S$187,B176='Model update'!$T$187,B176='Model update'!$U$187,B176='Model update'!$V$187,B176='Model update'!$W$187),'Model update'!$J$187,IF(OR(B176='Model update'!$P$188,B176='Model update'!$Q$188,B176='Model update'!$R$188,B176='Model update'!$S$188,B176='Model update'!$T$188,B176='Model update'!$U$188,B176='Model update'!$V$188,B176='Model update'!$W$188),'Model update'!$J$188,'Model update'!$J$186)) -> -0.009825264614 | L176: =J176*(1+'Model update'!$B$31)*(1-'2021_ACS service & prices'!K176)+'Model update'!$J$196 -> 1506.019794
B177: EE_187 | C177: =VLOOKUP(B177,'2020-21 feebased approved'!$A$4:$H$313,2,FALSE) -> POASPTCAL POASPTCAI | D177: Connection application and management services | E177: Point of attachment relocation | F177: Customer requests their existing overhead service to be replaced or relocated, e.g.as a result of point of attachment relocation. No material change to load. This includes De-energisation, followed by physical dismantling then reattachment of service and re-energisation. Excludes work on metering equipment (if required) | G177: AFTER HOURS - SINGLE PHASE - Traffic Control | H177: Long rural/Isolated | I177: Fee Based | J177: =VLOOKUP(B177,'2020-21 feebased approved'!$A$4:$H$313,'2020-21 feebased approved'!$H$1,FALSE) -> 2246.78843 | K177: =IF(OR(B177='Model update'!$P$187,B177='Model update'!$Q$187,B177='Model update'!$R$187,B177='Model update'!$S$187,B177='Model update'!$T$187,B177='Model update'!$U$187,B177='Model update'!$V$187,B177='Model update'!$W$187),'Model update'!$J$187,IF(OR(B177='Model update'!$P$188,B177='Model update'!$Q$188,B177='Model update'!$R$188,B177='Model update'!$S$188,B177='Model update'!$T$188,B177='Model update'!$U$188,B177='Model update'!$V$188,B177='Model update'!$W$188),'Model update'!$J$188,'Model update'!$J$186)) -> -0.009825264614 | L177: =J177*(1+'Model update'!$B$31)*(1-'2021_ACS service & prices'!K177)+'Model update'!$J$196 -> 2288.389226
B178: EE_188 | C178: =VLOOKUP(B178,'2020-21 feebased approved'!$A$4:$H$313,2,FALSE) -> POAMPBU | D178: Connection application and management services | E178: Point of attachment relocation | F178: Customer requests their existing overhead service to be replaced or relocated, e.g.as a result of point of attachment relocation. No material change to load. This includes De-energisation, followed by physical dismantling then reattachment of service and re-energisation. Excludes work on metering equipment (if required) | G178: BUSINESS HOURS - MULTI PHASE | H178: Urban/Short Rural | I178: Fee Based | J178: =VLOOKUP(B178,'2020-21 feebased approved'!$A$4:$H$313,'2020-21 feebased approved'!$H$1,FALSE) -> 654.3187212 | K178: =IF(OR(B178='Model update'!$P$187,B178='Model update'!$Q$187,B178='Model update'!$R$187,B178='Model update'!$S$187,B178='Model update'!$T$187,B178='Model update'!$U$187,B178='Model update'!$V$187,B178='Model update'!$W$187),'Model update'!$J$187,IF(OR(B178='Model update'!$P$188,B178='Model update'!$Q$188,B178='Model update'!$R$188,B178='Model update'!$S$188,B178='Model update'!$T$188,B178='Model update'!$U$188,B178='Model update'!$V$188,B178='Model update'!$W$188),'Model update'!$J$188,'Model update'!$J$186)) -> -0.009825264614 | L178: =J178*(1+'Model update'!$B$31)*(1-'2021_ACS service & prices'!K178)+'Model update'!$J$196 -> 666.4338716
B179: EE_189 | C179: =VLOOKUP(B179,'2020-21 feebased approved'!$A$4:$H$313,2,FALSE) -> POAMPBL POAMPBI | D179: Connection application and management services | E179: Point of attachment relocation | F179: Customer requests their existing overhead service to be replaced or relocated, e.g.as a result of point of attachment relocation. No material change to load. This includes De-energisation, followed by physical dismantling then reattachment of service and re-energisation. Excludes work on metering equipment (if required) | G179: BUSINESS HOURS - MULTI PHASE | H179: Long rural/Isolated | I179: Fee Based | J179: =VLOOKUP(B179,'2020-21 feebased approved'!$A$4:$H$313,'2020-21 feebased approved'!$H$1,FALSE) -> 1238.656831 | K179: =IF(OR(B179='Model update'!$P$187,B179='Model update'!$Q$187,B179='Model update'!$R$187,B179='Model update'!$S$187,B179='Model update'!$T$187,B179='Model update'!$U$187,B179='Model update'!$V$187,B179='Model update'!$W$187),'Model update'!$J$187,IF(OR(B179='Model update'!$P$188,B179='Model update'!$Q$188,B179='Model update'!$R$188,B179='Model update'!$S$188,B179='Model update'!$T$188,B179='Model update'!$U$188,B179='Model update'!$V$188,B179='Model update'!$W$188),'Model update'!$J$188,'Model update'!$J$186)) -> -0.009825264614 | L179: =J179*(1+'Model update'!$B$31)*(1-'2021_ACS service & prices'!K179)+'Model update'!$J$196 -> 1261.591393
B180: EE_190 | C180: =VLOOKUP(B180,'2020-21 feebased approved'!$A$4:$H$313,2,FALSE) -> POAMPTCBU | D180: Connection application and management services | E180: Point of attachment relocation | F180: Customer requests their existing overhead service to be replaced or relocated, e.g.as a result of point of attachment relocation. No material change to load. This includes De-energisation, followed by physical dismantling then reattachment of service and re-energisation. Excludes work on metering equipment (if required) | G180: BUSINESS HOURS - MULTI PHASE - Traffic Control | H180: Urban/Short Rural | I180: Fee Based | J180: =VLOOKUP(B180,'2020-21 feebased approved'!$A$4:$H$313,'2020-21 feebased approved'!$H$1,FALSE) -> 1452.207724 | K180: =IF(OR(B180='Model update'!$P$187,B180='Model update'!$Q$187,B180='Model update'!$R$187,B180='Model update'!$S$187,B180='Model update'!$T$187,B180='Model update'!$U$187,B180='Model update'!$V$187,B180='Model update'!$W$187),'Model update'!$J$187,IF(OR(B180='Model update'!$P$188,B180='Model update'!$Q$188,B180='Model update'!$R$188,B180='Model update'!$S$188,B180='Model update'!$T$188,B180='Model update'!$U$188,B180='Model update'!$V$188,B180='Model update'!$W$188),'Model update'!$J$188,'Model update'!$J$186)) -> -0.009825264614 | L180: =J180*(1+'Model update'!$B$31)*(1-'2021_ACS service & prices'!K180)+'Model update'!$J$196 -> 1479.096325
B181: EE_191 | C181: =VLOOKUP(B181,'2020-21 feebased approved'!$A$4:$H$313,2,FALSE) -> POAMPTCBL POAMPTCBI | D181: Connection application and management services | E181: Point of attachment relocation | F181: Customer requests their existing overhead service to be replaced or relocated, e.g.as a result of point of attachment relocation. No material change to load. This includes De-energisation, followed by physical dismantling then reattachment of service and re-energisation. Excludes work on metering equipment (if required) | G181: BUSINESS HOURS - MULTI PHASE - Traffic Control | H181: Long rural/Isolated | I181: Fee Based | J181: =VLOOKUP(B181,'2020-21 feebased approved'!$A$4:$H$313,'2020-21 feebased approved'!$H$1,FALSE) -> 2036.545833 | K181: =IF(OR(B181='Model update'!$P$187,B181='Model update'!$Q$187,B181='Model update'!$R$187,B181='Model update'!$S$187,B181='Model update'!$T$187,B181='Model update'!$U$187,B181='Model update'!$V$187,B181='Model update'!$W$187),'Model update'!$J$187,IF(OR(B181='Model update'!$P$188,B181='Model update'!$Q$188,B181='Model update'!$R$188,B181='Model update'!$S$188,B181='Model update'!$T$188,B181='Model update'!$U$188,B181='Model update'!$V$188,B181='Model update'!$W$188),'Model update'!$J$188,'Model update'!$J$186)) -> -0.009825264614 | L181: =J181*(1+'Model update'!$B$31)*(1-'2021_ACS service & prices'!K181)+'Model update'!$J$196 -> 2074.253846
B182: EE_192 | C182: =VLOOKUP(B182,'2020-21 feebased approved'!$A$4:$H$313,2,FALSE) -> POAMPAU | D182: Connection application and management services | E182: Point of attachment relocation | F182: Customer requests their existing overhead service to be replaced or relocated, e.g.as a result of point of attachment relocation. No material change to load. This includes De-energisation, followed by physical dismantling then reattachment of service and re-energisation. Excludes work on metering equipment (if required) | G182: AFTER HOURS - MULTIPHASE | H182: Urban/Short Rural | I182: Fee Based | J182: =VLOOKUP(B182,'2020-21 feebased approved'!$A$4:$H$313,'2020-21 feebased approved'!$H$1,FALSE) -> 860.1402952 | K182: =IF(OR(B182='Model update'!$P$187,B182='Model update'!$Q$187,B182='Model update'!$R$187,B182='Model update'!$S$187,B182='Model update'!$T$187,B182='Model update'!$U$187,B182='Model update'!$V$187,B182='Model update'!$W$187),'Model update'!$J$187,IF(OR(B182='Model update'!$P$188,B182='Model update'!$Q$188,B182='Model update'!$R$188,B182='Model update'!$S$188,B182='Model update'!$T$188,B182='Model update'!$U$188,B182='Model update'!$V$188,B182='Model update'!$W$188),'Model update'!$J$188,'Model update'!$J$186)) -> -0.009825264614 | L182: =J182*(1+'Model update'!$B$31)*(1-'2021_ACS service & prices'!K182)+'Model update'!$J$196 -> 876.0663703
B183: EE_193 | C183: =VLOOKUP(B183,'2020-21 feebased approved'!$A$4:$H$313,2,FALSE) -> POAMPAL POAMPAI | D183: Connection application and management services | E183: Point of attachment relocation | F183: Customer requests their existing overhead service to be replaced or relocated, e.g.as a result of point of attachment relocation. No material change to load. This includes De-energisation, followed by physical dismantling then reattachment of service and re-energisation. Excludes work on metering equipment (if required) | G183: AFTER HOURS - MULTIPHASE | H183: Long rural/Isolated | I183: Fee Based | J183: =VLOOKUP(B183,'2020-21 feebased approved'!$A$4:$H$313,'2020-21 feebased approved'!$H$1,FALSE) -> 1628.286976 | K183: =IF(OR(B183='Model update'!$P$187,B183='Model update'!$Q$187,B183='Model update'!$R$187,B183='Model update'!$S$187,B183='Model update'!$T$187,B183='Model update'!$U$187,B183='Model update'!$V$187,B183='Model update'!$W$187),'Model update'!$J$187,IF(OR(B183='Model update'!$P$188,B183='Model update'!$Q$188,B183='Model update'!$R$188,B183='Model update'!$S$188,B183='Model update'!$T$188,B183='Model update'!$U$188,B183='Model update'!$V$188,B183='Model update'!$W$188),'Model update'!$J$188,'Model update'!$J$186)) -> -0.009825264614 | L183: =J183*(1+'Model update'!$B$31)*(1-'2021_ACS service & prices'!K183)+'Model update'!$J$196 -> 1658.435803
B184: EE_194 | C184: =VLOOKUP(B184,'2020-21 feebased approved'!$A$4:$H$313,2,FALSE) -> POAMPTCAU | D184: Connection application and management services | E184: Point of attachment relocation | F184: Customer requests their existing overhead service to be replaced or relocated, e.g.as a result of point of attachment relocation. No material change to load. This includes De-energisation, followed by physical dismantling then reattachment of service and re-energisation. Excludes work on metering equipment (if required) | G184: AFTER HOURS - MULTIPHASE - Traffic Control | H184: Urban/Short Rural | I184: Fee Based | J184: =VLOOKUP(B184,'2020-21 feebased approved'!$A$4:$H$313,'2020-21 feebased approved'!$H$1,FALSE) -> 1658.029298 | K184: =IF(OR(B184='Model update'!$P$187,B184='Model update'!$Q$187,B184='Model update'!$R$187,B184='Model update'!$S$187,B184='Model update'!$T$187,B184='Model update'!$U$187,B184='Model update'!$V$187,B184='Model update'!$W$187),'Model update'!$J$187,IF(OR(B184='Model update'!$P$188,B184='Model update'!$Q$188,B184='Model update'!$R$188,B184='Model update'!$S$188,B184='Model update'!$T$188,B184='Model update'!$U$188,B184='Model update'!$V$188,B184='Model update'!$W$188),'Model update'!$J$188,'Model update'!$J$186)) -> -0.009825264614 | L184: =J184*(1+'Model update'!$B$31)*(1-'2021_ACS service & prices'!K184)+'Model update'!$J$196 -> 1688.728823
B185: EE_195 | C185: =VLOOKUP(B185,'2020-21 feebased approved'!$A$4:$H$313,2,FALSE) -> POAMPTCAL POAMPTCAI | D185: Connection application and management services | E185: Point of attachment relocation | F185: Customer requests their existing overhead service to be replaced or relocated, e.g.as a result of point of attachment relocation. No material change to load. This includes De-energisation, followed by physical dismantling then reattachment of service and re-energisation. Excludes work on metering equipment (if required) | G185: AFTER HOURS - MULTIPHASE - Traffic Control | H185: Long rural/Isolated | I185: Fee Based | J185: =VLOOKUP(B185,'2020-21 feebased approved'!$A$4:$H$313,'2020-21 feebased approved'!$H$1,FALSE) -> 2426.175978 | K185: =IF(OR(B185='Model update'!$P$187,B185='Model update'!$Q$187,B185='Model update'!$R$187,B185='Model update'!$S$187,B185='Model update'!$T$187,B185='Model update'!$U$187,B185='Model update'!$V$187,B185='Model update'!$W$187),'Model update'!$J$187,IF(OR(B185='Model update'!$P$188,B185='Model update'!$Q$188,B185='Model update'!$R$188,B185='Model update'!$S$188,B185='Model update'!$T$188,B185='Model update'!$U$188,B185='Model update'!$V$188,B185='Model update'!$W$188),'Model update'!$J$188,'Model update'!$J$186)) -> -0.009825264614 | L185: =J185*(1+'Model update'!$B$31)*(1-'2021_ACS service & prices'!K185)+'Model update'!$J$196 -> 2471.098256
B186: EE_196 | C186: =VLOOKUP(B186,'2020-21 feebased approved'!$A$4:$H$313,2,FALSE) -> OH2UGSPBU | D186: Network Ancillary services | E186: Re-arrange connection assets at customer's request | F186: Rearrange connection assets at customer's request - simple (upgrade from overhead to underground where main connection point is in existence). Recovery of the overhead service and connection of the consumer mains to the pre-existing pillar for a customer requested conversion of existing overhead service to underground service | G186: BUSINESS HOURS - SINGLE PHASE | H186: Urban/Short Rural | I186: Fee Based | J186: =VLOOKUP(B186,'2020-21 feebased approved'!$A$4:$H$313,'2020-21 feebased approved'!$H$1,FALSE) -> 785.5323685 | K186: =IF(OR(B186='Model update'!$P$187,B186='Model update'!$Q$187,B186='Model update'!$R$187,B186='Model update'!$S$187,B186='Model update'!$T$187,B186='Model update'!$U$187,B186='Model update'!$V$187,B186='Model update'!$W$187),'Model update'!$J$187,IF(OR(B186='Model update'!$P$188,B186='Model update'!$Q$188,B186='Model update'!$R$188,B186='Model update'!$S$188,B186='Model update'!$T$188,B186='Model update'!$U$188,B186='Model update'!$V$188,B186='Model update'!$W$188),'Model update'!$J$188,'Model update'!$J$186)) -> -0.009825264614 | L186: =J186*(1+'Model update'!$B$31)*(1-'2021_ACS service & prices'!K186)+'Model update'!$J$196 -> 800.0770277
B187: EE_197 | C187: =VLOOKUP(B187,'2020-21 feebased approved'!$A$4:$H$313,2,FALSE) -> OH2UGSPBL OH2UGSPBI | D187: Network Ancillary services | E187: Re-arrange connection assets at customer's request | F187: Rearrange connection assets at customer's request - simple (upgrade from overhead to underground where main connection point is in existence). Recovery of the overhead service and connection of the consumer mains to the pre-existing pillar for a customer requested conversion of existing overhead service to underground service | G187: BUSINESS HOURS - SINGLE PHASE | H187: Long rural/Isolated | I187: Fee Based | J187: =VLOOKUP(B187,'2020-21 feebased approved'!$A$4:$H$313,'2020-21 feebased approved'!$H$1,FALSE) -> 1662.039533 | K187: =IF(OR(B187='Model update'!$P$187,B187='Model update'!$Q$187,B187='Model update'!$R$187,B187='Model update'!$S$187,B187='Model update'!$T$187,B187='Model update'!$U$187,B187='Model update'!$V$187,B187='Model update'!$W$187),'Model update'!$J$187,IF(OR(B187='Model update'!$P$188,B187='Model update'!$Q$188,B187='Model update'!$R$188,B187='Model update'!$S$188,B187='Model update'!$T$188,B187='Model update'!$U$188,B187='Model update'!$V$188,B187='Model update'!$W$188),'Model update'!$J$188,'Model update'!$J$186)) -> -0.009825264614 | L187: =J187*(1+'Model update'!$B$31)*(1-'2021_ACS service & prices'!K187)+'Model update'!$J$196 -> 1692.81331
B188: EE_198 | C188: =VLOOKUP(B188,'2020-21 feebased approved'!$A$4:$H$313,2,FALSE) -> OH2UGSPTBU | D188: Network Ancillary services | E188: Re-arrange connection assets at customer's request | F188: Rearrange connection assets at customer's request - simple (upgrade from overhead to underground where main connection point is in existence). Recovery of the overhead service and connection of the consumer mains to the pre-existing pillar for a customer requested conversion of existing overhead service to underground service | G188: BUSINESS HOURS - SINGLE PHASE - Traffic Control | H188: Urban/Short Rural | I188: Fee Based | J188: =VLOOKUP(B188,'2020-21 feebased approved'!$A$4:$H$313,'2020-21 feebased approved'!$H$1,FALSE) -> 1583.421371 | K188: =IF(OR(B188='Model update'!$P$187,B188='Model update'!$Q$187,B188='Model update'!$R$187,B188='Model update'!$S$187,B188='Model update'!$T$187,B188='Model update'!$U$187,B188='Model update'!$V$187,B188='Model update'!$W$187),'Model update'!$J$187,IF(OR(B188='Model update'!$P$188,B188='Model update'!$Q$188,B188='Model update'!$R$188,B188='Model update'!$S$188,B188='Model update'!$T$188,B188='Model update'!$U$188,B188='Model update'!$V$188,B188='Model update'!$W$188),'Model update'!$J$188,'Model update'!$J$186)) -> -0.009825264614 | L188: =J188*(1+'Model update'!$B$31)*(1-'2021_ACS service & prices'!K188)+'Model update'!$J$196 -> 1612.739481
B189: EE_199 | C189: =VLOOKUP(B189,'2020-21 feebased approved'!$A$4:$H$313,2,FALSE) -> OH2UGSPTBL OH2UGSPTBI | D189: Network Ancillary services | E189: Re-arrange connection assets at customer's request | F189: Rearrange connection assets at customer's request - simple (upgrade from overhead to underground where main connection point is in existence). Recovery of the overhead service and connection of the consumer mains to the pre-existing pillar for a customer requested conversion of existing overhead service to underground service | G189: BUSINESS HOURS - SINGLE PHASE - Traffic Control | H189: Long rural/Isolated | I189: Fee Based | J189: =VLOOKUP(B189,'2020-21 feebased approved'!$A$4:$H$313,'2020-21 feebased approved'!$H$1,FALSE) -> 2459.928535 | K189: =IF(OR(B189='Model update'!$P$187,B189='Model update'!$Q$187,B189='Model update'!$R$187,B189='Model update'!$S$187,B189='Model update'!$T$187,B189='Model update'!$U$187,B189='Model update'!$V$187,B189='Model update'!$W$187),'Model update'!$J$187,IF(OR(B189='Model update'!$P$188,B189='Model update'!$Q$188,B189='Model update'!$R$188,B189='Model update'!$S$188,B189='Model update'!$T$188,B189='Model update'!$U$188,B189='Model update'!$V$188,B189='Model update'!$W$188),'Model update'!$J$188,'Model update'!$J$186)) -> -0.009825264614 | L189: =J189*(1+'Model update'!$B$31)*(1-'2021_ACS service & prices'!K189)+'Model update'!$J$196 -> 2505.475763
B190: EE_200 | C190: =VLOOKUP(B190,'2020-21 feebased approved'!$A$4:$H$313,2,FALSE) -> OH2UGSPAU | D190: Network Ancillary services | E190: Re-arrange connection assets at customer's request | F190: Rearrange connection assets at customer's request - simple (upgrade from overhead to underground where main connection point is in existence). Recovery of the overhead service and connection of the consumer mains to the pre-existing pillar for a customer requested conversion of existing overhead service to underground service | G190: AFTER HOURS - SINGLE PHASE | H190: Urban/Short Rural | I190: Fee Based | J190: =VLOOKUP(B190,'2020-21 feebased approved'!$A$4:$H$313,'2020-21 feebased approved'!$H$1,FALSE) -> 1032.628322 | K190: =IF(OR(B190='Model update'!$P$187,B190='Model update'!$Q$187,B190='Model update'!$R$187,B190='Model update'!$S$187,B190='Model update'!$T$187,B190='Model update'!$U$187,B190='Model update'!$V$187,B190='Model update'!$W$187),'Model update'!$J$187,IF(OR(B190='Model update'!$P$188,B190='Model update'!$Q$188,B190='Model update'!$R$188,B190='Model update'!$S$188,B190='Model update'!$T$188,B190='Model update'!$U$188,B190='Model update'!$V$188,B190='Model update'!$W$188),'Model update'!$J$188,'Model update'!$J$186)) -> -0.009825264614 | L190: =J190*(1+'Model update'!$B$31)*(1-'2021_ACS service & prices'!K190)+'Model update'!$J$196 -> 1051.748129
B191: EE_201 | C191: =VLOOKUP(B191,'2020-21 feebased approved'!$A$4:$H$313,2,FALSE) -> OH2UGSPAL OH2UGSPAI | D191: Network Ancillary services | E191: Re-arrange connection assets at customer's request | F191: Rearrange connection assets at customer's request - simple (upgrade from overhead to underground where main connection point is in existence). Recovery of the overhead service and connection of the consumer mains to the pre-existing pillar for a customer requested conversion of existing overhead service to underground service | G191: AFTER HOURS - SINGLE PHASE | H191: Long rural/Isolated | I191: Fee Based | J191: =VLOOKUP(B191,'2020-21 feebased approved'!$A$4:$H$313,'2020-21 feebased approved'!$H$1,FALSE) -> 2184.848344 | K191: =IF(OR(B191='Model update'!$P$187,B191='Model update'!$Q$187,B191='Model update'!$R$187,B191='Model update'!$S$187,B191='Model update'!$T$187,B191='Model update'!$U$187,B191='Model update'!$V$187,B191='Model update'!$W$187),'Model update'!$J$187,IF(OR(B191='Model update'!$P$188,B191='Model update'!$Q$188,B191='Model update'!$R$188,B191='Model update'!$S$188,B191='Model update'!$T$188,B191='Model update'!$U$188,B191='Model update'!$V$188,B191='Model update'!$W$188),'Model update'!$J$188,'Model update'!$J$186)) -> -0.009825264614 | L191: =J191*(1+'Model update'!$B$31)*(1-'2021_ACS service & prices'!K191)+'Model update'!$J$196 -> 2225.302277
B192: EE_202 | C192: =VLOOKUP(B192,'2020-21 feebased approved'!$A$4:$H$313,2,FALSE) -> OH2UGSPTAU | D192: Network Ancillary services | E192: Re-arrange connection assets at customer's request | F192: Rearrange connection assets at customer's request - simple (upgrade from overhead to underground where main connection point is in existence). Recovery of the overhead service and connection of the consumer mains to the pre-existing pillar for a customer requested conversion of existing overhead service to underground service | G192: AFTER HOURS - SINGLE PHASE - Traffic Control | H192: Urban/Short Rural | I192: Fee Based | J192: =VLOOKUP(B192,'2020-21 feebased approved'!$A$4:$H$313,'2020-21 feebased approved'!$H$1,FALSE) -> 1830.517325 | K192: =IF(OR(B192='Model update'!$P$187,B192='Model update'!$Q$187,B192='Model update'!$R$187,B192='Model update'!$S$187,B192='Model update'!$T$187,B192='Model update'!$U$187,B192='Model update'!$V$187,B192='Model update'!$W$187),'Model update'!$J$187,IF(OR(B192='Model update'!$P$188,B192='Model update'!$Q$188,B192='Model update'!$R$188,B192='Model update'!$S$188,B192='Model update'!$T$188,B192='Model update'!$U$188,B192='Model update'!$V$188,B192='Model update'!$W$188),'Model update'!$J$188,'Model update'!$J$186)) -> -0.009825264614 | L192: =J192*(1+'Model update'!$B$31)*(1-'2021_ACS service & prices'!K192)+'Model update'!$J$196 -> 1864.410582
B193: EE_203 | C193: =VLOOKUP(B193,'2020-21 feebased approved'!$A$4:$H$313,2,FALSE) -> OH2UGSPTAL OH2UGSPTAI | D193: Network Ancillary services | E193: Re-arrange connection assets at customer's request | F193: Rearrange connection assets at customer's request - simple (upgrade from overhead to underground where main connection point is in existence). Recovery of the overhead service and connection of the consumer mains to the pre-existing pillar for a customer requested conversion of existing overhead service to underground service | G193: AFTER HOURS - SINGLE PHASE - Traffic Control | H193: Long rural/Isolated | I193: Fee Based | J193: =VLOOKUP(B193,'2020-21 feebased approved'!$A$4:$H$313,'2020-21 feebased approved'!$H$1,FALSE) -> 2982.737346 | K193: =IF(OR(B193='Model update'!$P$187,B193='Model update'!$Q$187,B193='Model update'!$R$187,B193='Model update'!$S$187,B193='Model update'!$T$187,B193='Model update'!$U$187,B193='Model update'!$V$187,B193='Model update'!$W$187),'Model update'!$J$187,IF(OR(B193='Model update'!$P$188,B193='Model update'!$Q$188,B193='Model update'!$R$188,B193='Model update'!$S$188,B193='Model update'!$T$188,B193='Model update'!$U$188,B193='Model update'!$V$188,B193='Model update'!$W$188),'Model update'!$J$188,'Model update'!$J$186)) -> -0.009825264614 | L193: =J193*(1+'Model update'!$B$31)*(1-'2021_ACS service & prices'!K193)+'Model update'!$J$196 -> 3037.96473
B194: EE_204 | C194: =VLOOKUP(B194,'2020-21 feebased approved'!$A$4:$H$313,2,FALSE) -> OH2UGMPBU | D194: Network Ancillary services | E194: Re-arrange connection assets at customer's request | F194: Rearrange connection assets at customer's request - simple (upgrade from overhead to underground where main connection point is in existence). Recovery of the overhead service and connection of the consumer mains to the pre-existing pillar for a customer requested conversion of existing overhead service to underground service | G194: BUSINESS HOURS - MULTI PHASE | H194: Urban/Short Rural | I194: Fee Based | J194: =VLOOKUP(B194,'2020-21 feebased approved'!$A$4:$H$313,'2020-21 feebased approved'!$H$1,FALSE) -> 873.0081334 | K194: =IF(OR(B194='Model update'!$P$187,B194='Model update'!$Q$187,B194='Model update'!$R$187,B194='Model update'!$S$187,B194='Model update'!$T$187,B194='Model update'!$U$187,B194='Model update'!$V$187,B194='Model update'!$W$187),'Model update'!$J$187,IF(OR(B194='Model update'!$P$188,B194='Model update'!$Q$188,B194='Model update'!$R$188,B194='Model update'!$S$188,B194='Model update'!$T$188,B194='Model update'!$U$188,B194='Model update'!$V$188,B194='Model update'!$W$188),'Model update'!$J$188,'Model update'!$J$186)) -> -0.009825264614 | L194: =J194*(1+'Model update'!$B$31)*(1-'2021_ACS service & prices'!K194)+'Model update'!$J$196 -> 889.1724651
B195: EE_205 | C195: =VLOOKUP(B195,'2020-21 feebased approved'!$A$4:$H$313,2,FALSE) -> OH2UGMPBL OH2UGMPBI | D195: Network Ancillary services | E195: Re-arrange connection assets at customer's request | F195: Rearrange connection assets at customer's request - simple (upgrade from overhead to underground where main connection point is in existence). Recovery of the overhead service and connection of the consumer mains to the pre-existing pillar for a customer requested conversion of existing overhead service to underground service | G195: BUSINESS HOURS - MULTI PHASE | H195: Long rural/Isolated | I195: Fee Based | J195: =VLOOKUP(B195,'2020-21 feebased approved'!$A$4:$H$313,'2020-21 feebased approved'!$H$1,FALSE) -> 1749.515297 | K195: =IF(OR(B195='Model update'!$P$187,B195='Model update'!$Q$187,B195='Model update'!$R$187,B195='Model update'!$S$187,B195='Model update'!$T$187,B195='Model update'!$U$187,B195='Model update'!$V$187,B195='Model update'!$W$187),'Model update'!$J$187,IF(OR(B195='Model update'!$P$188,B195='Model update'!$Q$188,B195='Model update'!$R$188,B195='Model update'!$S$188,B195='Model update'!$T$188,B195='Model update'!$U$188,B195='Model update'!$V$188,B195='Model update'!$W$188),'Model update'!$J$188,'Model update'!$J$186)) -> -0.009825264614 | L195: =J195*(1+'Model update'!$B$31)*(1-'2021_ACS service & prices'!K195)+'Model update'!$J$196 -> 1781.908748
B196: EE_206 | C196: =VLOOKUP(B196,'2020-21 feebased approved'!$A$4:$H$313,2,FALSE) -> OH2UGMPTBU | D196: Network Ancillary services | E196: Re-arrange connection assets at customer's request | F196: Rearrange connection assets at customer's request - simple (upgrade from overhead to underground where main connection point is in existence). Recovery of the overhead service and connection of the consumer mains to the pre-existing pillar for a customer requested conversion of existing overhead service to underground service | G196: BUSINESS HOURS - MULTI PHASE - Traffic Control | H196: Urban/Short Rural | I196: Fee Based | J196: =VLOOKUP(B196,'2020-21 feebased approved'!$A$4:$H$313,'2020-21 feebased approved'!$H$1,FALSE) -> 1670.897136 | K196: =IF(OR(B196='Model update'!$P$187,B196='Model update'!$Q$187,B196='Model update'!$R$187,B196='Model update'!$S$187,B196='Model update'!$T$187,B196='Model update'!$U$187,B196='Model update'!$V$187,B196='Model update'!$W$187),'Model update'!$J$187,IF(OR(B196='Model update'!$P$188,B196='Model update'!$Q$188,B196='Model update'!$R$188,B196='Model update'!$S$188,B196='Model update'!$T$188,B196='Model update'!$U$188,B196='Model update'!$V$188,B196='Model update'!$W$188),'Model update'!$J$188,'Model update'!$J$186)) -> -0.009825264614 | L196: =J196*(1+'Model update'!$B$31)*(1-'2021_ACS service & prices'!K196)+'Model update'!$J$196 -> 1701.834918
B197: EE_207 | C197: =VLOOKUP(B197,'2020-21 feebased approved'!$A$4:$H$313,2,FALSE) -> OH2UGMPTBL OH2UGMPTBI | D197: Network Ancillary services | E197: Re-arrange connection assets at customer's request | F197: Rearrange connection assets at customer's request - simple (upgrade from overhead to underground where main connection point is in existence). Recovery of the overhead service and connection of the consumer mains to the pre-existing pillar for a customer requested conversion of existing overhead service to underground service | G197: BUSINESS HOURS - MULTI PHASE - Traffic Control | H197: Long rural/Isolated | I197: Fee Based | J197: =VLOOKUP(B197,'2020-21 feebased approved'!$A$4:$H$313,'2020-21 feebased approved'!$H$1,FALSE) -> 2547.4043 | K197: =IF(OR(B197='Model update'!$P$187,B197='Model update'!$Q$187,B197='Model update'!$R$187,B197='Model update'!$S$187,B197='Model update'!$T$187,B197='Model update'!$U$187,B197='Model update'!$V$187,B197='Model update'!$W$187),'Model update'!$J$187,IF(OR(B197='Model update'!$P$188,B197='Model update'!$Q$188,B197='Model update'!$R$188,B197='Model update'!$S$188,B197='Model update'!$T$188,B197='Model update'!$U$188,B197='Model update'!$V$188,B197='Model update'!$W$188),'Model update'!$J$188,'Model update'!$J$186)) -> -0.009825264614 | L197: =J197*(1+'Model update'!$B$31)*(1-'2021_ACS service & prices'!K197)+'Model update'!$J$196 -> 2594.571201
B198: EE_208 | C198: =VLOOKUP(B198,'2020-21 feebased approved'!$A$4:$H$313,2,FALSE) -> OH2UGMPAU | D198: Network Ancillary services | E198: Re-arrange connection assets at customer's request | F198: Rearrange connection assets at customer's request - simple (upgrade from overhead to underground where main connection point is in existence). Recovery of the overhead service and connection of the consumer mains to the pre-existing pillar for a customer requested conversion of existing overhead service to underground service | G198: AFTER HOURS - MULTIPHASE | H198: Urban/Short Rural | I198: Fee Based | J198: =VLOOKUP(B198,'2020-21 feebased approved'!$A$4:$H$313,'2020-21 feebased approved'!$H$1,FALSE) -> 1147.62034 | K198: =IF(OR(B198='Model update'!$P$187,B198='Model update'!$Q$187,B198='Model update'!$R$187,B198='Model update'!$S$187,B198='Model update'!$T$187,B198='Model update'!$U$187,B198='Model update'!$V$187,B198='Model update'!$W$187),'Model update'!$J$187,IF(OR(B198='Model update'!$P$188,B198='Model update'!$Q$188,B198='Model update'!$R$188,B198='Model update'!$S$188,B198='Model update'!$T$188,B198='Model update'!$U$188,B198='Model update'!$V$188,B198='Model update'!$W$188),'Model update'!$J$188,'Model update'!$J$186)) -> -0.009825264614 | L198: =J198*(1+'Model update'!$B$31)*(1-'2021_ACS service & prices'!K198)+'Model update'!$J$196 -> 1168.869302
B199: EE_209 | C199: =VLOOKUP(B199,'2020-21 feebased approved'!$A$4:$H$313,2,FALSE) -> OH2UGMPAL OH2UGMPAI | D199: Network Ancillary services | E199: Re-arrange connection assets at customer's request | F199: Rearrange connection assets at customer's request - simple (upgrade from overhead to underground where main connection point is in existence). Recovery of the overhead service and connection of the consumer mains to the pre-existing pillar for a customer requested conversion of existing overhead service to underground service | G199: AFTER HOURS - MULTIPHASE | H199: Long rural/Isolated | I199: Fee Based | J199: =VLOOKUP(B199,'2020-21 feebased approved'!$A$4:$H$313,'2020-21 feebased approved'!$H$1,FALSE) -> 2299.840362 | K199: =IF(OR(B199='Model update'!$P$187,B199='Model update'!$Q$187,B199='Model update'!$R$187,B199='Model update'!$S$187,B199='Model update'!$T$187,B199='Model update'!$U$187,B199='Model update'!$V$187,B199='Model update'!$W$187),'Model update'!$J$187,IF(OR(B199='Model update'!$P$188,B199='Model update'!$Q$188,B199='Model update'!$R$188,B199='Model update'!$S$188,B199='Model update'!$T$188,B199='Model update'!$U$188,B199='Model update'!$V$188,B199='Model update'!$W$188),'Model update'!$J$188,'Model update'!$J$186)) -> -0.009825264614 | L199: =J199*(1+'Model update'!$B$31)*(1-'2021_ACS service & prices'!K199)+'Model update'!$J$196 -> 2342.42345
B200: EE_210 | C200: =VLOOKUP(B200,'2020-21 feebased approved'!$A$4:$H$313,2,FALSE) -> OH2UGMPTAU | D200: Network Ancillary services | E200: Re-arrange connection assets at customer's request | F200: Rearrange connection assets at customer's request - simple (upgrade from overhead to underground where main connection point is in existence). Recovery of the overhead service and connection of the consumer mains to the pre-existing pillar for a customer requested conversion of existing overhead service to underground service | G200: AFTER HOURS - MULTIPHASE - Traffic Control | H200: Urban/Short Rural | I200: Fee Based | J200: =VLOOKUP(B200,'2020-21 feebased approved'!$A$4:$H$313,'2020-21 feebased approved'!$H$1,FALSE) -> 1945.509343 | K200: =IF(OR(B200='Model update'!$P$187,B200='Model update'!$Q$187,B200='Model update'!$R$187,B200='Model update'!$S$187,B200='Model update'!$T$187,B200='Model update'!$U$187,B200='Model update'!$V$187,B200='Model update'!$W$187),'Model update'!$J$187,IF(OR(B200='Model update'!$P$188,B200='Model update'!$Q$188,B200='Model update'!$R$188,B200='Model update'!$S$188,B200='Model update'!$T$188,B200='Model update'!$U$188,B200='Model update'!$V$188,B200='Model update'!$W$188),'Model update'!$J$188,'Model update'!$J$186)) -> -0.009825264614 | L200: =J200*(1+'Model update'!$B$31)*(1-'2021_ACS service & prices'!K200)+'Model update'!$J$196 -> 1981.531754
B201: EE_211 | C201: =VLOOKUP(B201,'2020-21 feebased approved'!$A$4:$H$313,2,FALSE) -> OH2UGMPTAL OH2UGMPTAI | D201: Network Ancillary services | E201: Re-arrange connection assets at customer's request | F201: Rearrange connection assets at customer's request - simple (upgrade from overhead to underground where main connection point is in existence). Recovery of the overhead service and connection of the consumer mains to the pre-existing pillar for a customer requested conversion of existing overhead service to underground service | G201: AFTER HOURS - MULTIPHASE - Traffic Control | H201: Long rural/Isolated | I201: Fee Based | J201: =VLOOKUP(B201,'2020-21 feebased approved'!$A$4:$H$313,'2020-21 feebased approved'!$H$1,FALSE) -> 3097.729364 | K201: =IF(OR(B201='Model update'!$P$187,B201='Model update'!$Q$187,B201='Model update'!$R$187,B201='Model update'!$S$187,B201='Model update'!$T$187,B201='Model update'!$U$187,B201='Model update'!$V$187,B201='Model update'!$W$187),'Model update'!$J$187,IF(OR(B201='Model update'!$P$188,B201='Model update'!$Q$188,B201='Model update'!$R$188,B201='Model update'!$S$188,B201='Model update'!$T$188,B201='Model update'!$U$188,B201='Model update'!$V$188,B201='Model update'!$W$188),'Model update'!$J$188,'Model update'!$J$186)) -> -0.009825264614 | L201: =J201*(1+'Model update'!$B$31)*(1-'2021_ACS service & prices'!K201)+'Model update'!$J$196 -> 3155.085903
... 141 more rows

Sheet 2021_ACS Labour rates
A1: ="Tariff Approval - "&'Model update'!B3 -> Tariff Approval - Ergon Energy
A3: ="PROPOSED "&'Model update'!A6&" Labour rates" -> PROPOSED Financial Year Labour rates | B3: Maximum hourly rates including on-costs and overheads
A5: Ergon Energy Labour Category | B5: AER Labour Category | C5: 2020-21 Approved rate Ordinary Time ($/hour) | D5: 2020-21 Approved rate Overtime ($/hour) | E5: 2021-22 Ordinary rate ($/hour) | F5: 2021-22 Overtime rate ($/hour)
A6: Admin Employee | B6: Admin | C6: ='2020 ACS Labour rates approved'!E19 -> 77 | D6: ='2020 ACS Labour rates approved'!M19 -> 134.75 | E6: =$C6*(1+'Model update'!$B$31)*(1-'Model update'!$J$186) -> 78.4257067 | F6: =$D6*(1+'Model update'!$B$31)*(1-'Model update'!$J$186) -> 137.2449867
A7: Professional Managerial | B7: Project manager | C7: ='2020 ACS Labour rates approved'!E20 -> 206.7375963 | D7: ='2020 ACS Labour rates approved'!M20 -> 272.8070489 | E7: =$C7*(1+'Model update'!$B$31)*(1-'Model update'!$J$186) -> 210.5654817 | F7: =$D7*(1+'Model update'!$B$31)*(1-'Model update'!$J$186) -> 277.8582546
A8: Power worker | B8: Field worker | C8: ='2020 ACS Labour rates approved'!E21 -> 143.3469246 | D8: ='2020 ACS Labour rates approved'!M21 -> 177.8496228 | E8: =$C8*(1+'Model update'!$B$31)*(1-'Model update'!$J$186) -> 146.0010891 | F8: =$D8*(1+'Model update'!$B$31)*(1-'Model update'!$J$186) -> 181.142628
A9: Technical services person | B9: Technical specialist | C9: ='2020 ACS Labour rates approved'!E22 -> 175.0208302 | D9: ='2020 ACS Labour rates approved'!M22 -> 226.8605986 | E9: =$C9*(1+'Model update'!$B$31)*(1-'Model update'!$J$186) -> 178.2614584 | F9: =$D9*(1+'Model update'!$B$31)*(1-'Model update'!$J$186) -> 231.0610748
A10: Electrical systems designer | B10: Engineer | C10: ='2020 ACS Labour rates approved'!E23 -> 162.3769843 | D10: ='2020 ACS Labour rates approved'!M23 -> 205.8589561 | E10: =$C10*(1+'Model update'!$B$31)*(1-'Model update'!$J$186) -> 165.3835031 | F10: =$D10*(1+'Model update'!$B$31)*(1-'Model update'!$J$186) -> 209.6705729
A11: Supervisor | B11: Project manager | C11: ='2020 ACS Labour rates approved'!E24 -> 193.7937269 | D11: ='2020 ACS Labour rates approved'!M24 -> 252.1911509 | E11: =$C11*(1+'Model update'!$B$31)*(1-'Model update'!$J$186) -> 197.3819478 | F11: =$D11*(1+'Model update'!$B$31)*(1-'Model update'!$J$186) -> 256.8606394
A12: Para-professional | B12: Engineer/field worker | C12: ='2020 ACS Labour rates approved'!E25 -> 189.5719682 | D12: ='2020 ACS Labour rates approved'!M25 -> 240.9402711 | E12: =$C12*(1+'Model update'!$B$31)*(1-'Model update'!$J$186) -> 193.0820204 | F12: =$D12*(1+'Model update'!$B$31)*(1-'Model update'!$J$186) -> 245.401442
A13: Apprentice | B13: Field worker | C13: ='2020 ACS Labour rates approved'!E26 -> 107.0440856 | D13: ='2020 ACS Labour rates approved'!M26 -> 143.4326456 | E13: =$C13*(1+'Model update'!$B$31)*(1-'Model update'!$J$186) -> 109.0260787 | F13: =$D13*(1+'Model update'!$B$31)*(1-'Model update'!$J$186) -> 146.0883973
A14: System operator | B14: Senior Engineer | C14: ='2020 ACS Labour rates approved'!E27 -> 225.08 | D14: ='2020 ACS Labour rates approved'!M27 -> 314.1245658 | E14: =$C14*(1+'Model update'!$B$31)*(1-'Model update'!$J$186) -> 229.2475073 | F14: =$D14*(1+'Model update'!$B$31)*(1-'Model update'!$J$186) -> 319.940793
A15: Tech/Power worker | B15: Technical specialist/Field worker | C15: ='2020 ACS Labour rates approved'!E29 -> 159.1838774 | D15: ='2020 ACS Labour rates approved'!M29 -> 202.3551107 | E15: =$C15*(1+'Model update'!$B$31)*(1-'Model update'!$J$186) -> 162.1312738 | F15: =$D15*(1+'Model update'!$B$31)*(1-'Model update'!$J$186) -> 206.1018514
A16: Tech/Power worker/Admin | B16: Technical specialist/Field worker/ Admin | C16: ='2020 ACS Labour rates approved'!E30 -> 131.7892516 | D16: ='2020 ACS Labour rates approved'!M30 -> 179.8200738 | E16: =$C16*(1+'Model update'!$B$31)*(1-'Model update'!$J$186) -> 134.2294181 | F16: =$D16*(1+'Model update'!$B$31)*(1-'Model update'!$J$186) -> 183.1495632

Sheet >>SCS prices
A1: The following worsheets include:
A2: * The unders/overs tables for DUOS, TUOS and JS comply with the AER's Control Mechanism Determination for 2020-25 regulatory control period
A3: * Demonstration that the weighted average revenue from each tariff class complies with the side-constraint requirements
A4: * Demonstration that the revenue to be recovered complies with the revenue cap formula
A5: * Comparison between the proposed and indicative prices

Sheet Prop2021DUOSTariffs
C1: ="Tariff Approval - "&'Model update'!$B$3 -> Tariff Approval - Ergon Energy
C3: ="PROPOSED "&'Model update'!$B$6&" DISTRIBUTION TARIFFS" -> PROPOSED 2021-22 DISTRIBUTION TARIFFS | CG3: =COLUMN() -> 85 | CH3: =COLUMN() -> 86 | CI3: =COLUMN() -> 87 | CJ3: =COLUMN() -> 88 | CK3: =COLUMN() -> 89 | CL3: =COLUMN() -> 90 | CM3: =COLUMN() -> 91 | CN3: =COLUMN() -> 92 | CO3: =COLUMN() -> 93 | CP3: =COLUMN() -> 94 | CQ3: =COLUMN() -> 95 | CR3: =COLUMN() -> 96 | CS3: =COLUMN() -> 97 | CT3: =COLUMN() -> 98 | CU3: =COLUMN() -> 99 | CV3: =COLUMN() -> 100 | CW3: =COLUMN() -> 101 | CX3: =COLUMN() -> 102 | CY3: =COLUMN() -> 103 | CZ3: =COLUMN() -> 104 | DA3: =COLUMN() -> 105 | DB3: =COLUMN() -> 106 | DC3: =COLUMN() -> 107 | DD3: =COLUMN() -> 108 | DE3: =COLUMN() -> 109 | DF3: =COLUMN() -> 110 | DG3: =COLUMN() -> 111 | DH3: =COLUMN() -> 112 | DI3: =COLUMN() -> 113 | DJ3: =COLUMN() -> 114 | DK3: =COLUMN() -> 115 | DL3: =COLUMN() -> 116 | DM3: =COLUMN() -> 117 | DN3: =COLUMN() -> 118 | DO3: =COLUMN() -> 119
L4: ="Proposed Distribution Tariffs (Pt) for "&'Model update'!$B$6 -> Proposed Distribution Tariffs (Pt) for 2021-22 | AW4: ="Current Distribution Tariffs (Pt-1) for "&'Model update'!$B$8 -> Current Distribution Tariffs (Pt-1) for 2020-21 | CG4: ="Forecast Quantities (Qt) for "&'Model update'!$B$6 -> Forecast Quantities (Qt) for 2021-22 | DQ4: ="Forecast Revenue (Pt "&'Model update'!$B$6&")*(Qt " &'Model update'!$B$6&")" -> Forecast Revenue (Pt 2021-22)*(Qt 2021-22) | FB4: ="Revenue (Pt-1 "&'Model update'!$B$8&")*(Qt " &'Model update'!$B$6&")" -> Revenue (Pt-1 2020-21)*(Qt 2021-22)
B5: NMIs | C5: Proposed tariff | D5: Existing tariff | E5: Tariff class | F5: Customer class in year t | G5: Region | H5: Tariff Class/tariff/zone description | I5: Category | L5: Fixed Charge | M5: Band1 Charge | N5: Band2 Charge | O5: Band3 Charge | P5: Band4 Charge | Q5: Band5 Charge | R5: Connection Unit Charge | S5: Capacity Charge | T5: Non Summer Capacity Charge | U5: Minimum Capacity Charge | V5: Remaining Capacity Charge | W5: Demand Charge kVA | X5: Peak Demand Charge kVA | Y5: Excess Demand Charge | Z5: Summer Demand Charge kVA | AA5: Demand Charge kW | AB5: Peak Demand Charge kW | AC5: Off Peak Demand Charge kW | AD5: Non Summer Demand Charge kW | AE5: Summer Demand Charge kW | AF5: Location | AG5: General Charge | AH5: Common | AI5: Volume Charge | AJ5: Volume Block 1 Charge | AK5: Volume Block 2 Charge | AL5: Volume Block 3 Charge | AM5: Volume Evening Charge | AN5: Volume Overnight Charge | AO5: Volume Day Charge | AP5: Volume Off Peak Charge | AQ5: Volume Peak Charge | AR5: Volume Peak Charge (over 10,000) | AS5: Volume Non Summer Charge | AT5: Volume Summer No Charge | AW5: =L5 -> Fixed Charge | AX5: Band1 Charge | AY5: Band2 Charge | AZ5: Band3 Charge | BA5: Band4 Charge | BB5: Band5 Charge | BC5: Connection Unit Charge | BD5: Capacity Charge | BE5: Non Summer Capacity Charge | BF5: =U5 -> Minimum Capacity Charge | BG5: Remaining Capacity Charge | BH5: =W5 -> Demand Charge kVA | BI5: Peak Demand Charge kVA | BJ5: Excess Demand Charge | BK5: Summer Demand Charge kVA | BL5: Demand Charge kW | BM5: Peak Demand Charge kW | BN5: Off Peak Demand Charge kW | BO5: Non Summer Demand Charge kW | BP5: Summer Demand Charge kW | BQ5: Location | BR5: General Charge | BS5: Common | BT5: Volume Charge | BU5: Volume Block 1 Charge | BV5: Volume Block 2 Charge | BW5: Volume Block 3 Charge | BX5: Volume Evening Charge | BY5: Volume Overnight Charge | BZ5: Volume Day Charge | CA5: =AP5 -> Volume Off Peak Charge | CB5: =AQ5 -> Volume Peak Charge | CC5: =AR5 -> Volume Peak Charge (over 10,000) | CD5: =AS5 -> Volume Non Summer Charge | CE5: =AT5 -> Volume Summer No Charge | CG5: =L5 -> Fixed Charge | CH5: Band1 Charge | CI5: Band2 Charge | CJ5: Band3 Charge | CK5: Band4 Charge | CL5: Band5 Charge | CM5: Connection Unit Charge | CN5: Capacity Charge | CO5: Non Summer Capacity Charge | CP5: =U5 -> Minimum Capacity Charge | CQ5: Remaining Capacity Charge | CR5: =W5 -> Demand Charge kVA | CS5: Peak Demand Charge kVA | CT5: Excess Demand Charge | CU5: Summer Demand Charge kVA | CV5: Demand Charge kW | CW5: Peak Demand Charge kW | CX5: Off Peak Demand Charge kW | CY5: Non Summer Demand Charge kW | CZ5: Summer Demand Charge kW | DA5: Location | DB5: General Charge | DC5: Common | DD5: Volume Charge | DE5: Volume Block 1 Charge | DF5: Volume Block 2 Charge | DG5: Volume Block 3 Charge | DH5: Volume Evening Charge | DI5: Volume Overnight Charge | DJ5: Volume Day Charge | DK5: =AP5 -> Volume Off Peak Charge | DL5: =AQ5 -> Volume Peak Charge | DM5: =AR5 -> Volume Peak Charge (over 10,000) | DN5: =AS5 -> Volume Non Summer Charge | DO5: =AT5 -> Volume Summer No Charge | DQ5: =L5 -> Fixed Charge | DR5: Band1 Charge | DS5: Band2 Charge | DT5: Band3 Charge | DU5: Band4 Charge | DV5: Band5 Charge | DW5: Connection Unit Charge | DX5: Capacity Charge | DY5: Non Summer Capacity Charge | DZ5: =U5 -> Minimum Capacity Charge | EA5: Remaining Capacity Charge | EB5: =W5 -> Demand Charge kVA | EC5: Peak Demand Charge kVA | ED5: Excess Demand Charge | EE5: Summer Demand Charge kVA | EF5: Demand Charge kW | EG5: Peak Demand Charge kW | EH5: Off Peak Demand Charge kW | EI5: Non Summer Demand Charge kW | EJ5: Summer Demand Charge kW | EK5: Location | EL5: General Charge | EM5: Common | EN5: Volume Charge | EO5: Volume Block 1 Charge | EP5: Volume Block 2 Charge | EQ5: Volume Block 3 Charge | ER5: Volume Evening Charge | ES5: Volume Overnight Charge | ET5: Volume Day Charge | EU5: =AP5 -> Volume Off Peak Charge | EV5: Volume Peak Charge | EW5: Volume Peak Charge (over 10,000) | EX5: =AS5 -> Volume Non Summer Charge | EY5: =AT5 -> Volume Summer No Charge | EZ5: Total | FB5: =L5 -> Fixed Charge | FC5: Band1 Charge | FD5: Band2 Charge | FE5: Band3 Charge | FF5: Band4 Charge | FG5: Band5 Charge | FH5: Connection Unit Charge | FI5: Capacity Charge | FJ5: Non Summer Capacity Charge | FK5: =U5 -> Minimum Capacity Charge | FL5: Remaining Capacity Charge | FM5: =W5 -> Demand Charge kVA | FN5: Peak Demand Charge kVA | FO5: Excess Demand Charge | FP5: Summer Demand Charge kVA | FQ5: Demand Charge kW | FR5: Peak Demand Charge kW | FS5: Off Peak Demand Charge kW | FT5: Non Summer Demand Charge kW | FU5: Summer Demand Charge kW | FV5: Location | FW5: General Charge | FX5: Common | FY5: Volume Charge | FZ5: Volume Block 1 Charge | GA5: Volume Block 2 Charge | GB5: Volume Block 3 Charge | GC5: Volume Evening Charge | GD5: Volume Overnight Charge | GE5: Volume Day Charge | GF5: =AP5 -> Volume Off Peak Charge | GG5: Volume Peak Charge | GH5: Volume Peak Charge (over 10,000) | GI5: =AS5 -> Volume Non Summer Charge | GJ5: =AT5 -> Volume Summer No Charge | GK5: Total
L6: Rate | M6: Rate | N6: Rate | O6: Rate | P6: Rate | Q6: Rate | R6: Rate | S6: Rate | T6: Rate | U6: Rate | V6: Rate | W6: Rate | X6: Rate | Y6: Rate | Z6: Rate | AA6: Rate | AB6: Rate | AC6: Rate | AD6: Rate | AE6: Rate | AF6: Rate | AG6: Rate | AH6: Rate | AI6: Rate | AJ6: Rate | AK6: Rate | AL6: Rate | AM6: Rate | AN6: Rate | AO6: Rate | AP6: Rate | AQ6: Rate | AR6: Rate | AS6: Rate | AT6: Rate | AW6: Rate | AX6: Rate | AY6: Rate | AZ6: Rate | BA6: Rate | BB6: Rate | BC6: Rate | BD6: Rate | BE6: Rate | BF6: Rate | BG6: Rate | BH6: Rate | BI6: Rate | BJ6: Rate | BK6: Rate | BL6: Rate | BM6: Rate | BN6: Rate | BO6: Rate | BP6: Rate | BQ6: Rate | BR6: Rate | BS6: Rate | BT6: Rate | BU6: Rate | BV6: Rate | BW6: Rate | BX6: Rate | BY6: Rate | BZ6: Rate | CA6: Rate | CB6: Rate | CC6: Rate | CD6: Rate | CE6: Rate | CG6: Quantity | CH6: Quantity | CI6: Quantity | CJ6: Quantity | CK6: Quantity | CL6: Quantity | CM6: Quantity | CN6: Quantity | CO6: Quantity | CP6: Quantity | CQ6: Quantity | CR6: Quantity | CS6: Quantity | CT6: Quantity | CU6: Quantity | CV6: Quantity | CW6: Quantity | CX6: Quantity | CY6: Quantity | CZ6: Quantity | DA6: Quantity | DB6: Quantity | DC6: Quantity | DD6: Quantity | DE6: Quantity | DF6: Quantity | DG6: Quantity | DH6: Quantity | DI6: Quantity | DJ6: Quantity | DK6: Quantity | DL6: Quantity | DM6: Quantity | DN6: Quantity | DO6: Quantity
L7: $/customer/day | M7: $/customer/day | N7: $/customer/day | O7: $/customer/day | P7: $/customer/day | Q7: $/customer/day | R7: $/customer/day | S7: $/kVA/month | T7: $/kVA/month | U7: $/kW/Mth | V7: $/kW/Mth | W7: $/kVA/month | X7: $/kVA/month | Y7: $/kVA/month | Z7: $/kVA/month | AA7: $/kW/Mth | AB7: $/kW/Mth | AC7: $/kW/Mth | AD7: $/kW/Mth | AE7: $/kW/Mth | AF7: $/kW/Mth | AG7: $/kWh | AH7: $/kWh | AI7: $/kWh | AJ7: $/kWh | AK7: $/kWh | AL7: $/kWh | AM7: $/kWh | AN7: $/kWh | AO7: $/kWh | AP7: $/kW/Mth | AQ7: $/kW/Mth | AR7: $/kW/Mth | AS7: $/kWh | AT7: $/kWh | AW7: =L7 -> $/customer/day | AX7: $/customer/day | AY7: $/customer/day | AZ7: $/customer/day | BA7: $/customer/day | BB7: $/customer/day | BC7: $/customer/day | BD7: $/kVA/month | BE7: $/kVA/month | BF7: =U7 -> $/kW/Mth | BG7: $/kW/Mth | BH7: =W7 -> $/kVA/month | BI7: $/kVA/month | BJ7: $/kVA/month | BK7: $/kVA/month | BL7: $/kW/Mth | BM7: $/kW/Mth | BN7: $/kW/Mth | BO7: $/kW/Mth | BP7: $/kW/Mth | BQ7: $/kW/Mth | BR7: $/kWh | BS7: $/kWh | BT7: $/kWh | BU7: $/kWh | BV7: $/kWh | BW7: $/kWh | BX7: $/kWh | BY7: $/kWh | BZ7: $/kWh | CA7: =AP7 -> $/kW/Mth | CB7: =AQ7 -> $/kW/Mth | CC7: =AR7 -> $/kW/Mth | CD7: =AS7 -> $/kWh | CE7: =AT7 -> $/kWh | CG7: Cust # | CH7: Cust # | CI7: Cust # | CJ7: Cust # | CK7: Cust # | CL7: Cust # | CM7: No. | CN7: kVA | CO7: kWh/annum | CP7: kW | CQ7: kW | CR7: kVA | CS7: kVA | CT7: kVA | CU7: kWh/annum | CV7: kW | CW7: kW | CX7: kW | CY7: kW | CZ7: kW | DA7: kW | DB7: kWh/annum | DD7: kWh/annum | DE7: kWh/annum | DF7: kWh/annum | DG7: kWh/annum | DH7: kWh/annum | DI7: kWh/annum | DJ7: kWh/annum | DK7: kW | DL7: kW | DM7: kW | DN7: kWh/annum | DO7: kWh/annum | DQ7: $/year | DR7: $/year | DS7: $/year | DT7: $/year | DU7: $/year | DV7: $/year | DW7: $/year | DX7: $/year | DY7: $/year | DZ7: $/year | EA7: $/year | EB7: $/year | EC7: $/year | ED7: $/year | EE7: $/year | EF7: $/year | EG7: $/year | EH7: $/year | EI7: $/year | EJ7: $/year | EK7: $/year | EL7: $/year | EM7: $/year | EN7: $/year | EO7: $/year | EP7: $/year | EQ7: $/year | ER7: $/year | ES7: $/year | ET7: $/year | EU7: $/year | EV7: $/year | EW7: $/year | EX7: $/year | EY7: $/year | EZ7: $/year | FB7: =L7 -> $/customer/day | FC7: $/year | FD7: $/year | FE7: $/year | FF7: $/year | FG7: $/year | FH7: =R7 -> $/customer/day | FI7: =S7 -> $/kVA/month | FJ7: =T7 -> $/kVA/month | FK7: =U7 -> $/kW/Mth | FL7: $/kW/Mth | FM7: =W7 -> $/kVA/month | FN7: $/kVA/month | FO7: $/kVA/month | FP7: $/kVA/month | FQ7: $/kW/Mth | FR7: $/kW/Mth | FS7: $/kW/Mth | FT7: $/kW/Mth | FU7: $/kW/Mth | FV7: $/kW/Mth | FW7: $/kWh | FX7: $/kWh | FY7: $/kWh | FZ7: $/kWh | GA7: $/kWh | GB7: $/kWh | GC7: $/kWh | GD7: $/kWh | GE7: $/kWh | GF7: =AP7 -> $/kW/Mth | GG7: $/kW/Mth | GH7: $/kW/Mth | GI7: =AS7 -> $/kWh | GJ7: =AT7 -> $/kWh
C8: Site Specific | D8: Site Specific | E8: ICC | F8: ICC | G8: East | H8: EICCKB18 | I8: DUOS | L8: Site Specific | S8: Site Specific | W8: Site Specific | AI8: Site Specific | AW8: Site Specific | BC8: Site Specific | BD8: Site Specific | BH8: Site Specific | BT8: Site Specific | DQ8: 23336922.96 | DR8: 0 | DS8: 0 | DT8: 0 | DU8: 0 | DV8: 0 | DW8: 0 | DX8: 11720040 | DY8: 0 | DZ8: 0 | EA8: 0 | EB8: 5001308.809 | EC8: 0 | ED8: 0 | EE8: 0 | EF8: 0 | EG8: 0 | EH8: 0 | EI8: 0 | EJ8: 0 | EK8: 0 | EL8: 0 | EM8: 0 | EN8: 10728818.93 | EO8: 0 | EP8: 0 | EQ8: 0 | ER8: 0 | ES8: 0 | ET8: 0 | EU8: 0 | EV8: 0 | EW8: 0 | EX8: 0 | EY8: 0 | EZ8: 50787090.71 | FB8: 23447029.54 | FC8: 0 | FD8: 0 | FE8: 0 | FF8: 0 | FG8: 0 | FH8: 0 | FI8: 13592687.18 | FJ8: 0 | FK8: 0 | FL8: 0 | FM8: 6696657.895 | FN8: 0 | FO8: 0 | FP8: 0 | FQ8: 0 | FR8: 0 | FS8: 0 | FT8: 0 | FU8: 0 | FV8: 0 | FW8: 0 | FX8: 0 | FY8: 10019946.29 | FZ8: 0 | GA8: 0 | GB8: 0 | GC8: 0 | GD8: 0 | GE8: 0 | GF8: 0 | GG8: 0 | GH8: 0 | GI8: 0 | GJ8: 0 | GK8: 53756320.91
C10: East CAC66kV Anytime | D10: East CAC66kV Anytime | E10: CAC | F10: CAC | G10: East | H10: EC66 | I10: DUOS | L10: 109.746 | R10: 5.526838772 | S10: 2.565602 | W10: 3.013653769 | AI10: 0.003943391696 | AW10: 109.746 | BC10: 5.567379261 | BD10: 2.6264 | BH10: 2.8656 | BT10: 0.003369982766 | CG10: 30 | CM10: 1093 | CN10: 99550 | CR10: 770147.656 | DD10: 251911000 | DQ10: =L10*CG10*DQ$107 -> 1201718.7 | DR10: =M10*CH10*DR$107 -> 0 | DS10: =N10*CI10*DS$107 -> 0 | DT10: =O10*CJ10*DT$107 -> 0 | DU10: =P10*CK10*DU$107 -> 0 | DV10: =Q10*CL10*DV$107 -> 0 | DW10: =R10*CM10*DW$107 -> 2204904.694 | DX10: =S10*CN10*DX$107 -> 3064868.149 | DY10: =T10*CO10*DY$107 -> 0 | DZ10: =U10*CP10*DZ$107 -> 0 | EA10: =V10*CQ10*EA$107 -> 0 | EB10: =W10*CR10*EB$107 -> 2320958.386 | EC10: =X10*CS10*EC$107 -> 0 | ED10: =Y10*CT10*ED$107 -> 0 | EE10: =Z10*CU10*EE$107 -> 0 | EF10: =AA10*CV10*EF$107 -> 0 | EG10: =AB10*CW10*EG$107 -> 0 | EH10: =AC10*CX10*EH$107 -> 0 | EI10: =AD10*CY10*EI$107 -> 0 | EJ10: =AE10*CZ10*EJ$107 -> 0 | EK10: =AF10*DA10*EK$107 -> 0 | EL10: =AG10*DB10*EL$107 -> 0 | EM10: =AH10*DC10*EM$107 -> 0 | EN10: =AI10*DD10*EN$107 -> 993383.7456 | EO10: =AJ10*DE10*EO$107 -> 0 | EP10: =AK10*DF10*EP$107 -> 0 | EQ10: =AL10*DG10*EQ$107 -> 0 | ER10: =AM10*DH10*ER$107 -> 0 | ES10: =AN10*DI10*ES$107 -> 0 | ET10: =AO10*DJ10*ET$107 -> 0 | EU10: =AP10*DK10*EU$107 -> 0 | EV10: =AQ10*DL10*EV$107 -> 0 | EW10: =AR10*DM10*EW$107 -> 0 | EX10: =AS10*DN10*EX$107 -> 0 | EY10: =AT10*DO10*EY$107 -> 0 | EZ10: =SUM(DQ10:EY10) -> 9785833.675 | FB10: =AW10*CG10*FB$107 -> 1201718.7 | FC10: =AX10*CH10*FC$107 -> 0 | FD10: =AY10*CI10*FD$107 -> 0 | FE10: =AZ10*CJ10*FE$107 -> 0 | FF10: =BA10*CK10*FF$107 -> 0 | FG10: =BB10*CL10*FG$107 -> 0 | FH10: =BC10*CM10*FH$107 -> 2221078.119 | FI10: =BD10*CN10*FI$107 -> 3137497.44 | FJ10: =BE10*CO10*FJ$107 -> 0 | FK10: =BF10*CP10*FK$107 -> 0 | FL10: =BG10*CQ10*FL$107 -> 0 | FM10: =BH10*CR10*FM$107 -> 2206935.123 | FN10: =BI10*CS10*FN$107 -> 0 | FO10: =BJ10*CT10*FO$107 -> 0 | FP10: =BK10*CU10*FP$107 -> 0 | FQ10: =BL10*CV10*FQ$107 -> 0 | FR10: =BM10*CW10*FR$107 -> 0 | FS10: =BN10*CX10*FS$107 -> 0 | FT10: =BO10*CY10*FT$107 -> 0 | FU10: =BP10*CZ10*FU$107 -> 0 | FV10: =BQ10*DA10*FV$107 -> 0 | FW10: =BR10*DB10*FW$107 -> 0 | FX10: =BS10*DC10*FX$107 -> 0 | FY10: =BT10*DD10*FY$107 -> 848935.7286 | FZ10: =BU10*DE10*FZ$107 -> 0 | GA10: =BV10*DF10*GA$107 -> 0 | GB10: =BW10*DG10*GB$107 -> 0 | GC10: =BX10*DH10*GC$107 -> 0 | GD10: =BY10*DI10*GD$107 -> 0 | GE10: =BZ10*DJ10*GE$107 -> 0 | GF10: =CA10*DK10*GF$107 -> 0 | GG10: =CB10*DL10*GG$107 -> 0 | GH10: =CC10*DM10*GH$107 -> 0 | GI10: =CD10*DN10*GI$107 -> 0 | GJ10: =CE10*DO10*GJ$107 -> 0 | GK10: =SUM(FB10:GJ10) -> 9616165.111
C11: East CAC33kV Anytime | D11: East CAC33kV Anytime | E11: CAC | F11: CAC | G11: East | H11: EC33 | I11: DUOS | L11: 44.44 | R11: 5.526838772 | S11: 3.28272 | W11: 3.12218768 | AI11: 0.003943391696 | AW11: 44.44 | BC11: 5.567379261 | BD11: 3.36 | BH11: 2.9688 | BT11: 0.003369982766 | CG11: 18 | CM11: 116 | CN11: 48970 | CR11: 261185.965 | DD11: 97935000 | DQ11: 291970.8 | DR11: 0 | DS11: 0 | DT11: 0 | DU11: 0 | DV11: 0 | DW11: 234006.3536 | DX11: 1929057.581 | DY11: 0 | DZ11: 0 | EA11: 0 | EB11: 815471.6021 | EC11: 0 | ED11: 0 | EE11: 0 | EF11: 0 | EG11: 0 | EH11: 0 | EI11: 0 | EJ11: 0 | EK11: 0 | EL11: 0 | EM11: 0 | EN11: 386196.0658 | EO11: 0 | EP11: 0 | EQ11: 0 | ER11: 0 | ES11: 0 | ET11: 0 | EU11: 0 | EV11: 0 | EW11: 0 | EX11: 0 | EY11: 0 | EZ11: 3656702.402 | FB11: 291970.8 | FC11: 0 | FD11: 0 | FE11: 0 | FF11: 0 | FG11: 0 | FH11: 235722.8379 | FI11: 1974470.4 | FJ11: 0 | FK11: 0 | FL11: 0 | FM11: 775408.8929 | FN11: 0 | FO11: 0 | FP11: 0 | FQ11: 0 | FR11: 0 | FS11: 0 | FT11: 0 | FU11: 0 | FV11: 0 | FW11: 0 | FX11: 0 | FY11: 330039.2622 | FZ11: 0 | GA11: 0 | GB11: 0 | GC11: 0 | GD11: 0 | GE11: 0 | GF11: 0 | GG11: 0 | GH11: 0 | GI11: 0 | GJ11: 0 | GK11: 3607612.193
C12: East CAC22/11kVBus Anytime | D12: East CAC22/11kVBus Anytime | E12: CAC | F12: CAC | G12: East | H12: EC22B | I12: DUOS | L12: 33.128 | R12: 5.526838772 | S12: 3.88846 | W12: 3.786477831 | AI12: 0.003943391696 | AW12: 33.128 | BC12: 5.567379261 | BD12: 3.98 | BH12: 3.5988 | BT12: 0.003369982766 | CG12: 26 | CM12: 255 | CN12: 87657 | CR12: 750670.572 | DD12: 301008000 | DQ12: 314384.72 | DR12: 0 | DS12: 0 | DT12: 0 | DU12: 0 | DV12: 0 | DW12: 514410.5187 | DX12: 4090208.859 | DY12: 0 | DZ12: 0 | EA12: 0 | EB12: 2842397.48 | EC12: 0 | ED12: 0 | EE12: 0 | EF12: 0 | EG12: 0 | EH12: 0 | EI12: 0 | EJ12: 0 | EK12: 0 | EL12: 0 | EM12: 0 | EN12: 1186992.448 | EO12: 0 | EP12: 0 | EQ12: 0 | ER12: 0 | ES12: 0 | ET12: 0 | EU12: 0 | EV12: 0 | EW12: 0 | EX12: 0 | EY12: 0 | EZ12: 8948394.025 | FB12: 314384.72 | FC12: 0 | FD12: 0 | FE12: 0 | FF12: 0 | FG12: 0 | FH12: 518183.8247 | FI12: 4186498.32 | FJ12: 0 | FK12: 0 | FL12: 0 | FM12: 2701513.255 | FN12: 0 | FO12: 0 | FP12: 0 | FQ12: 0 | FR12: 0 | FS12: 0 | FT12: 0 | FU12: 0 | FV12: 0 | FW12: 0 | FX12: 0 | FY12: 1014391.773 | FZ12: 0 | GA12: 0 | GB12: 0 | GC12: 0 | GD12: 0 | GE12: 0 | GF12: 0 | GG12: 0 | GH12: 0 | GI12: 0 | GJ12: 0 | GK12: 8734971.892
C13: East CAC22/11kVLine Anytime | D13: East CAC22/11kVLine Anytime | E13: CAC | F13: CAC | G13: East | H13: EC22L | I13: DUOS | L13: 26.664 | R13: 5.526838772 | S13: 8.16772 | W13: 7.635687098 | AI13: 0.003943391696 | AW13: 26.664 | BC13: 5.567379261 | BD13: 8.36 | BH13: 7.26 | BT13: 0.003369982766 | CG13: 95 | CM13: 278 | CN13: 184831 | CR13: 1530499.531 | DD13: 557783000 | DQ13: 924574.2 | DR13: 0 | DS13: 0 | DT13: 0 | DU13: 0 | DV13: 0 | DW13: 560808.3302 | DX13: 18115774.26 | DY13: 0 | DZ13: 0 | EA13: 0 | EB13: 11686415.52 | EC13: 0 | ED13: 0 | EE13: 0 | EF13: 0 | EG13: 0 | EH13: 0 | EI13: 0 | EJ13: 0 | EK13: 0 | EL13: 0 | EM13: 0 | EN13: 2199556.85 | EO13: 0 | EP13: 0 | EQ13: 0 | ER13: 0 | ES13: 0 | ET13: 0 | EU13: 0 | EV13: 0 | EW13: 0 | EX13: 0 | EY13: 0 | EZ13: 33487129.17 | FB13: 924574.2 | FC13: 0 | FD13: 0 | FE13: 0 | FF13: 0 | FG13: 0 | FH13: 564921.9736 | FI13: 18542245.92 | FJ13: 0 | FK13: 0 | FL13: 0 | FM13: 11111426.59 | FN13: 0 | FO13: 0 | FP13: 0 | FQ13: 0 | FR13: 0 | FS13: 0 | FT13: 0 | FU13: 0 | FV13: 0 | FW13: 0 | FX13: 0 | FY13: 1879719.097 | FZ13: 0 | GA13: 0 | GB13: 0 | GC13: 0 | GD13: 0 | GE13: 0 | GF13: 0 | GG13: 0 | GH13: 0 | GI13: 0 | GJ13: 0 | GK13: 33022887.78
C14: East CACHigherVoltage STOUD | D14: East CACHigherVoltage STOUD | E14: CAC | F14: CAC | G14: East | H14: EC66TOU | I14: DUOS | L14: 0 | R14: 5.526838772 | T14: 4.93218 | Z14: 11.72806885 | AS14: 0.003256 | AT14: 0 | AW14: 0 | BC14: 5.567379261 | BE14: 4.982 | BK14: 11.202 | CD14: 0.00296 | CE14: 0 | CG14: 2 | CM14: 40 | CO14: 4610 | CU14: 13465.49057 | DN14: 15865216.72 | DO14: 4812783.28 | DQ14: 0 | DR14: 0 | DS14: 0 | DT14: 0 | DU14: 0 | DV14: 0 | DW14: 80691.84608 | DX14: 0 | DY14: 204636.1482 | DZ14: 0 | EA14: 0 | EB14: 0 | EC14: 0 | ED14: 0 | EE14: 157924.2005 | EF14: 0 | EG14: 0 | EH14: 0 | EI14: 0 | EJ14: 0 | EK14: 0 | EL14: 0 | EM14: 0 | EN14: 0 | EO14: 0 | EP14: 0 | EQ14: 0 | ER14: 0 | ES14: 0 | ET14: 0 | EU14: 0 | EV14: 0 | EW14: 0 | EX14: 51657.14564 | EY14: 0 | EZ14: 494909.3404 | FB14: 0 | FC14: 0 | FD14: 0 | FE14: 0 | FF14: 0 | FG14: 0 | FH14: 81283.73721 | FI14: 0 | FJ14: 206703.18 | FK14: 0 | FL14: 0 | FM14: 0 | FN14: 0 | FO14: 0 | FP14: 150840.4254 | FQ14: 0 | FR14: 0 | FS14: 0 | FT14: 0 | FU14: 0 | FV14: 0 | FW14: 0 | FX14: 0 | FY14: 0 | FZ14: 0 | GA14: 0 | GB14: 0 | GC14: 0 | GD14: 0 | GE14: 0 | GF14: 0 | GG14: 0 | GH14: 0 | GI14: 46961.04149 | GJ14: 0 | GK14: 485788.3841
